Workbook

Sheet Usmernenie
A1: Usmernenie k priebežnému čerpaniu a vyúčtovaniu finančných prostriedkov poskytnutých v roku 2024
A3: ZÁKLADNÉ POKYNY
A4: 1. Vložiť údaje do hárkov "Príjmy" a "Doklady".
A5: 2. Skontrolovať hárky "Doklady" a "Spolu".
A6: 3. Po kontrole odoslať elektronickú verziu formuláru na adresu ziadosti.sport@minedu.sk.
A7: 4. Vyplniť hárok "Avízo - vratka" (len Prijímatelia, ktorí nevyčerpali celú sumu).
A8: 5. Vytlačiť hárky "Spolu", "Doklady", "Avízo - vratka".
A9: 6. Dopísať do hárku "Spolu" dátum a čas odoslania elektronickej verzie formuláru vyúčtovania.
A10: 7. Podpísať všetky hárky štatutárnym zástupcom/zástupcami.
A11: 8. Odoslať formulár vyúčtovania hárky "Doklady", "Spolu" a "Avízo - vratka" - len v prípade vrátenia nevyčerpaných finančných prostriedkov v listinnej podobe na adresu: Ministerstvo školstva, vedy, výskumu a športu SR, sekcia športu, Stromová 1, 813 30 Bratislava.
A12: Pri vypĺňaní odporúčame použiť hárok „Príklady“, v ktorom sú vysvetlené najčastejšie druhy výdavkov. Pomôže v prípade, ak si nie ste istí, ako uviesť určitý typ výdavku.
A14: INFORMÁCIA – PRIEBEŽNÉ ZVEREJŇOVANIE A VYÚČTOVANIE PRÍSPEVKOV PRE KLUBY V prípade poskytnutia finančných prostriedkov z príspevku uznanému športu klubom podľa § 69 ods. (4) bod a) zákona č. 440/2015 Z.z. o športe a o zmene a dplnení nietorých zákonov v znení neskorších predpisov (ďalej len "zákon o športe") má prijímateľ finančných prostriedkov zo štátneho rozpočtu (ďalej len „Prijímateľ“) dve možnosti: 1. Príspevok poskytne priamym poukázaním na samostatný bankový účet klubu. V tomto prípade: a) KLUB je povinný zriadiť pre príjem prostriedkov zo štátneho rozpočtu samostatný bankový účet, b) KLUB zverejňuje použitie príspevku v rovnakej forme a štruktúre ako Prijímateľ, nakoľko v tomto prípade vystupuje klub ako prijímateľ, c) Prijímateľ zverejňuje v hárku „Doklady“ poskytnutú sumu klubu ako samostatnú položku s Popisom úhrady „príspevok klubu“, pričom v Dodávateľovi plnenia uvedie názov klubu, d) Prijímateľ uvádza vo formulári vyúčtovania finančných prostriedkov za aktuálny rok prostriedky poskytnuté klubom v rovnakej forme a štruktúre, ako ostatné účely uvedené v zmluve (viď hárok "Príklady"). Neuvádzať jednou sumou, ale rozpísať jednotlivé výdavky. 2. Príspevok poskytne formou refundácie výdavkov klubu na bankový účet klubu. V tomto prípade: a) KLUB nie je povinný zverejniť priebežné prijatie a čerpanie poskytnutých prostriedkov z príspevku uznanému športu, nakoľko tieto položky sú priebežne zverejňované prijímateľom, b) Prijímateľ zverejňuje v hárku „Doklady“ refundované sumy klubu ako samostatné položky podľa konkrétneho účelu, pričom okrem sumy, účelu a dodávateľa plnenia uvedie aj názov KLUBU, ktorému výdavky refunduje, c) Prijímateľ vo formulári vyúčtovania finančných prostriedkov uvádza výdavky refundované klubom v rovnakej forme a štruktúre ako ostatné účely uvedené v zmluve, vrátane názvu KLUBU, ktorému výdavok refunduje.
A16: INFORMÁCIA - PRIEBEŽNÉ ZVEREJŇOVANIE A VYÚČTOVANIE PRÍSPEVKU SLOVENSKÉMU PARALYMPIJSKÉMU VÝBORU V prípade poskytnutia finančných prostriedkov z príspevku na národný športový projekt podľa § 75 ods. (6) zákona o športe Slovenskému paralympijskému výboru (ďalej len „SPV“) sa príspevok poskytne priamym poukázaním na samostatné bankové účty jednotlivých subjektov uvedených v zmluve (nie vo forme refundácie výdavkov). V tomto prípade: a) je každý subjekt povinný zriadiť pre príjem prostriedkov zo štátneho rozpočtu samostatný bankový účet, b) SPV zverejňuje poskytnutú sumu subjektu ako samostatnú položku s Popisom úhrady „príspevok subjektu“, pričom v Dodávateľovi plnenia uvedie názov subjektu, c) subjekt zverejňuje použitie príspevku v rovnakej forme a štruktúre ako prijímateľ príspevku, t. j. SPV, nakoľko v tomto prípade vystupuje každý subjekt ako Prijímateľ, d) SPV uvádza vo formulári vyúčtovania za aktuálny rok prostriedky poskytnuté samotnému SPV rovnako ako ostatné účely uvedené v zmluve a subjekty združené v SPV v rovnakej forme a štruktúre ako SPV (viď hárok "Príklady"). Podľa zmluvy na aktuálny rok subjekty združené v SPV posielajú vyúčtovanie priamo MŠVVaŠ SR (nie cez SPV). Toto ustanovenie sa rovnako vzťahuje aj na prípady vyčlenenia a poskytnutia finančných prostriedkov pre športy zdravotne znevýhodnených, patriacich pod príslušné národné športové zväzy v pôsobnosti jednotlivých medzinárodných federácií.
A18: VŠEOBECNÉ POKYNY
A19: (1) Priebežné čerpanie a vyúčtovanie príspevkov/dotácií poskytnutých zo štátneho rozpočtu v aktuálnom roku v oblasti športu (ďalej len "Finančných prostriedkov") sa vykonáva v termínoch a spôsobom, ktoré sú stanovené v zmluve/dodatku k zmluve o poskytnutí Finančných prostriedkov (ďalej len „Zmluva“).
A21: (2) Prijímateľ je v súlade s § 65 ods. (6) zákona o športe povinný priebežne zverejňovať informácie o prijatí a spôsobe použitia Finančných prostriedkov najneskôr do 25. dňa kalendárneho mesiaca nasledujúceho po kalendárnom mesiaci, v ktorom boli Finančné prostriedky prijaté alebo použité. Zverejnením formuláru vyúčtovania na svojej webovej stránke a jeho pravidelnou aktualizáciou, vrátane oznámenia tejto webovej adresy MŠVVaŠ SR, si túto povinnosť splníte.
A23: (3) Tento formulár obsahuje údaje o sumách a účeloch Finančných prostriedkov uvedených v Zmluvách o poskytnutí finančných prostriedkov Prijímateľovi vybranému zo zoznamu. Údaje sú aktualizované priebežne počas celého kalendárneho roka.
A25: (4) Prijímateľ aktualizuje k vloženému dátumu (bunka C1 hárku "Príjmy") sumu prijatých Finančných prostriedkov, ktoré mu boli poukázané od 01.01.2024 do 31.12.2024.
A27: (5) Prijímateľ uvádza každý príjem (poukázané Finančné prostriedky) a každý výdaj (použitie Finančných prostriedkov) na samostatnom riadku ako samostatnú položku. Ak je potrebné platbu rozdeliť na viacero účelov, rozpíše sa táto platba na viacero riadkov, v každom riadku sa vyberie príslušný účel (stĺpec A) a príslušný analytický kód účelu (stĺpec J).
A29: (6) Formulár si uložte vo vašom počítači. V akomkoľvek hárku vypĺňate len žlté polia. V prípade nezrovnalostí alebo problémov pri vypĺňaní sa obráťte na zamestnancov sekcie športu MŠVVaŠ SR.
A31: (7) V hárku „Doklady“ vyberte zo zoznamu svoju organizáciu („Prijímateľ Finančných prostriedkov“).
A33: (8) Do polí riadkov 107 až 3000 vložte postupne vyúčtovacie údaje (polia zmenia farbu na žltú). Údaje v stĺpcoch B až H je možné vyplniť aj vložením údajov z iného hárku .xls, alebo z iného zdroja (CTRL+C, CTRL+V). Údaje v stĺpci A nie je možné vyplniť kopírovaním z iného zdroja, ale je potrebné vybrať ich z ponúkaného zoznamu. Pri nedodržaní tohto upozornenia sa poruší funkčnosť formulára.
A35: (9) Pri vkladaní údajov použite ako pomôcky komentáre, ktoré sa zobrazia, keď podržíte kurzor myši nad bunkami označenými malými červenými trojuholníčkami v záhlaví stĺpcov.
A37: (10) Pri vkladaní údajov uvádzajte plné výrazy, nie skratky (napr. namiesto DPC treba uviesť „dohoda o pracovnej činnosti“). V nevyhnutnom prípade používajte skratky podľa zoznamu v hárku "Skratky", ktorý si môžete rozšíriť o vlastné skratky (je potrebné ich doplniť do príslušnej tabuľky). V stĺpci "Dodávateľ plnenia" nie je prípustné používať skratky, okrem skratiek, ktoré sú v oficiálnom názve subjektu. Vyhnite sa prehnanému používaniu skratiek, ktoré nie sú bežne zaužívané, vyúčtovanie sa tak stáva neprehľadným. Poskytovateľ môže vrátiť neprehľadné vyúčtovanie na prepracovanie.
A39: (11) Pri vkladaní popisu uhradeného plnenia vyberte z rozbaľovacieho zoznamu správnu možnosť. V prípade, ak sa daná možnosť vo výbere nenachádza, zadajte voľný text (výstižný so špecifikáciou plnenia).
A41: (12) Vo vyúčtovaní Finančných prostriedkov môžu byť uvedené len doklady uhradené s dátumom od 01.01.2024 do 31.12.2024, resp. s dátumom, ktorý bol uvedený v zmluve/dodatku k zmluve o poskytnutí Finančných prostriedkov ako termín pre ich použitie. Rovnako to platí aj pre príspevky klubom a subjektom, napr. v prípade príspevku SPV, to znamená, že aj kluby a subjekty musia použiť prostriedky v termíne od 01.01.2024 do 31.12.2024, resp. v termíne, ktorý bol uvedený v zmluve/dodatku k zmluve o poskytnutí Finančných prostriedkov. Pri investíciách (kapitálové transfery) je termín použitia príspevku od 01.01.2024 do 31.03.2025. Pri vyúčtovaní kapitálových transferov je nevyhnutné priložiť k vyúčtovaniu aj kópie faktúr vrátane ich príloh, kópie výpisov z účtu o úhrade faktúr, zmluvy a dodatky uzatvorené s dodávateľmi vrátane príloh, prípadne ďalšie dokumenty/doklady nevyhnutné na posúdenie oprávnenosti a preukázateľnosti výdavkov.
A42: Upozornenie: V prípadoch, ak podľa zmluvy/dodatku k zmluve je umožnené čerpať Finančné prostriedky, poskytnuté ako bežný transfer po 31.07.2024, v termíne do 31.03.2025, je to s výnimkou miezd, platov, ostatných peňažných nárokov zamestnancov vyplývajúcich z pracovnoprávnych vzťahov alebo z obdobných právnych vzťahov, ktoré sa vyplácajú spolu so mzdou a odmeny vyplácané na základe dohôd o prácach vykonávaných mimo pracovného pomeru, ktoré sa považujú za oprávnené, ak sú viazané k obdobiu do 31.12.2024 a zároveň sú uhradené do 28. februára 2025.
A44: (13) Vyúčtovávané sumy vkladajte s presnosťou na dve desatinné miesta.
A46: (14) V prípade inej meny ako euro, sumu na účtovnom doklade (napr. na faktúre) prepočítajte na eurá podľa kurzu na účtovnom doklade, resp. aktuálnym kurzom NBS ku dňu realizácie platby. V prípade doloženia faktúr (dokladov) za kapitálové výdavky je potrebné doložiť faktúru (doklad), na ktorej je uvedený kurz a dátum kurzu, podľa ktorého je suma prepočítaná, a zároveň uvedená aj samotná prepočítaná suma.
A48: (15) Je dôležité vyplniť všetky bunky v každom riadku. Prázdne bunky nie sú prípustné. Výnimku tvorí úvodný riadok k danej aktivite s presnou kvantifikáciou akcie/podujatia/súťaže/konferencie/školenia.
A50: (16) Pri vyúčtovávaní pracovnej cesty: vyúčtovanie pracovnej cesty (majstrovstvá sveta, sústredenie, školenie, podujatie, súťaž, konferencia, iná akcia) pozostáva z položiek, ktoré vyplývajú zo zákona č. 283/2002 Z. z. o cestovných náhradách. Prípadný materiál/služba zakúpený/á na pracovnej ceste sa zúčtuje ako samostatná položka (nie je súčasťou vyúčtovania pracovnej cesty).
A52: (17) Nakoľko elektronická forma vyúčtovania bude zverejnená na internete, pri osobných nákladoch neuvádzajte mená osôb, ale „osoba 1“, „osoba 2“, „osoba 3“, atď. Pokiaľ jednej osobe boli prostriedky poskytnuté viackrát, tejto osobe je potrebné v stĺpci "Dodávateľ plnenia" uvádzať vždy to isté označenie.
A54: (18) V hárku „Doklady“ nemeňte typ ani veľkosť písma.
A56: (19) Doklady vkladajte podľa účelu.
A58: (20) Vyúčtovacie údaje sú spracovávané a analyzované automaticky v priebehu ich vkladania a je možné preibežne ich sledovať v hárku „Spolu“. Formulár automaticky vyhodnocuje čerpanie Finančných prostriedkov (analytický kód 1, 2, 3, 4, 5 a 10). Poznámka: V prípade, ak je v Zmluve uvedená povinnosť spolufinancovania (napr. pri kapitálových výdavkoch na infraštruktúru národného významu), formulár vyhodnocuje aj sumu spolufinancovania (analytický kód 99). Upozornenie: Do hárku „Spolu“ nerobte žiadne zásahy (dôsledok nedodržania: znefunkčnenie automatického vyhodnocovania). Vyúčtováva sa len poskytnutá suma finančných prostriedkov, v prípade vyúčtovania vyššej sumy, sa táto nezrovnalosť premietne v hárku "Spolu" červenou farbou, ktorou sa upozorní na tento nesúlad.
A60: (21) Pred tlačou
A61: a) nastavte počet strán, ktoré budete tlačiť (dôsledok nedodržania: budete zbytočne tlačiť viac ako 80 strán, nakoľko automaticky je nastavená tlač všetkých 3 000 pripravených formátovaných riadkov, čo je cca 250 strán),
A62: b) skontrolujte identifikačné údaje o Vašej organizácii (v prípade potreby zmeny identifikačných údajov organizácie kontaktujte zamestnancov sekcie športu MŠVVaŠ SR).
A64: (22) Po vytlačení formulára a) bez ďalších zásahov odošlite elektronický formulár na adresu ziadosti.sport@minedu.sk, b) na vytlačený formulár (hárok "Spolu") rukou dopíšte dátum a čas odoslania (nesnažte sa dopisovať tieto údaje priamo do elektronického formulára - ide o čas skutočného odoslania, nie o čas zamýšľaného odoslania), c) odošlite vytlačený hárok "Doklady" a vytlačený hárok "Spolu" ("vyúčtovanie") podľa základných pokynov na predpísanú adresu. V prípade nevyčerpaných finančných prostriedkov treba vyplniť aj hárok "Avízo - vratka " a zaslať ho taktiež na predpísanú adresu.
A66: DÔLEŽITÉ UPOZORNENIA
A68: Poskytovanie preddavkov z finančných prostriedkov (platby za zálohové faktúry) je podľa § 19 ods. 8 zákona 523/2004 Z. z. o rozpočtových pravidlách verejnej správy a o zmene a doplnení niektorých zákonov v znení neskorších predpisov možné len v prípade, ak boli vopred v zmluve o dodávke výkonov a tovarov písomne dohodnuté, a to najviac na obdobie troch mesiacov v závislosti od vecného plnenia dodávok výkonov a tovarov. Úhrada preddavku z finančných prostriedkov v rozpore s týmto zákonom je porušením finančnej disciplíny podľa § 31 ods. 1 písm. l) cit. zákona o rozpočtových pravidlách. Výnimkou je poskytnutie zálohy fyzickej osobe, vyslanej na pracovnú cestu, na krytie svojich nákladov podľa zákona o cestovných náhradách, ktorú vyslaná osoba zúčtováva po skončení pracovnej cesty. Poskytnutie zálohy musí byť zdokumentované príslušným dokladom. Platba bez dokladu právnickej osobe nesmie byť poskytnutá (príjmový doklad predstaviteľa klubu nestačí, nakoľko to je iba doklad, na ktorom nie sú ceny za konečný tovar/službu). Dokladom môže byť iba pokladničný blok/faktúra konečného poskytovateľa služby, alebo dodávateľa tovaru. Originály, resp. v prípade refundácie kópie všetkých primárnych dokladov, musia byť uložené u Prijímateľa Finančných prostriedkov a na požiadanie predložené príslušným orgánom vykonávajúcim kontrolu.
A70: Ak Prijímateľ zrealizuje prevod Finančných prostriedkov z bankového účtu uvedeného v Zmluve (ďalej len "samostatný účet") za účelom úhrady oprávnených nákladov Účelu a) na účet dodávateľa tovaru alebo služby, b) na iný účet Prijímateľa, najviac však v sume určenej v tejto Zmluve a najviac v sume takto použitých vlastných finančných prostriedkov na Účel z tohto iného účtu Prijímateľa, c) na účet Priameho realizátora, ak z vlastných finančných prostriedkov uhradil výdavok na Účel, najviac však v sume určenej v tejto Zmluve a najviac v sume takto použitých vlastných finančných prostriedkov; všetky povinnosti a zmluvné záväzky Prijímateľa, najmä v súvislosti s vyúčtovaním Príspevku a jeho zverejňovaním, zostávajú v prípade takéhoto použitia nedotknuté, d) na účet svojho člena, ktorý je právnickou osobou alebo fyzickou osobou, na úhradu oprávnených nákladov na športovú činnosť v súlade so Zmluvou, e) na účet subjektov uvedených v Zmluve (napr. v prípade Slovenského paralympijského výboru), f) na účty podľa Čl. 2 ods. 1 Zmluvy o poskytnutí príspevku uznanému športu, zriadené na čerpanie Príspevku pre príslušné športové odvetvia v jeho pôsobnosti. Ak Prijímateľ vykoná hotovostnú operáciu v nevyhnutnom a odôvodnenom rozsahu za účelom úhrady oprávnených nákladov Účelu v rozsahu podľa zákona č. 394/2012 Z. z. o obmedezí platieb v hotovosti, nepovažuje sa za poskytovateľa verejných prostriedkov.
A72: POZOR:
A73: Zálohové faktúry (čiastkové úhrady) za rovnaký tovar alebo rovnakú službu a k nim patriace vyúčtovacie faktúry (aj nulové), uvádzať vo vyúčtovaní v riadkoch pod sebou. Rovnako pri vyúčtovaní tuzemských a zahraničných pracovných ciest, pri ktorých je najprv poskytnutá záloha a následne k nej vykonané vyúčtovanie pracovnej cesty, treba údaje uvádzať v riadkoch pod sebou s uvedením, že ide o vyúčtovanie pracovnej cesty (doplatok resp. vrátenie časti zálohovej platby).
A74: V prípade zúčtovania dane z pridanej hodnoty (ďalej len "DPH") uvádzať túto DPH do predloženého vyúčtovania priamo pod riadok k príslušnému internému číslu účtovného dokladu, na ktoré je DPH viazané.
A75: VZOR:
A76: Názov: Majstrovstvá Európy v ...
A77: Termín: 3.9.2024
A78: Miesto - mesto a štát: Varšava, Poľsko
A79: Spôsob dopravy: letecky/BUS
A80: Počet všetkých osôb na pracovnej ceste: 6, z toho:
A81: športovci (+ navádzači): 1
A82: tréneri, rozhodcovia, maséri, vedúci výpravy, lekár, fyzioterapeut atď.: 2
A83: ostatné osoby: 1
A85: VYSVETLIVKY
A87: Účel úhrady (stĺpec A)
A88: Vybrať z rozbaľovacieho zoznamu, inak formulár nebude správne vyhodnocovať vyúčtovanie.
A89: POZOR:
A90: Doklady vkladať v poradí jednotlivých účelov. Uvádzať NÁZOV účelu/podujatia na všetky doklady, ktorých sa to týka.
A92: Interné číslo účtovného dokladu (stĺpec B)
A93: Uviesť číslo, pod ktorým je doklad zaevidovaný v účtovnej evidencii Prijímateľa Finančných prostriedkov v jeho peňažnom denníku alebo v knihe prijatých faktúr, pod ktorým je možné identifikovať doklad. Čísla dokladov je potrebné uvádzať presne, aj s pomlčkou, alebo iným znakom.
A95: Číslo externého (originálneho) účtovného dokladu (stĺpec C)
A96: Uviesť číslo účtovného dokladu, ktoré je na ňom uvedené: napr. číslo faktúry, variabilný symbol faktúry, číslo pracovnej zmluvy (napr. v prípade pracovného pomeru alebo dohody), číslo konkrétnej zmluvy (pri iných typoch zmlúv), číslo výdavkového pokladničného dokladu (napr. v prípade pracovnej cesty), prípadne číslo iného dokladu. V prípade refundácií uviesť čísla pôvodných dokladov. Čísla dokladov uvádzať presne (aj s pomlčkou, alebo iným znakom).
A98: Dátum skutočnej úhrady účtovného dokladu (stĺpec D)
A99: Uviesť dátum pôvodnej úhrady dokladu, a to dátum uvedený na výpise z účtu alebo dátum uvedený na pokladničnom doklade.
A100: POZOR:
A101: neuvádzať dátum zadania príkazu na úhradu,
A102: neuvádzať dátum splatnosti/vystavenia/zdaniteľného plnenia faktúry,
A103: dátum skutočnej úhrady musí súhlasiť s oprávneným obdobím použitia finančných prostriedkov uvedeným v zmluve.
A105: Dátum refundácie účtovného dokladu (stĺpec E) - (vyplniť len v prípade refundácie)
A106: Refundácia je vždy prevod sumy zo samostatného účtu Prijímateľa, a to:
A107: 1. za úhradu výdavkov priameho realizátora, výdavkov klubu alebo výdavkov športovca, ak títo daný výdavok už vopred uhradili zo svojho účtu,
A108: 2. na iný účet Prijímateľa, z ktorého príslušný výdavok pôvodne uhradil.
A110: Popis úhrady (stĺpec F)
A111: Uviesť výstižný popis toho, za čo bola úhrada vykonaná (napr. počet kusov, osôb, dní, názov podujatia, a pod.), to znamená vybrať jednu z ponúkaných možností a vypísať údaje podľa vzoru, alebo zadať vlastný text s presnou špecifikáciou. Nepostačuje len uviesť napr. "príspevok klubu" t. j. bez bližšej špecifikácie vynaloženého výdavku. Takýto popis nie je prípustný a v prípade výkonu finančnej kontroly nebude možné posúdiť oprávnenosť vynaloženého výdavku.
A112: UPOZORNENIE: pod pracovnou cestou sa rozumie účasť na akomkoľvek podujatí, zasadnutí výkonného výboru, valného zhromaždenia, sústredení, výcvikovom tábore, zasadnutí komisie, konferencii, súťaži, svetovom pohári, európskom pohári, príp. inej akcii.
A114: POZOR: VRATKY (vrátené nevyčerpané Finančné prostriedky) neuvádzať ani kladným ani záporným číslom. Nevyčerpané Finančné prostriedky sa automaticky zobrazia v hárku "Spolu", je potrebné vrátiť ich na príslušný účet MŠVVaŠ SR (uvedený v hárku "Avízo - vratka") a zároveň poslať vyplnené tlačivo "Avízo - vratka". V prípade, ak nevraciate finančné prostriedky, netreba vypĺňať ani zasielať formulár "Avízo - vratka" (ani v tlačenej ani v elektronickej forme). Rovnako treba postupovať aj v prípade nulových výnosov (netreba zasielať ani v tlačenej ani v elektronickej forme).
A115: Dodatočne poskytnuté zľavy z pôvodnej ceny tovarov, služieb, storná za platby, dobropisy,...uvádzajte záporným číslom s označením "STORNO", "ZĽAVA", "DOBROPIS" atď.
A116: V prípade nákupu PHM do služobného vozidla prijímateľa finančných prostriedkov je potrebné vybrať zo zoznamu položku "Služobné motorové vozidlo" a vypísať konkrétne údaje podľa vzoru. V prípade pracovnej cesty (majstrovstvá sveta, sústredenie, kongres, zasadnutie komisie a pod.) je potrebné vybrať zo zoznamu položku "Pracovná cesta" a vypísať konkrétne údaje podľa vzoru. V prípade vyplácania miezd a dohôd je potrebné vybrať zo zoznamu položku "hrubá mzda vyplatená pracovníkovi". Pri hrubých mzdách uvádzať dátum úhrady 31.12.2024. V prípade miezd vyplácaných pracovníkom na podujatí je potrebné vybrať zo zoznamu položku "Podujatie" a vypísať konkrétne údaje podľa vzoru. V prípade refundácie (napr.výdavkov klubu) treba uzatvoriť zmluvu o refundácii (s daným klubom) a rozpísať použitie na konkrétne položky. V prípade vyúčtovania nákladov za používanie mobilu je potrebné uviesť, či ide o opravu alebo zakúpenie prístroja, hovory (obdobie, napr. 6/2024), dáta a pod.
A118: IČO dodávateľa plnenia (stĺpec G)
A119: Uviesť IČO dodávateľa. V prípade zahraničného dodávateľa, ktorý nemá IČO, ostáva bunka nevyplnená.
A121: Dodávateľ plnenia (stĺpec H)
A122: Dodávateľom plnenia je
A124: a) v prípade pracovnej cesty účastník pracovnej cesty (meno a priezvisko, a NIE napr. "osoba 1"),
A125: b) v prípade byúčtovania použitia služobného motorového vozidla prijímateľa Finančných prostriedkov osoba, ktorá zodpovedá za toto vozidlo (meno a priezvisko, NIE napr. "osoba 1"),
A126: c) v prípade, ak dodávateľom plnenia je živnostník, obchodné meno živnostníka, to znamená:
A127: VŽDY meno a priezvisko živnostníka (NIE napr. "osoba 1") s označením "živnostník", nakoľko ide o obchodné meno a príjem z podnikateľskej činnosti,
A128: d) v prípade, ak boli finančné prostriedky poskytnuté športovcovi alebo trénerovi na základe schváleného príspevku/dotácie ako napr. "Ocenenie športovcov a trénerov...", je to príslušný športovec/tréner, a je potrebné uviesť jeho meno a priezvisko (NIE napr. "osoba 1"),
A129: e) konečný prijímateľ finančných prostriedkov, dodávateľ podľa faktúry/pokladničného bloku, napríklad: Slovenská pošta, Slovak Telekom, Gumon a.s., Jozef Mak - podnikateľ (ak budete súhlasiť, tak sa číslovanie poposúva).
A130: POZOR:
A131: Dodávateľom plnenia nemôže byť nikdy Prijímateľ Finančných prostriedkov.
A133: Skutočne uhradená suma (stĺpec I)
A134: Uviesť skutočne uhradenú sumu z bankového účtu Prijímateľa. Sumu vkladať v eurách s presnosťou na dve desatinné miesta. V prípade, ak Prijímateľ uhradil len časť sumy z faktúry, do vyúčovania uvádza len túto uhradenú sumu. Príklad: Celková suma faktúry: 100 € Uhradená suma: 80 € Prijímateľ uvedie do vyúčtovania 80 €.
A136: Analytický kód (stĺpec J)
A137: (vybrať z rozbaľovacieho zoznamu) Analytický kód PRE PRÍSPEVOK UZNANÉMU ŠPORTU: 1 = šport mládeže do 23 rokov (cez kluby) 2 = talentovaní športovci 3 = športová reprezentácia 4 = správa a prevádzka 5 = iné (ostatná športová činnosť, vrátane kapitálových transferov z PUŠ) Analytický kód PRE OSTATNÉ FINANČNÉ PROSTRIEDKY : 10 = ostatné účely 99 = spolufinancovanie (výlučne iba ak bola zmluvne určená povinnosť spolufinancovania)
A139: Upozornenie: Vo formulári na vyúčtovanie príspevku uznanému športu sú zapracované ustanovenia novely zákona o športe, podľa ktorých v roku, v ktorom bola vyhlásená krízová situácia a trvala viac ako 30 dní, sa ustanovenia § 69 ods. 4 zákona o športe nepoužijú a ustanovenia zmluvy o poskytnutí príspevku uznanému športu, ktoré sa týkajú rozdelenia finančných prostriedkov podľa § 69 ods. 4, sa v príslušnom kalendárnom roku nebudú uplatňovať. Zaradenie výdavkov do jednotlivých analytických kódov, aj keď má v takom prípade len informatívny charakter, je však potrebné vyplniť.

Sheet Príklady
A1: Príklady vyplnenia formulára
A2: Priebežné čerpanie finančných prostriedkov poskytnutých zo štátneho rozpočtu v oblasti športu v roku 2024 | H2: =+Doklady!I100 -> V1
H3: =+Doklady!I101 -> 2024-01-25
A4: Prijímateľ dotácie: | B4: Slovenský zväz skúšobný
A7: Účel úhrady (vyberte zo zoznamu, inak automatické vyhodnocovanie nebude fungovať) | B7: Interné číslo účtovného dokladu | C7: Číslo externého (originálneho) účtovného dokladu | D7: Dátum skutočnej úhrady účtovného dokladu | E7: Popis úhrady (vyberte z rozbaľovacieho zoznamu, alebo zadajte voľný text) | F7: IČO dodávateľa plnenia | G7: Dodávateľ plnenia | H7: Skutočne uhradená suma (eur) | I7: AK
A8: a - kriket - bežné výdavky | D8: 2024-05-02 | E8: Organizovanie podujatia Názov podujatia: Svetový pohár v skúškach Miesto konania: Brezno Termín: 15. - 18.4.2024 Počet zúčastnených osôb (okrem divákov): 20
A9: a - kriket - bežné výdavky | B9: 123/2024 | C9: CP14-110 | D9: 2024-05-03 | E9: počet odpracovaných hodín spolu: 100 hrubé mzdy vyplatené osobám v súvislosti s podujatím vrátane odvodov zamestnávateľa spolu (dohody, zmluvy, faktúry, a pod.) v eur | G9: osoba 1 - osoba 20 | H9: 400 | I9: 3
A10: a - kriket - bežné výdavky | B10: 124/2024 | C10: DF 24 | D10: 2024-05-04 | E10: náklady na ubytovanie 10 športovcov + 1 tréner | G10: Chata Breznovčan | I10: 3
A11: a - kriket - bežné výdavky | B11: 100/2024 | C11: 3020 | D11: 2024-05-05 | E11: grafické práce na výrobe loga podujatia | G11: Anna Malá - PROMOTION, s.r.o. | H11: 100 | I11: 3
A12: a - kriket - bežné výdavky | B12: 121/2024 | C12: 100002352 | D12: 2024-05-06 | E12: cestovné - vlak - Bratislava - Brezno, 16 osôb | G12: Ján Rýchly | H12: 50 | I12: 3
A13: a - kriket - bežné výdavky | B13: 125/2024 | C13: DF 26 | D13: 2024-05-07 | E13: stravovanie 20 osôb | G13: Reštaurácia "U vodníka", Brezno | H13: 200 | I13: 3
A14: a - kriket - bežné výdavky | B14: 126/2024 | C14: DF 29 | D14: 2024-05-08 | E14: prenájom plavárne | G14: STARZ, Bratislava | I14: 3
A15: a - kriket - bežné výdavky | B15: 128/2024 | C15: DF 30 | D15: 2024-05-09 | E15: nákup športového oblečenia - 15 ks | G15: Adidas, Brezno | H15: 505 | I15: 3
A16: a - kriket - bežné výdavky | D16: 2024-05-10 | E16: Pracovná cesta Názov: Majstrovstvá V4 v skúškach Termín: 3.9.2024 Miesto - mesto a štát: Varšava, Poľsko Spôsob dopravy: letecky/BUS Počet všetkých osôb na pracovnej ceste: 6, z toho: - športovci (+ navádzači): 1 - tréneri + rozhodcovia + vedúci výpravy + lekár + fyzioterapeut + masér + ): 1 - ostatné osoby (napr. sponzori, hostia): 4
A17: a - kriket - bežné výdavky | B17: 270/2024 | C17: 3252514 | D17: 2024-05-11 | E17: nákup leteniek - 6 ks | G17: Czech Airlines | I17: 2
A18: a - kriket - bežné výdavky | B18: 274/2024 | C18: D/258/2020 | D18: 2024-05-12 | E18: materiálové zabezpečenie pretekov - nákup 4 pušiek | G18: Puškárstvo - Ernest Bezaj, Malinovo | I18: 2
A19: a - kriket - bežné výdavky | B19: 275/2024 | C19: DF 32 | D19: 2024-05-13 | E19: občerstvenie - 6 osôb | G19: Messing Catering, s.r.o., Rovinka | H19: 1000 | I19: 2
A20: a - kriket - bežné výdavky | B20: 280/2024 | C20: DF 33 | D20: 2024-05-14 | E20: ubytovanie - 2 osoby | G20: Jozef Karát - privát, Šaľa | H20: 300 | I20: 2
A21: a - kriket - bežné výdavky | B21: 190/2024 | C21: DF50 | D21: 2024-05-15 | E21: prenájom miestnosti | G21: Double Tree Hotel, Bratislava | H21: 600 | I21: 2
A22: a - kriket - bežné výdavky | B22: 250/2024 | C22: 999 | D22: 2024-05-16 | E22: cestovné - Cerová - Trnava a späť, 3.9.2024, 2 osoby | G22: Železničná spoločnosť, a.s., Slovensko | H22: 25.9 | I22: 2
A23: a - kriket - bežné výdavky | B23: 251/2024 | C23: 258963 | D23: 2024-05-17 | E23: vecné ceny - poháre 3 ks | G23: Victory sport, s.r.o. | I23: 2
A24: a - kriket - bežné výdavky | D24: 2024-05-18 | E24: Ostatné
A25: a - kriket - bežné výdavky | B25: P1/V/316 | C25: P1/V/316 | D25: 2024-05-19 | E25: Hrubé mzdy vyplatené osobám (zamestnancom) vrátane odvodov zamestnávateľa za rok 2024 počet fyzických osôb: 5 | G25: osoba 1, osoba 4 - 7 | I25: 4
A26: a - kriket - bežné výdavky | B26: J/2024-20 | C26: 258 | D26: 2024-05-20 | E26: doplnky výživy - 21 športovcov | G26: Lekáreň Kozia, Bratislava | H26: 124 | I26: 2
A27: a - kriket - bežné výdavky | B27: DF2024/326 | C27: 1213275 | D27: 2024-05-21 | E27: oprava športtesteru | G27: TOP TREND Patrik Valo | H27: 19.1 | I27: 2
A28: a - kriket - bežné výdavky | B28: DF2024/193 | C28: 2007006035 | D28: 2024-05-22 | E28: havarijné poistenie 1-3/2021, EČV BA 258 KK | G28: Uniqa poisťovňa, a.s. | H28: 277.74 | I28: 4
A29: a - kriket - bežné výdavky | B29: 2024-12-01 | C29: 258 | D29: 2024-05-23 | E29: diaľničná nálepka na rok 2024 | G29: OMV, s.r.o. | H29: 50 | I29: 4
A30: a - kriket - bežné výdavky | B30: 199/2024 | C30: 32 | D30: 2024-05-24 | E30: poštovné | G30: Slovenská pošta, a.s. | H30: 9 | I30: 4
A31: a - kriket - bežné výdavky | B31: 2024-05-01 | C31: 3 | D31: 2024-05-25 | E31: nájom kancelárskych priestorov 2/2024 | G31: Slovenské združenie telesnej kultúry | H31: 10 | I31: 4
A32: a - kriket - bežné výdavky | B32: P1/V/259 | C32: 20123698752 | D32: 2024-05-26 | E32: regenerácia, 8 športovcov, 8/2024 | G32: SPORTMEDICAL s.r.o., Bratislava | H32: 500 | I32: 1
A33: a - kriket - bežné výdavky | B33: 235/2024 | C33: 40010 | D33: 2024-05-27 | E33: nákup materiálu - reprezentačná vlajka 1 ks | G33: ADAT, s.r.o. | H33: 71.2 | I33: 3
A34: a - kriket - bežné výdavky | B34: 206/2024 | C34: DF100/9/2020 | D34: 2024-05-28 | E34: refundácia nákladov na základe zmluvy pre CTM Žilina: Okresné kolo v skúškach, 7.8.2024, Žilina, 43 osôb, z toho: 37 športovcov, 1 tréner, 1 strážna služba, 1 masér, 3 technickí pracovníci, úhrada nákladov za stravovanie | G34: Prestige catering, s.r.o. | H34: 250 | I34: 1
A35: a - kriket - bežné výdavky | B35: 207/2024 | C35: DF500 | D35: 2024-05-29 | E35: prenájom plavárne, 4 dráhy, 8 hodín | G35: Mesto Žilina | H35: 320 | I35: 5
A36: a - kriket - bežné výdavky | B36: 305/2024 | C36: 14 | D36: 2024-05-30 | E36: upratovacie služby 5/2024 | G36: Boris Dubaj - živnostník | H36: 40 | I36: 4
A37: a - kriket - bežné výdavky | B37: 2024-01-01 | C37: V-2020-3 | D37: 2024-05-31 | E37: bankové poplatky | G37: SLSP, a.s. | H37: 25 | I37: 4
A38: a - kriket - bežné výdavky | B38: 2024-03-01 | C38: 980 | D38: 2024-06-01 | E38: poplatok medzinárodnej federácii za rok 2024 | G38: Internationale Asociation ..... | H38: 150 | I38: 4
A39: a - kriket - bežné výdavky | B39: 2024-04-01 | C39: 5 | D39: 2024-06-02 | E39: členský poplatok za rok 2024 | G39: Konfederácia športových zväzov | H39: 100 | I39: 4
A40: a - kriket - bežné výdavky | B40: 301/2024 | C40: 78954787 | D40: 2024-06-03 | E40: prenájom optického kábla 3/2024 | G40: e-Net, s.r.o. | H40: 74.1 | I40: 4
A41: a - kriket - bežné výdavky | B41: 330/2024 | C41: FD52 | D41: 2024-06-04 | E41: poplatky za telefón, 7/2024 | G41: Slovak telekom, a.s. | H41: 120 | I41: 2
A42: a - kriket - bežné výdavky | B42: V1-12 | C42: V1-12 | D42: 2024-06-05 | E42: PHM - služobné motorové vozidlo EČV: BA 111 SA Obdobie: 14.4. - 18.4.2024 Najazdené kilometre: 800 km | G42: Slovnaft, a.s. Bratislava | H42: 80 | I42: 3
A43: a - kriket - bežné výdavky | B43: 25 | C43: 358 | D43: 2024-06-06 | E43: trénerské služby 10/2024 | G43: Ondrej Pado - živnostník | H43: 600 | I43: 1
A44: a - kriket - bežné výdavky | B44: 3 | C44: 26985235 | D44: 2024-06-07 | E44: oprava služobného motorového vozidla, BA 222 AA | G44: Prvý autoservis, Bratislava | H44: 10 | I44: 3
A45: a - kriket - bežné výdavky | B45: P1/V/309 | C45: PP46130119 | D45: 2024-06-08 | E45: lekárske vyšetrenie - 10 športovcov | G45: Alpha medical a.s. | H45: 19 | I45: 2
A46: a - kriket - bežné výdavky | B46: 300/2024 | C46: 256 | D46: 2024-06-09 | E46: laboratórne vyšetrenie | G46: Nemocnica s poliklinikou, Prešov | H46: 230 | I46: 2
A47: a - kriket - bežné výdavky | B47: V/2024/3 | C47: DF2020/143 | D47: 2024-06-10 | E47: lyžiarsky servis - február 2024 | G47: Dušan Otčenáš - Martek Sport | H47: 175 | I47: 2
A48: a - kriket - bežné výdavky | B48: ID258 | C48: 369963 | D48: 2024-06-11 | E48: športová výstroj - tenisové rakety - 7 ks | G48: Sportissimo, Bratislava | I48: 1
A49: b - Sergej Bubka | D49: 2024-06-12 | E49: Pracovná cesta Názov: Výcvikový tábor Termín: 1.12.-20.12.2024 Miesto - mesto a štát: Moskva, Ruská federácia Spôsob dopravy: LET Počet všetkých osôb na pracovnej ceste: 2, z toho - športovci: 1 - tréner: 1 | I49: 10
A50: b - Sergej Bubka | B50: DF2024/309 | C50: 20200136 | D50: 2024-06-13 | E50: trénerské služby - 1.12-20.12.2024 | G50: Peter Konrád | H50: 360 | I50: 10
A51: b - Sergej Bubka | B51: R/2024/11 | C51: 20123698752 | D51: 2024-06-14 | E51: regenerácia | G51: SPORTMEDICAL s.r.o., Bratislava | H51: 500 | I51: 10
A52: b - Sergej Bubka | B52: 2024-08-01 | C52: 369 | D52: 2024-06-15 | E52: prenájom tenisového kurtu 1.2.2024 | G52: Národné tenisové centrum, a.s. | H52: 20 | I52: 10
A53: b - Sergej Bubka | B53: 40/2024 | C53: 25412 | D53: 2024-06-16 | E53: doplnky výživy | G53: Sunpharma, s.r.o. | H53: 25 | I53: 10
A54: a - kriket - mikrobus | B54: 2024-09-01 | C54: 4/2020/DU | D54: 2024-06-17 | E54: nákup mikrobusu, EVČ BA 111 SS (faktúra doložená v prílohe vyúčtovania) | G54: AUDI centrum, s.r.o. | H54: 20000 | I54: 5
A55: a - kriket - hala | B55: 89/2024 | C55: 36/14 | D55: 2024-06-18 | E55: rekonštrukcia športovej haly v Čadci - opláštenie tribúny, výmena sedadiel, rekonštrukcia šatní a sociálnych zariadení (faktúra doložená v prílohe vyúčtovania) | G55: Rekostav, s.r.o., Čadca | H55: 30000 | I55: 5
A56: (1) - výber a príprava športových talentov | D56: 2024-06-19 | E56: Pracovná cesta Názov: Sústredenie dievčat Termín: 03.-07.06.2024 Miesto - mesto a štát: Košice Spôsob dopravy: vlak Počet všetkých osôb na pracovnej ceste: 48, z toho: - športovci (+ navádzači): 44 - tréneri + rozhodcovia + vedúci výpravy + lekár + fyzioterapeut + masér + ): 3 - ostatné osoby (napr. sponzori, hostia): 1
A57: a - kriket - bežné výdavky | B57: ID082 | C57: 555 | D57: 2024-06-20 | E57: doprava, BUS, 2.7.2024, 7.6.2021, 39 osôb | G57: Autodoprava Charvát, Veľké Bielice | H57: 123 | I57: 2
A58: a - kriket - bežné výdavky | B58: ID100 | C58: 444 | D58: 2024-06-21 | E58: cestovné, VLAK, Banská Bystrica - Košice, 3.7.2024, 8 osôb | G58: Ján Rýchly, prezident zväzu | H58: 1600 | I58: 2
A59: a - kriket - bežné výdavky | D59: 2024-06-22 | E59: Ostatné | I59: 2
A60: a - kriket - bežné výdavky | B60: FA213090 | C60: 1300072 | D60: 2024-06-23 | E60: potlač 4 ks športových dresov | G60: RES Promotion, s.r.o., Košice 1 | H60: 21.36 | I60: 2
A61: a - kriket - bežné výdavky | B61: 310/2024 | C61: DF2555 | D61: 2024-06-24 | E61: regenerácia 16.5.2024, 1 športovec | G61: Fyziopraktik, s.r.o. | H61: 20 | I61: 2
A62: a - kriket - bežné výdavky | B62: 32/2024 | C62: PZ5 | D62: 2024-06-25 | E62: trénerská činnosť 12/2024 | G62: Henrich Madaj - živnostník | H62: 200 | I62: 2
A63: a - kriket - bežné výdavky | B63: 25/2024 | C63: 254 | D63: 2024-06-26 | E63: Materiálové vybavenie športovcov CTM Žilina, náhradné súčiastky na bicykel | G63: Bottico, s.r.o. Otrokovice | H63: 201.5 | I63: 2
A64: a - kriket - bežné výdavky | B64: 288/2024 | C64: 141 | D64: 2024-06-27 | E64: regenerácia športovcov CTM Bobot, 30 hodín | G64: Slovenské liečebné kúpele Rajecké Teplice, a.s. | H64: 1010 | I64: 2
A65: a - kriket - bežné výdavky | B65: ID221 | C65: 25 | D65: 2024-06-28 | E65: refundácia nákladov na základe zmluvy za centrum talentovanej mládeže Bošáca: sústredenie mladších žiačok, 30.6.-7.7.2024, Bardejov, ubytovanie, 12 osôb | G65: Ubytovňa Nádej, Bardejov | H65: 1330 | I65: 2
A66: d - finančné odmeny športovcom a trénerom - Eleonóra Sihoťová | B66: 2024-12-01 | C66: 760998 | D66: 2024-06-29 | E66: odmena športovcom za výsledky dosiahnuté v roku 2024 | G66: Peter Novák | H66: 1000 | I66: 10
A67: d - finančné odmeny športovcom a trénerom - Miroslav Hurban | B67: 13/2024 | C67: 760852 | D67: 2024-06-30 | E67: odmena trénerovi mládeže | G67: Miroslav Hurban | H67: 200 | I67: 10
A68: d- Národná súťaž v skúškach | D68: 2024-07-01 | E68: Organizovanie podujatia Názov: Národná súťaž v skúškach Termín: 15.06.2024 Miesto - mesto a štát: Pezinok Počet zúčastnených osôb (okrem divákov): 547 | I68: 10
A69: d- Národná súťaž v skúškach | B69: 66/2024 | C69: 25 | D69: 2024-07-02 | E69: tlač diplomov A4 547 ks | G69: Mouton, s.r.o. Žilina | H69: 147.35 | I69: 10
A70: d- Národná súťaž v skúškach | B70: 361/2024 | C70: 36 | D70: 2024-07-03 | E70: technické a organizačné zabezpečenie súťaže - úprava pretekárskej dráhy, stavba pódia, organizácia záverečného ceremoniálu, moderovanie | G70: Dušan Tesár - Select Managering, s.r.o. | H70: 2500 | I70: 10
A71: d- Národná súťaž v skúškach | B71: 98/2024 | C71: 14 | D71: 2024-07-04 | E71: nákup športového vybavenia - 20 ks lôpt | G71: Sport, s.r.o. Poprad | H71: 1200 | I71: 10
A72: d- Národná súťaž v skúškach | B72: PC2024/36 | C72: 56/C | D72: 2024-07-05 | E72: PHM - služobné motorové vozidlo EČV: BL 363 AA Obdobie: 10.6.-15.6.2024 Najazdené kilometre: 600 | G72: OMV, s.r.o., Bratislava | H72: 350 | I72: 10
A73: d- Národná súťaž v skúškach | D73: 2024-07-06 | E73: Organizovanie podujatia Názov: M-SR žiakov ZŠ v skúškach Termín: 15.05.2024 Miesto - mesto a štát: Nitra Počet zúčastnených osôb (okrem divákov): 220 | I73: 10
A74: d- Národná súťaž v skúškach | B74: 380/2024 | C74: 952 | D74: 2024-07-07 | E74: športový materiál - bedmintonové rakety, košíky | G74: Funny sport, s.r.o., Prešov | I74: 10
A75: d- Národná súťaž v skúškach | B75: 390/2024 | C75: 3852/2020 | D75: 2024-07-08 | E75: zdravotné služby | G75: DZS OPTIMUS, s.r.o. | I75: 10
A76: d- obnova turistických značkovaných trás a údržba turistických informačných miest | B76: 400/2024 | C76: V582/14 | D76: 2024-07-09 | E76: materiál na obnovu značkovania - okres Poprad - farby, štetce, stĺpiky | G76: Color, s.r.o., Poprad | H76: 10 | I76: 10

Sheet Príjmy
A1: Aktualizovaná suma prostriedkov poskytnutých ministerstvom k dátumu | C1: 2024-01-31 | G1: 2024-01-31
G2: 2024-02-29
A3: Prijímateľ | B3: =INDEX(Adr!B:B,Doklady!B102+1) -> Slovenský krasokorčuliarsky zväz | G3: 2024-03-31
A4: IČO: | B4: =RIGHT("0000"&INDEX(Adr!A:A,Doklady!B102+1),8) -> 31805540 | G4: 2024-04-30
A5: Sídlo: | B5: =INDEX(Adr!D:D,Doklady!B102+1)&", "&INDEX(Adr!E:E,Doklady!B102+1) -> Záhradnícka 752/95, Bratislava | G5: 2024-05-31
G6: 2024-06-30
G7: 2024-07-31
G8: 2024-08-31
A9: PPG | B9: PPG | C9: Poskytnuté prostriedky | G9: 2024-09-30
A10: 026 01 | B10: Šport pre všetkých, školský a univerzitný šport | C10: =+Spolu!C10 -> 0 | G10: 2024-10-31
A11: 026 02 | B11: Uznané športy | C11: =+Spolu!C11 -> 244015 | G11: 2024-11-30
A12: 026 03 | B12: Národné športové projekty | C12: 0 | G12: 2024-12-31
A13: 026 04 | B13: Športová infraštruktúra | C13: =+Spolu!C13 -> 0
A14: 026 05 | B14: Prierezové činnosti v športe | C14: =+Spolu!C14 -> 0
A15: SPOLU | C15: =SUM(C10:C14) -> 244015
A17: Prijímateľ prostriedkov zo štátneho rozpočtu je povinný priebežne zverejňovať informácie o prijatí a spôsobe ich použitia najneskôr do 25. dňa kalendárneho mesiaca nasledujúceho po kalendárnom mesiaci, v ktorom boli prijaté alebo použité ( § 65, ods. 6 zákona č. 440/2015 Z. z. o športe a o zmene a doplnení niektorých zákonov v znení neskorších predpisov).
A61: 15

Sheet Spolu
A1: Priebežné čerpanie a vyúčtovanie finančných prostriedkov poskytnutých zo štátneho rozpočtu v oblasti športu v roku 2024
B3: Prijímateľ dotácie: | C3: =INDEX(Adr!B2:B111,Doklady!B102) -> Slovenský krasokorčuliarsky zväz | I3: =Doklady!I100 -> V1
B4: IČO: | C4: =INDEX(Adr!A2:A154,Doklady!B102) -> 31805540 | I4: =Doklady!I101 -> 2024-01-25
B5: Právna forma: | C5: =INDEX(Adr!C2:C154,Doklady!B102) -> občianske združenie
B6: Sídlo: | C6: =INDEX(Adr!D2:D154,Doklady!B102)&", "&INDEX(Adr!E2:E154,Doklady!B102)&", "&INDEX(Adr!F2:F154,Doklady!B102) -> Záhradnícka 752/95, Bratislava, 821 08
A9: PPG | B9: Podprogram | C9: Poskytnuté (eur) | D9: Vyúčtované (eur) | E9: Povinnosť vrátiť (eur)
A10: 026 01 | B10: Šport pre všetkých, školský a univerzitný šport | C10: =SUMIF(FP!J:J,Doklady!$B$1&A10,FP!D:D) -> 0 | D10: =C10-E10 -> 0 | E10: =SUMIF(K:K,A10,I:I) -> 0 | L10: AAA
A11: 026 02 | B11: Uznané športy | C11: =SUMIF(FP!J:J,Doklady!$B$1&A11,FP!D:D) -> 244015 | D11: =+C11-E11 -> 31678.95 | E11: =+I39-I42+I44-I47 -> 212336.05 | L11: =L41 -> a - krasokorčuľovanie - bežné transfery
A12: 026 03 | B12: Národné športové projekty | C12: =SUMIF(FP!J:J,Doklady!$B$1&A12,FP!D:D) -> 0 | D12: =C12-E12 -> 0 | E12: =SUMIF(K:K,A12,I:I) -> 0 | L12: =L42 -> a - krasokorčuľovanie - kapitálové transfery
A13: 026 04 | B13: Športová infraštruktúra | C13: =SUMIF(FP!J:J,Doklady!$B$1&A13,FP!D:D) -> 0 | D13: =C13-E13 -> 0 | E13: =SUMIF(K:K,A13,I:I) -> 0 | L13: =L46 -> 2
A14: 026 05 | B14: Prierezové činnosti v športe | C14: =SUMIF(FP!J:J,Doklady!$B$1&A14,FP!D:D) -> 0 | D14: =C14-E14 -> 0 | E14: =SUMIF(K:K,A14,I:I) -> 0 | L14: =L47 -> 2
A16: Účel | B16: Názov | I16: Suma
A17: a | B17: príspevok uznaným športom | I17: =SUMIF(FP!I:I,Doklady!$B$1&A17,FP!D:D) -> 244015
A18: b | B18: príspevok Slovenskému olympijskému a športovému výboru | I18: =SUMIF(FP!I:I,Doklady!$B$1&A18,FP!D:D) -> 0
A19: c | B19: príspevok Slovenskému paralympijskému výboru | I19: =SUMIF(FP!I:I,Doklady!$B$1&A19,FP!D:D) -> 0
A20: d | B20: príspevok športovcom top tímu | I20: =SUMIF(FP!I:I,Doklady!$B$1&A20,FP!D:D) -> 0
A21: e | B21: organizácia významnej súťaže alebo účasť na významnej súťaži podľa § 3 písm. h) vrátane prípravy na túto súťaž | I21: =SUMIF(FP!I:I,Doklady!$B$1&A21,FP!D:D) -> 0
A22: f | B22: plnenie úloh verejného záujmu v športe | I22: =SUMIF(FP!I:I,Doklady!$B$1&A22,FP!D:D) -> 0
A23: g | B23: rozvoj športov, ktoré nie sú uznanými podľa zákona č. 440/2015 Z. z. | I23: =SUMIF(FP!I:I,Doklady!$B$1&A23,FP!D:D) -> 0
A24: h | B24: podpora a rozvoj turistických a cykloturistických trás | I24: =SUMIF(FP!I:I,Doklady!$B$1&A24,FP!D:D) -> 0
A25: i | B25: finančné odmeny športovcom a trénerom mládeže za dosiahnuté výsledky | I25: =SUMIF(FP!I:I,Doklady!$B$1&A25,FP!D:D) -> 0
A26: j | B26: projekty školského športu, univerzitného športu a športu pre všetkých | I26: =SUMIF(FP!I:I,Doklady!$B$1&A26,FP!D:D) -> 0
A27: k | B27: výstavba, modernizácia a rekonštrukcia športovej infraštruktúry národného významu | I27: =SUMIF(FP!I:I,Doklady!$B$1&A27,FP!D:D) -> 0
A28: l | B28: podpora zdravotne postihnutých športovcov | I28: =SUMIF(FP!I:I,Doklady!$B$1&A28,FP!D:D) -> 0
A29: m | I29: =SUMIF(FP!I:I,Doklady!$B$1&A29,FP!D:D) -> 0
A30: n | I30: =SUMIF(FP!I:I,Doklady!$B$1&A30,FP!D:D) -> 0
A31: o | I31: =SUMIF(FP!I:I,Doklady!$B$1&A31,FP!D:D) -> 0
A32: p | I32: =SUMIF(FP!I:I,Doklady!$B$1&A32,FP!D:D) -> 0
A33: q | I33: =SUMIF(FP!I:I,Doklady!$B$1&A33,FP!D:D) -> 0
A34: r | I34: =SUMIF(FP!I:I,Doklady!$B$1&A34,FP!D:D) -> 0
A36: Použitie príspevku uznanému športu | C36: 1 | D36: 2 | E36: 3 | F36: 4 | G36: 5 | H36: 5
A38: Účel | B38: ="Šport "&K40 -> Šport krasokorčuľovanie | C38: mládež 23 MIN.15% | D38: talenty MIN.20% | E38: reprezentácia MIN.25% | F38: prevádzka MAX.20% | G38: ostatné úlohy | H38: kapitálové transfery z PUŠ | I38: SPOLU | L38: =COUNTIF(FP!N:N,Doklady!B1&"aB") -> 1
A39: a | B39: Poskytnutý príspevok uznanému športu | C39: =I39*0 -> 0 | D39: =I39*0 -> 0 | E39: =I39*0 -> 0 | F39: =+I39*0.2 -> 48803 | G39: =+MAX(I39-C39-D39-E39-F39-H39,0) -> 195212 | H39: =+IFERROR(VLOOKUP(K40&" - kapitálové transfery",B$53:C$90,2,0),0) -> 0 | I39: =SUMIF(FP!K:K,K40,FP!D:D) -> 244015 | L39: =COUNTIF(FP!N:N,Doklady!B1&"aK") -> 0
A40: a | B40: Vyúčtovaný príspevok uznanému športu | C40: =DSUM(Doklady!A103:J10000,"GGG",Spolu!L40:M42) -> 0 | D40: =DSUM(Doklady!A103:J10000,"GGG",Spolu!N40:O42) -> 11110 | E40: =DSUM(Doklady!A103:J10000,"GGG",Spolu!P40:Q42) -> 14547.57 | F40: =DSUM(Doklady!A103:J10000,"GGG",Spolu!R40:S42) -> 6021.38 | G40: =DSUM(Doklady!A103:J10000,"GGG",Spolu!T40:U42)-H40 -> 0 | H40: =+IFERROR(VLOOKUP(K40&" - kapitálové transfery",B$53:D$90,3,0),0) -> 0 | I40: =+C40+D40+E40+F40+G40+H40 -> 31678.95 | J40: =+K45 -> . | K40: =IF(L38>0,INDEX(FP!K:K,Doklady!B2),".") -> krasokorčuľovanie | L40: AAA | M40: HHH | N40: AAA | O40: HHH | P40: AAA | Q40: HHH | R40: AAA | S40: HHH | T40: AAA | U40: HHH
A41: a | B41: ROZDIEL | C41: =MAX(C39-C40,0) -> 0 | D41: =MAX(D39-D40,0) -> 0 | E41: =MAX(E39-E40,0) -> 0 | F41: =MIN(I39,MAX(-F39+F40,0)) -> 0 | G41: =MIN(J39,MAX(-G39+G40+MIN(F40-F39,0),0)) -> 0 | H41: =MAX(H39-H40,0) -> 0 | I41: =+I39-I42 -> 212336.05 | J41: =+K46 -> 0 | K41: =+I41-H41 -> 212336.05 | L41: =IF(L38>0,"a - "&INDEX(FP!C:C,Doklady!B2),2) -> a - krasokorčuľovanie - bežné transfery | M41: 1 | N41: =+L41 -> a - krasokorčuľovanie - bežné transfery | O41: 2 | P41: =+L41 -> a - krasokorčuľovanie - bežné transfery | Q41: 3 | R41: =+L41 -> a - krasokorčuľovanie - bežné transfery | S41: 4 | T41: =+L41 -> a - krasokorčuľovanie - bežné transfery | U41: 5
A42: a | B42: Uznaná suma vyúčtovaných FP | C42: =+C40 -> 0 | D42: =+D40 -> 11110 | E42: =+E40 -> 14547.57 | F42: =+MIN(F39:F40) -> 6021.38 | G42: =+MIN(G39+MAX(F39-F40,0)-MAX(E40-E39,0)-MAX(D40-D39,0)-MAX(C40-C39,0),G40) -> 0 | H42: =+MIN(H39:H40) -> 0 | I42: =+C42+D42+E42+MIN(F39:F40)+G42+H42 -> 31678.95 | J42: =+K47 -> 0 | K42: =+I42-H42 -> 31678.95 | L42: =+SUBSTITUTE(L41,"bežné","kapitálové") -> a - krasokorčuľovanie - kapitálové transfery | M42: 1 | N42: =+L42 -> a - krasokorčuľovanie - kapitálové transfery | O42: 2 | P42: =+L42 -> a - krasokorčuľovanie - kapitálové transfery | Q42: 3 | R42: =+L42 -> a - krasokorčuľovanie - kapitálové transfery | S42: 4 | T42: =+L42 -> a - krasokorčuľovanie - kapitálové transfery | U42: 5
A43: Účel | B43: =IF(L38>2,"Šport "&INDEX(FP!K:K,Doklady!B2+2),"Šport "&K45) -> Šport . | C43: mládež 23 MIN.15% | D43: talenty MIN.20% | E43: reprezentácia MIN.25% | F43: prevádzka MAX.20% | G43: ostatné úlohy | H43: kapitálové transfery z PUŠ | I43: SPOLU | L43: =L38-1 -> 0
A44: a | B44: Poskytnutý príspevok uznanému športu | C44: =I44*0 -> 0 | D44: =I44*0 -> 0 | E44: =I44*0 -> 0 | F44: =+I44*0.2 -> 0 | G44: =+MAX(I44-C44-D44-E44-F44-H44,0) -> 0 | H44: =+IFERROR(VLOOKUP(K45&" - kapitálové transfery",B$53:C$90,2,0),0) -> 0 | I44: =SUMIF(FP!K:K,K45,FP!D:D) -> 0
A45: a | B45: Vyúčtovaný príspevok uznanému športu | C45: =DSUM(Doklady!A103:J10000,"GGG",Spolu!L45:M47) -> 0 | D45: =DSUM(Doklady!A103:J10000,"GGG",Spolu!N45:O47) -> 0 | E45: =DSUM(Doklady!A103:J10000,"GGG",Spolu!P45:Q47) -> 0 | F45: =DSUM(Doklady!A103:J10000,"GGG",Spolu!R45:S47) -> 0 | G45: =DSUM(Doklady!A103:J10000,"GGG",Spolu!T45:U47)-H45 -> 0 | H45: =+IFERROR(VLOOKUP(K45&" - kapitálové transfery",B$53:D$90,3,0),0) -> 0 | I45: =+C45+D45+E45+F45+G45+H45 -> 0 | K45: =IF(L38>1,INDEX(FP!K:K,Doklady!B2+1),".") -> . | L45: AAA | M45: HHH | N45: AAA | O45: HHH | P45: AAA | Q45: HHH | R45: AAA | S45: HHH | T45: AAA | U45: HHH
A46: a | B46: ROZDIEL | C46: =MAX(C44-C45,0) -> 0 | D46: =MAX(D44-D45,0) -> 0 | E46: =MAX(E44-E45,0) -> 0 | F46: =MIN(I44,MAX(-F44+F45,0)) -> 0 | G46: =MIN(J44,MAX(-G44+G45+MIN(F45-F44,0),0)) -> 0 | H46: =MAX(H44-H45,0) -> 0 | I46: =+I44-I47 -> 0 | K46: =+I46-H46 -> 0 | L46: =IF(L43>0,"a - "&INDEX(FP!C:C,Doklady!B2+1),2) -> 2 | M46: 1 | N46: =+L46 -> 2 | O46: 2 | P46: =+L46 -> 2 | Q46: 3 | R46: =+L46 -> 2 | S46: 4 | T46: =+L46 -> 2 | U46: 5
A47: a | B47: Uznaná suma vyúčtovaných FP | C47: =+C45 -> 0 | D47: =+D45 -> 0 | E47: =+E45 -> 0 | F47: =+MIN(F44:F45) -> 0 | G47: =+MIN(G44+MAX(F44-F45,0)-MAX(E45-E44,0)-MAX(D45-D44,0)-MAX(C45-C44,0),G45) -> 0 | H47: =+MIN(H44:H45) -> 0 | I47: =+C47+D47+E47+MIN(F44:F45)+G47+H47 -> 0 | K47: =+I47-H47 -> 0 | L47: =+SUBSTITUTE(L46,"bežné","kapitálové") -> 2 | M47: 1 | N47: =+L47 -> 2 | O47: 2 | P47: =+L47 -> 2 | Q47: 3 | R47: =+L47 -> 2 | S47: 4 | T47: =+L47 -> 2 | U47: 5
A52: Účel | B52: Účel poskytnutých finančných prostriedkov | C52: Poskytnuté FP | D52: Vyúčtované FP | E52: Povinné SF | F52: Vyúčtované SF | G52: Uznaná suma vyúčtov. FP | I52: Povinnosť vrátiť | K52: PPG | L52: BK | M52: PPGBK
A53: =Doklady!D1 -> a | B53: =Doklady!H1 -> krasokorčuľovanie - bežné transfery | C53: =IF(A53<>"",INDEX(FP!D:D,Doklady!B$2+(ROW()-53)),"") -> 244015 | D53: =IF(A53<>"",Doklady!I1-Doklady!J1,"") -> 31678.95 | E53: =IF(A53<>"",MIN(D53,C53)*Doklady!C1/(1-Doklady!C1),"") -> 0 | F53: =IF(A53<>"",Doklady!J1,"") -> 0 | G53: =+IFERROR(HLOOKUP(IF(RIGHT(B53,15)="bežné transfery",LEFT(B53,LEN(B53)-18),0),$J$40:$K$42,3,0),MIN(C53,D53)) -> 31678.95 | I53: =IF(A53<>"",MAX(IF(G53<C53,C53-G53,0)+IF(F53<E53,E53-F53,0),0),0) -> 212336.05 | J53: =IF(D53>C53,"Vyúčtované prostriedky nemôžu byť väčšie ako poskytnuté. Opravte v hárku ""Doklady""","") ->  | K53: =Doklady!F1 -> 026 02 | L53: =IF(A53<>"",INDEX(FP!H:H,Doklady!B$2+(ROW()-52)),"") -> B | M53: =K53&L53 -> 026 02B
A54: =Doklady!D2 ->  | B54: =Doklady!H2 ->  | C54: =IF(A54<>"",INDEX(FP!D:D,Doklady!B$2+(ROW()-53)),"") ->  | D54: =IF(A54<>"",Doklady!I2-Doklady!J2,"") ->  | E54: =IF(A54<>"",MIN(D54,C54)*Doklady!C2/(1-Doklady!C2),"") ->  | F54: =IF(A54<>"",Doklady!J2,"") ->  | G54: =+IFERROR(HLOOKUP(IF(RIGHT(B54,15)="bežné transfery",LEFT(B54,LEN(B54)-18),0),$J$40:$K$42,3,0),MIN(C54,D54)) -> 0 | I54: =IF(A54<>"",MAX(IF(G54<C54,C54-G54,0)+IF(F54<E54,E54-F54,0),0),0) -> 0 | J54: =IF(D54>C54,"Vyúčtované prostriedky nemôžu byť väčšie ako poskytnuté. Opravte v hárku ""Doklady""","") ->  | K54: =Doklady!F2 ->  | L54: =IF(A54<>"",INDEX(FP!H:H,Doklady!B$2+(ROW()-52)),"") ->  | M54: =K54&L54 -> 
A55: =Doklady!D3 ->  | B55: =Doklady!H3 ->  | C55: =IF(A55<>"",INDEX(FP!D:D,Doklady!B$2+(ROW()-53)),"") ->  | D55: =IF(A55<>"",Doklady!I3-Doklady!J3,"") ->  | E55: =IF(A55<>"",MIN(D55,C55)*Doklady!C3/(1-Doklady!C3),"") ->  | F55: =IF(A55<>"",Doklady!J3,"") ->  | G55: 0 | I55: 0 | K55: =Doklady!F3 ->  | L55: =IF(A55<>"",INDEX(FP!H:H,Doklady!B$2+(ROW()-52)),"") -> 
A56: =Doklady!D4 ->  | B56: =Doklady!H4 ->  | C56: =IF(A56<>"",INDEX(FP!D:D,Doklady!B$2+(ROW()-53)),"") ->  | D56: =IF(A56<>"",Doklady!I4-Doklady!J4,"") ->  | E56: =IF(A56<>"",MIN(D56,C56)*Doklady!C4/(1-Doklady!C4),"") ->  | F56: =IF(A56<>"",Doklady!J4,"") ->  | G56: 0 | I56: 0 | K56: =Doklady!F4 ->  | L56: =IF(A56<>"",INDEX(FP!H:H,Doklady!B$2+(ROW()-52)),"") -> 
A57: =Doklady!D5 ->  | B57: =Doklady!H5 ->  | C57: =IF(A57<>"",INDEX(FP!D:D,Doklady!B$2+(ROW()-53)),"") ->  | D57: =IF(A57<>"",Doklady!I5-Doklady!J5,"") ->  | E57: =IF(A57<>"",MIN(D57,C57)*Doklady!C5/(1-Doklady!C5),"") ->  | F57: =IF(A57<>"",Doklady!J5,"") ->  | G57: 0 | I57: 0 | K57: =Doklady!F5 ->  | L57: =IF(A57<>"",INDEX(FP!H:H,Doklady!B$2+(ROW()-52)),"") -> 
A58: =Doklady!D6 ->  | B58: =Doklady!H6 ->  | C58: =IF(A58<>"",INDEX(FP!D:D,Doklady!B$2+(ROW()-53)),"") ->  | D58: =IF(A58<>"",Doklady!I6-Doklady!J6,"") ->  | E58: =IF(A58<>"",MIN(D58,C58)*Doklady!C6/(1-Doklady!C6),"") ->  | F58: =IF(A58<>"",Doklady!J6,"") ->  | G58: 0 | I58: 0 | K58: =Doklady!F6 ->  | L58: =IF(A58<>"",INDEX(FP!H:H,Doklady!B$2+(ROW()-52)),"") -> 
A59: =Doklady!D7 ->  | B59: =Doklady!H7 ->  | C59: =IF(A59<>"",INDEX(FP!D:D,Doklady!B$2+(ROW()-53)),"") ->  | D59: =IF(A59<>"",Doklady!I7-Doklady!J7,"") ->  | E59: =IF(A59<>"",MIN(D59,C59)*Doklady!C7/(1-Doklady!C7),"") ->  | F59: =IF(A59<>"",Doklady!J7,"") ->  | G59: 0 | I59: 0 | K59: =Doklady!F7 ->  | L59: =IF(A59<>"",INDEX(FP!H:H,Doklady!B$2+(ROW()-52)),"") -> 
A60: =Doklady!D8 ->  | B60: =Doklady!H8 ->  | C60: =IF(A60<>"",INDEX(FP!D:D,Doklady!B$2+(ROW()-53)),"") ->  | D60: =IF(A60<>"",Doklady!I8-Doklady!J8,"") ->  | E60: =IF(A60<>"",MIN(D60,C60)*Doklady!C8/(1-Doklady!C8),"") ->  | F60: =IF(A60<>"",Doklady!J8,"") ->  | G60: 0 | I60: 0 | K60: =Doklady!F8 ->  | L60: =IF(A60<>"",INDEX(FP!H:H,Doklady!B$2+(ROW()-52)),"") -> 
A61: =Doklady!D9 ->  | B61: =Doklady!H9 ->  | C61: =IF(A61<>"",INDEX(FP!D:D,Doklady!B$2+(ROW()-53)),"") ->  | D61: =IF(A61<>"",Doklady!I9-Doklady!J9,"") ->  | E61: =IF(A61<>"",MIN(D61,C61)*Doklady!C9/(1-Doklady!C9),"") ->  | F61: =IF(A61<>"",Doklady!J9,"") ->  | G61: 0 | I61: 0 | K61: =Doklady!F9 ->  | L61: =IF(A61<>"",INDEX(FP!H:H,Doklady!B$2+(ROW()-52)),"") -> 
A62: =Doklady!D10 ->  | B62: =Doklady!H10 ->  | C62: =IF(A62<>"",INDEX(FP!D:D,Doklady!B$2+(ROW()-53)),"") ->  | D62: =IF(A62<>"",Doklady!I10-Doklady!J10,"") ->  | E62: =IF(A62<>"",MIN(D62,C62)*Doklady!C10/(1-Doklady!C10),"") ->  | F62: =IF(A62<>"",Doklady!J10,"") ->  | G62: 0 | I62: 0 | K62: =Doklady!F10 ->  | L62: =IF(A62<>"",INDEX(FP!H:H,Doklady!B$2+(ROW()-52)),"") -> 
A63: =Doklady!D11 ->  | B63: =Doklady!H11 ->  | C63: =IF(A63<>"",INDEX(FP!D:D,Doklady!B$2+(ROW()-53)),"") ->  | D63: =IF(A63<>"",Doklady!I11-Doklady!J11,"") ->  | E63: =IF(A63<>"",MIN(D63,C63)*Doklady!C11/(1-Doklady!C11),"") ->  | F63: =IF(A63<>"",Doklady!J11,"") ->  | G63: 0 | I63: 0 | K63: =Doklady!F11 ->  | L63: =IF(A63<>"",INDEX(FP!H:H,Doklady!B$2+(ROW()-52)),"") -> 
A64: =Doklady!D12 ->  | B64: =Doklady!H12 ->  | C64: =IF(A64<>"",INDEX(FP!D:D,Doklady!B$2+(ROW()-53)),"") ->  | D64: =IF(A64<>"",Doklady!I12-Doklady!J12,"") ->  | E64: =IF(A64<>"",MIN(D64,C64)*Doklady!C12/(1-Doklady!C12),"") ->  | F64: =IF(A64<>"",Doklady!J12,"") ->  | G64: 0 | I64: 0 | J64: ; | K64: =Doklady!F12 ->  | L64: =IF(A64<>"",INDEX(FP!H:H,Doklady!B$2+(ROW()-52)),"") -> 
A65: =Doklady!D13 ->  | B65: =Doklady!H13 ->  | C65: =IF(A65<>"",INDEX(FP!D:D,Doklady!B$2+(ROW()-53)),"") ->  | D65: =IF(A65<>"",Doklady!I13-Doklady!J13,"") ->  | E65: =IF(A65<>"",MIN(D65,C65)*Doklady!C13/(1-Doklady!C13),"") ->  | F65: =IF(A65<>"",Doklady!J13,"") ->  | G65: 0 | I65: 0 | K65: =Doklady!F13 ->  | L65: =IF(A65<>"",INDEX(FP!H:H,Doklady!B$2+(ROW()-52)),"") -> 
A66: =Doklady!D14 ->  | B66: =Doklady!H14 ->  | C66: =IF(A66<>"",INDEX(FP!D:D,Doklady!B$2+(ROW()-53)),"") ->  | D66: =IF(A66<>"",Doklady!I14-Doklady!J14,"") ->  | E66: =IF(A66<>"",MIN(D66,C66)*Doklady!C14/(1-Doklady!C14),"") ->  | F66: =IF(A66<>"",Doklady!J14,"") ->  | G66: 0 | I66: 0 | K66: =Doklady!F14 ->  | L66: =IF(A66<>"",INDEX(FP!H:H,Doklady!B$2+(ROW()-52)),"") -> 
A67: =Doklady!D15 ->  | B67: =Doklady!H15 ->  | C67: =IF(A67<>"",INDEX(FP!D:D,Doklady!B$2+(ROW()-53)),"") ->  | D67: =IF(A67<>"",Doklady!I15-Doklady!J15,"") ->  | E67: =IF(A67<>"",MIN(D67,C67)*Doklady!C15/(1-Doklady!C15),"") ->  | F67: =IF(A67<>"",Doklady!J15,"") ->  | G67: 0 | I67: 0 | K67: =Doklady!F15 ->  | L67: =IF(A67<>"",INDEX(FP!H:H,Doklady!B$2+(ROW()-52)),"") -> 
A68: =Doklady!D16 ->  | B68: =Doklady!H16 ->  | C68: =IF(A68<>"",INDEX(FP!D:D,Doklady!B$2+(ROW()-53)),"") ->  | D68: =IF(A68<>"",Doklady!I16-Doklady!J16,"") ->  | E68: =IF(A68<>"",MIN(D68,C68)*Doklady!C16/(1-Doklady!C16),"") ->  | F68: =IF(A68<>"",Doklady!J16,"") ->  | G68: 0 | I68: 0 | K68: =Doklady!F16 ->  | L68: =IF(A68<>"",INDEX(FP!H:H,Doklady!B$2+(ROW()-52)),"") -> 
A69: =Doklady!D17 ->  | B69: =Doklady!H17 ->  | C69: =IF(A69<>"",INDEX(FP!D:D,Doklady!B$2+(ROW()-53)),"") ->  | D69: =IF(A69<>"",Doklady!I17-Doklady!J17,"") ->  | E69: =IF(A69<>"",MIN(D69,C69)*Doklady!C17/(1-Doklady!C17),"") ->  | F69: =IF(A69<>"",Doklady!J17,"") ->  | G69: 0 | I69: 0 | K69: =Doklady!F17 ->  | L69: =IF(A69<>"",INDEX(FP!H:H,Doklady!B$2+(ROW()-52)),"") -> 
A70: =Doklady!D18 ->  | B70: =Doklady!H18 ->  | C70: =IF(A70<>"",INDEX(FP!D:D,Doklady!B$2+(ROW()-53)),"") ->  | D70: =IF(A70<>"",Doklady!I18-Doklady!J18,"") ->  | E70: =IF(A70<>"",MIN(D70,C70)*Doklady!C18/(1-Doklady!C18),"") ->  | F70: =IF(A70<>"",Doklady!J18,"") ->  | G70: 0 | I70: 0 | K70: =Doklady!F18 ->  | L70: =IF(A70<>"",INDEX(FP!H:H,Doklady!B$2+(ROW()-52)),"") -> 
A71: =Doklady!D19 ->  | B71: =Doklady!H19 ->  | C71: =IF(A71<>"",INDEX(FP!D:D,Doklady!B$2+(ROW()-53)),"") ->  | D71: =IF(A71<>"",Doklady!I19-Doklady!J19,"") ->  | E71: =IF(A71<>"",MIN(D71,C71)*Doklady!C19/(1-Doklady!C19),"") ->  | F71: =IF(A71<>"",Doklady!J19,"") ->  | G71: 0 | I71: 0 | K71: =Doklady!F19 ->  | L71: =IF(A71<>"",INDEX(FP!H:H,Doklady!B$2+(ROW()-52)),"") -> 
A72: =Doklady!D20 ->  | B72: =Doklady!H20 ->  | C72: =IF(A72<>"",INDEX(FP!D:D,Doklady!B$2+(ROW()-53)),"") ->  | D72: =IF(A72<>"",Doklady!I20-Doklady!J20,"") ->  | E72: =IF(A72<>"",MIN(D72,C72)*Doklady!C20/(1-Doklady!C20),"") ->  | F72: =IF(A72<>"",Doklady!J20,"") ->  | G72: 0 | I72: 0 | K72: =Doklady!F20 ->  | L72: =IF(A72<>"",INDEX(FP!H:H,Doklady!B$2+(ROW()-52)),"") -> 
A73: =Doklady!D21 ->  | B73: =Doklady!H21 ->  | C73: =IF(A73<>"",INDEX(FP!D:D,Doklady!B$2+(ROW()-53)),"") ->  | D73: =IF(A73<>"",Doklady!I21-Doklady!J21,"") ->  | E73: =IF(A73<>"",MIN(D73,C73)*Doklady!C21/(1-Doklady!C21),"") ->  | F73: =IF(A73<>"",Doklady!J21,"") ->  | G73: 0 | I73: 0 | K73: =Doklady!F21 ->  | L73: =IF(A73<>"",INDEX(FP!H:H,Doklady!B$2+(ROW()-52)),"") -> 
A74: =Doklady!D22 ->  | B74: =Doklady!H22 ->  | C74: =IF(A74<>"",INDEX(FP!D:D,Doklady!B$2+(ROW()-53)),"") ->  | D74: =IF(A74<>"",Doklady!I22-Doklady!J22,"") ->  | E74: =IF(A74<>"",MIN(D74,C74)*Doklady!C22/(1-Doklady!C22),"") ->  | F74: =IF(A74<>"",Doklady!J22,"") ->  | G74: 0 | I74: 0 | K74: =Doklady!F22 ->  | L74: =IF(A74<>"",INDEX(FP!H:H,Doklady!B$2+(ROW()-52)),"") -> 
A75: =Doklady!D23 ->  | B75: =Doklady!H23 ->  | C75: =IF(A75<>"",INDEX(FP!D:D,Doklady!B$2+(ROW()-53)),"") ->  | D75: =IF(A75<>"",Doklady!I23-Doklady!J23,"") ->  | E75: =IF(A75<>"",MIN(D75,C75)*Doklady!C23/(1-Doklady!C23),"") ->  | F75: =IF(A75<>"",Doklady!J23,"") ->  | G75: 0 | I75: 0 | K75: =Doklady!F23 ->  | L75: =IF(A75<>"",INDEX(FP!H:H,Doklady!B$2+(ROW()-52)),"") -> 
A76: =Doklady!D24 ->  | B76: =Doklady!H24 ->  | C76: =IF(A76<>"",INDEX(FP!D:D,Doklady!B$2+(ROW()-53)),"") ->  | D76: =IF(A76<>"",Doklady!I24-Doklady!J24,"") ->  | E76: =IF(A76<>"",MIN(D76,C76)*Doklady!C24/(1-Doklady!C24),"") ->  | F76: =IF(A76<>"",Doklady!J24,"") ->  | G76: 0 | I76: 0 | K76: =Doklady!F24 ->  | L76: =IF(A76<>"",INDEX(FP!H:H,Doklady!B$2+(ROW()-52)),"") -> 
A77: =Doklady!D25 ->  | B77: =Doklady!H25 ->  | C77: =IF(A77<>"",INDEX(FP!D:D,Doklady!B$2+(ROW()-53)),"") ->  | D77: =IF(A77<>"",Doklady!I25-Doklady!J25,"") ->  | E77: =IF(A77<>"",MIN(D77,C77)*Doklady!C25/(1-Doklady!C25),"") ->  | F77: =IF(A77<>"",Doklady!J25,"") ->  | G77: 0 | I77: 0 | K77: =Doklady!F25 ->  | L77: =IF(A77<>"",INDEX(FP!H:H,Doklady!B$2+(ROW()-52)),"") -> 
A78: =Doklady!D26 ->  | B78: =Doklady!H26 ->  | C78: =IF(A78<>"",INDEX(FP!D:D,Doklady!B$2+(ROW()-53)),"") ->  | D78: =IF(A78<>"",Doklady!I26-Doklady!J26,"") ->  | E78: =IF(A78<>"",MIN(D78,C78)*Doklady!C26/(1-Doklady!C26),"") ->  | F78: =IF(A78<>"",Doklady!J26,"") ->  | G78: 0 | I78: 0 | K78: =Doklady!F26 ->  | L78: =IF(A78<>"",INDEX(FP!H:H,Doklady!B$2+(ROW()-52)),"") -> 
A79: =Doklady!D27 ->  | B79: =Doklady!H27 ->  | C79: =IF(A79<>"",INDEX(FP!D:D,Doklady!B$2+(ROW()-53)),"") ->  | D79: =IF(A79<>"",Doklady!I27-Doklady!J27,"") ->  | E79: =IF(A79<>"",MIN(D79,C79)*Doklady!C27/(1-Doklady!C27),"") ->  | F79: =IF(A79<>"",Doklady!J27,"") ->  | G79: 0 | I79: 0 | K79: =Doklady!F27 ->  | L79: =IF(A79<>"",INDEX(FP!H:H,Doklady!B$2+(ROW()-52)),"") -> 
A80: =Doklady!D28 ->  | B80: =Doklady!H28 ->  | C80: =IF(A80<>"",INDEX(FP!D:D,Doklady!B$2+(ROW()-53)),"") ->  | D80: =IF(A80<>"",Doklady!I28-Doklady!J28,"") ->  | E80: =IF(A80<>"",MIN(D80,C80)*Doklady!C28/(1-Doklady!C28),"") ->  | F80: =IF(A80<>"",Doklady!J28,"") ->  | G80: 0 | I80: 0 | K80: =Doklady!F28 ->  | L80: =IF(A80<>"",INDEX(FP!H:H,Doklady!B$2+(ROW()-52)),"") -> 
A81: =Doklady!D29 ->  | B81: =Doklady!H29 ->  | C81: =IF(A81<>"",INDEX(FP!D:D,Doklady!B$2+(ROW()-53)),"") ->  | D81: =IF(A81<>"",Doklady!I29-Doklady!J29,"") ->  | E81: =IF(A81<>"",MIN(D81,C81)*Doklady!C29/(1-Doklady!C29),"") ->  | F81: =IF(A81<>"",Doklady!J29,"") ->  | G81: 0 | I81: 0 | K81: =Doklady!F29 ->  | L81: =IF(A81<>"",INDEX(FP!H:H,Doklady!B$2+(ROW()-52)),"") -> 
A82: =Doklady!D30 ->  | B82: =Doklady!H30 ->  | C82: =IF(A82<>"",INDEX(FP!D:D,Doklady!B$2+(ROW()-53)),"") ->  | D82: =IF(A82<>"",Doklady!I30-Doklady!J30,"") ->  | E82: =IF(A82<>"",MIN(D82,C82)*Doklady!C30/(1-Doklady!C30),"") ->  | F82: =IF(A82<>"",Doklady!J30,"") ->  | G82: 0 | I82: 0 | K82: =Doklady!F30 ->  | L82: =IF(A82<>"",INDEX(FP!H:H,Doklady!B$2+(ROW()-52)),"") -> 
A83: =Doklady!D31 ->  | B83: =Doklady!H31 ->  | C83: =IF(A83<>"",INDEX(FP!D:D,Doklady!B$2+(ROW()-53)),"") ->  | D83: =IF(A83<>"",Doklady!I31-Doklady!J31,"") ->  | E83: =IF(A83<>"",MIN(D83,C83)*Doklady!C31/(1-Doklady!C31),"") ->  | F83: =IF(A83<>"",Doklady!J31,"") ->  | G83: 0 | I83: 0 | K83: =Doklady!F31 ->  | L83: =IF(A83<>"",INDEX(FP!H:H,Doklady!B$2+(ROW()-52)),"") -> 
A84: =Doklady!D32 ->  | B84: =Doklady!H32 ->  | C84: =IF(A84<>"",INDEX(FP!D:D,Doklady!B$2+(ROW()-53)),"") ->  | D84: =IF(A84<>"",Doklady!I32-Doklady!J32,"") ->  | E84: =IF(A84<>"",MIN(D84,C84)*Doklady!C32/(1-Doklady!C32),"") ->  | F84: =IF(A84<>"",Doklady!J32,"") ->  | G84: 0 | I84: 0 | K84: =Doklady!F32 ->  | L84: =IF(A84<>"",INDEX(FP!H:H,Doklady!B$2+(ROW()-52)),"") -> 
A85: =Doklady!D33 ->  | B85: =Doklady!H33 ->  | C85: =IF(A85<>"",INDEX(FP!D:D,Doklady!B$2+(ROW()-53)),"") ->  | D85: =IF(A85<>"",Doklady!I33-Doklady!J33,"") ->  | E85: =IF(A85<>"",MIN(D85,C85)*Doklady!C33/(1-Doklady!C33),"") ->  | F85: =IF(A85<>"",Doklady!J33,"") ->  | G85: 0 | I85: 0 | K85: =Doklady!F33 ->  | L85: =IF(A85<>"",INDEX(FP!H:H,Doklady!B$2+(ROW()-52)),"") -> 
A86: =Doklady!D34 ->  | B86: =Doklady!H34 ->  | C86: =IF(A86<>"",INDEX(FP!D:D,Doklady!B$2+(ROW()-53)),"") ->  | D86: =IF(A86<>"",Doklady!I34-Doklady!J34,"") ->  | E86: =IF(A86<>"",MIN(D86,C86)*Doklady!C34/(1-Doklady!C34),"") ->  | F86: =IF(A86<>"",Doklady!J34,"") ->  | G86: 0 | I86: 0 | K86: =Doklady!F34 ->  | L86: =IF(A86<>"",INDEX(FP!H:H,Doklady!B$2+(ROW()-52)),"") -> 
A87: =Doklady!D35 ->  | B87: =Doklady!H35 ->  | C87: =IF(A87<>"",INDEX(FP!D:D,Doklady!B$2+(ROW()-53)),"") ->  | D87: =IF(A87<>"",Doklady!I35-Doklady!J35,"") ->  | E87: =IF(A87<>"",MIN(D87,C87)*Doklady!C35/(1-Doklady!C35),"") ->  | F87: =IF(A87<>"",Doklady!J35,"") ->  | G87: 0 | I87: 0 | K87: =Doklady!F35 ->  | L87: =IF(A87<>"",INDEX(FP!H:H,Doklady!B$2+(ROW()-52)),"") -> 
A88: =Doklady!D36 ->  | B88: =Doklady!H36 ->  | C88: =IF(A88<>"",INDEX(FP!D:D,Doklady!B$2+(ROW()-53)),"") ->  | D88: =IF(A88<>"",Doklady!I36-Doklady!J36,"") ->  | E88: =IF(A88<>"",MIN(D88,C88)*Doklady!C36/(1-Doklady!C36),"") ->  | F88: =IF(A88<>"",Doklady!J36,"") ->  | G88: 0 | I88: 0 | K88: =Doklady!F36 ->  | L88: =IF(A88<>"",INDEX(FP!H:H,Doklady!B$2+(ROW()-52)),"") -> 
A89: =Doklady!D37 ->  | B89: =Doklady!H37 ->  | C89: =IF(A89<>"",INDEX(FP!D:D,Doklady!B$2+(ROW()-53)),"") ->  | D89: =IF(A89<>"",Doklady!I37-Doklady!J37,"") ->  | E89: =IF(A89<>"",MIN(D89,C89)*Doklady!C37/(1-Doklady!C37),"") ->  | F89: =IF(A89<>"",Doklady!J37,"") ->  | G89: 0 | I89: 0 | K89: =Doklady!F37 ->  | L89: =IF(A89<>"",INDEX(FP!H:H,Doklady!B$2+(ROW()-52)),"") -> 
A90: =Doklady!D38 ->  | B90: =Doklady!H38 ->  | C90: =IF(A90<>"",INDEX(FP!D:D,Doklady!B$2+(ROW()-53)),"") ->  | D90: =IF(A90<>"",Doklady!I38-Doklady!J38,"") ->  | E90: =IF(A90<>"",MIN(D90,C90)*Doklady!C38/(1-Doklady!C38),"") ->  | F90: =IF(A90<>"",Doklady!J38,"") ->  | G90: 0 | I90: 0 | K90: =Doklady!F38 ->  | L90: =IF(A90<>"",INDEX(FP!H:H,Doklady!B$2+(ROW()-52)),"") -> 
A91: =Doklady!D39 ->  | B91: =Doklady!H39 ->  | C91: =IF(A91<>"",INDEX(FP!D:D,Doklady!B$2+(ROW()-53)),"") ->  | D91: =IF(A91<>"",Doklady!I39-Doklady!J39,"") ->  | E91: =IF(A91<>"",MIN(D91,C91)*Doklady!C39/(1-Doklady!C39),"") ->  | F91: =IF(A91<>"",Doklady!J39,"") ->  | G91: 0 | I91: 0 | K91: =Doklady!F39 ->  | L91: =IF(A91<>"",INDEX(FP!H:H,Doklady!B$2+(ROW()-52)),"") -> 
A92: =Doklady!D40 ->  | B92: =Doklady!H40 ->  | C92: =IF(A92<>"",INDEX(FP!D:D,Doklady!B$2+(ROW()-53)),"") ->  | D92: =IF(A92<>"",Doklady!I40-Doklady!J40,"") ->  | E92: =IF(A92<>"",MIN(D92,C92)*Doklady!C40/(1-Doklady!C40),"") ->  | F92: =IF(A92<>"",Doklady!J40,"") ->  | G92: 0 | I92: 0 | K92: =Doklady!F40 ->  | L92: =IF(A92<>"",INDEX(FP!H:H,Doklady!B$2+(ROW()-52)),"") -> 
A93: =Doklady!D41 ->  | B93: =Doklady!H41 ->  | C93: =IF(A93<>"",INDEX(FP!D:D,Doklady!B$2+(ROW()-53)),"") ->  | D93: =IF(A93<>"",Doklady!I41-Doklady!J41,"") ->  | E93: =IF(A93<>"",MIN(D93,C93)*Doklady!C41/(1-Doklady!C41),"") ->  | F93: =IF(A93<>"",Doklady!J41,"") ->  | G93: 0 | I93: 0 | K93: =Doklady!F41 ->  | L93: =IF(A93<>"",INDEX(FP!H:H,Doklady!B$2+(ROW()-52)),"") -> 
A94: =Doklady!D42 ->  | B94: =Doklady!H42 ->  | C94: =IF(A94<>"",INDEX(FP!D:D,Doklady!B$2+(ROW()-53)),"") ->  | D94: =IF(A94<>"",Doklady!I42-Doklady!J42,"") ->  | E94: =IF(A94<>"",MIN(D94,C94)*Doklady!C42/(1-Doklady!C42),"") ->  | F94: =IF(A94<>"",Doklady!J42,"") ->  | G94: 0 | I94: 0 | K94: =Doklady!F42 ->  | L94: =IF(A94<>"",INDEX(FP!H:H,Doklady!B$2+(ROW()-52)),"") -> 
A95: =Doklady!D43 ->  | B95: =Doklady!H43 ->  | C95: =IF(A95<>"",INDEX(FP!D:D,Doklady!B$2+(ROW()-53)),"") ->  | D95: =IF(A95<>"",Doklady!I43-Doklady!J43,"") ->  | E95: =IF(A95<>"",MIN(D95,C95)*Doklady!C43/(1-Doklady!C43),"") ->  | F95: =IF(A95<>"",Doklady!J43,"") ->  | G95: 0 | I95: 0 | K95: =Doklady!F43 ->  | L95: =IF(A95<>"",INDEX(FP!H:H,Doklady!B$2+(ROW()-52)),"") -> 
A96: =Doklady!D44 ->  | B96: =Doklady!H44 ->  | C96: =IF(A96<>"",INDEX(FP!D:D,Doklady!B$2+(ROW()-53)),"") ->  | D96: =IF(A96<>"",Doklady!I44-Doklady!J44,"") ->  | E96: =IF(A96<>"",MIN(D96,C96)*Doklady!C44/(1-Doklady!C44),"") ->  | F96: =IF(A96<>"",Doklady!J44,"") ->  | G96: 0 | I96: 0 | K96: =Doklady!F44 ->  | L96: =IF(A96<>"",INDEX(FP!H:H,Doklady!B$2+(ROW()-52)),"") -> 
A97: =Doklady!D45 ->  | B97: =Doklady!H45 ->  | C97: =IF(A97<>"",INDEX(FP!D:D,Doklady!B$2+(ROW()-53)),"") ->  | D97: =IF(A97<>"",Doklady!I45-Doklady!J45,"") ->  | E97: =IF(A97<>"",MIN(D97,C97)*Doklady!C45/(1-Doklady!C45),"") ->  | F97: =IF(A97<>"",Doklady!J45,"") ->  | G97: 0 | I97: 0 | K97: =Doklady!F45 ->  | L97: =IF(A97<>"",INDEX(FP!H:H,Doklady!B$2+(ROW()-52)),"") -> 
A98: =Doklady!D46 ->  | B98: =Doklady!H46 ->  | C98: =IF(A98<>"",INDEX(FP!D:D,Doklady!B$2+(ROW()-53)),"") ->  | D98: =IF(A98<>"",Doklady!I46-Doklady!J46,"") ->  | E98: =IF(A98<>"",MIN(D98,C98)*Doklady!C46/(1-Doklady!C46),"") ->  | F98: =IF(A98<>"",Doklady!J46,"") ->  | G98: 0 | I98: 0 | K98: =Doklady!F46 ->  | L98: =IF(A98<>"",INDEX(FP!H:H,Doklady!B$2+(ROW()-52)),"") -> 
A99: =Doklady!D47 ->  | B99: =Doklady!H47 ->  | C99: =IF(A99<>"",INDEX(FP!D:D,Doklady!B$2+(ROW()-53)),"") ->  | D99: =IF(A99<>"",Doklady!I47-Doklady!J47,"") ->  | E99: =IF(A99<>"",MIN(D99,C99)*Doklady!C47/(1-Doklady!C47),"") ->  | F99: =IF(A99<>"",Doklady!J47,"") ->  | G99: 0 | I99: 0 | K99: =Doklady!F47 ->  | L99: =IF(A99<>"",INDEX(FP!H:H,Doklady!B$2+(ROW()-52)),"") -> 
A100: =Doklady!D48 ->  | B100: =Doklady!H48 ->  | C100: =IF(A100<>"",INDEX(FP!D:D,Doklady!B$2+(ROW()-53)),"") ->  | D100: =IF(A100<>"",Doklady!I48-Doklady!J48,"") ->  | E100: =IF(A100<>"",MIN(D100,C100)*Doklady!C48/(1-Doklady!C48),"") ->  | F100: =IF(A100<>"",Doklady!J48,"") ->  | G100: 0 | I100: 0 | K100: =Doklady!F48 ->  | L100: =IF(A100<>"",INDEX(FP!H:H,Doklady!B$2+(ROW()-52)),"") -> 
A101: =Doklady!D49 ->  | B101: =Doklady!H49 ->  | C101: =IF(A101<>"",INDEX(FP!D:D,Doklady!B$2+(ROW()-53)),"") ->  | D101: =IF(A101<>"",Doklady!I49-Doklady!J49,"") ->  | E101: =IF(A101<>"",MIN(D101,C101)*Doklady!C49/(1-Doklady!C49),"") ->  | F101: =IF(A101<>"",Doklady!J49,"") ->  | G101: 0 | I101: 0 | K101: =Doklady!F49 ->  | L101: =IF(A101<>"",INDEX(FP!H:H,Doklady!B$2+(ROW()-52)),"") -> 
A102: =Doklady!D50 ->  | B102: =Doklady!H50 ->  | C102: =IF(A102<>"",INDEX(FP!D:D,Doklady!B$2+(ROW()-53)),"") ->  | D102: =IF(A102<>"",Doklady!I50-Doklady!J50,"") ->  | E102: =IF(A102<>"",MIN(D102,C102)*Doklady!C50/(1-Doklady!C50),"") ->  | F102: =IF(A102<>"",Doklady!J50,"") ->  | G102: 0 | I102: 0 | K102: =Doklady!F50 ->  | L102: =IF(A102<>"",INDEX(FP!H:H,Doklady!B$2+(ROW()-52)),"") -> 
A103: =Doklady!D51 ->  | B103: =Doklady!H51 ->  | C103: =IF(A103<>"",INDEX(FP!D:D,Doklady!B$2+(ROW()-53)),"") ->  | D103: =IF(A103<>"",Doklady!I51-Doklady!J51,"") ->  | E103: =IF(A103<>"",MIN(D103,C103)*Doklady!C51/(1-Doklady!C51),"") ->  | F103: =IF(A103<>"",Doklady!J51,"") ->  | G103: 0 | I103: 0 | K103: =Doklady!F51 ->  | L103: =IF(A103<>"",INDEX(FP!H:H,Doklady!B$2+(ROW()-52)),"") -> 
A104: =Doklady!D52 ->  | B104: =Doklady!H52 ->  | C104: =IF(A104<>"",INDEX(FP!D:D,Doklady!B$2+(ROW()-53)),"") ->  | D104: =IF(A104<>"",Doklady!I52-Doklady!J52,"") ->  | E104: =IF(A104<>"",MIN(D104,C104)*Doklady!C52/(1-Doklady!C52),"") ->  | F104: =IF(A104<>"",Doklady!J52,"") ->  | G104: 0 | I104: 0 | K104: =Doklady!F52 ->  | L104: =IF(A104<>"",INDEX(FP!H:H,Doklady!B$2+(ROW()-52)),"") -> 
A105: =Doklady!D53 ->  | B105: =Doklady!H53 ->  | C105: =IF(A105<>"",INDEX(FP!D:D,Doklady!B$2+(ROW()-53)),"") ->  | D105: =IF(A105<>"",Doklady!I53-Doklady!J53,"") ->  | E105: =IF(A105<>"",MIN(D105,C105)*Doklady!C53/(1-Doklady!C53),"") ->  | F105: =IF(A105<>"",Doklady!J53,"") ->  | G105: 0 | I105: 0 | K105: =Doklady!F53 ->  | L105: =IF(A105<>"",INDEX(FP!H:H,Doklady!B$2+(ROW()-52)),"") -> 
A106: =Doklady!D54 ->  | B106: =Doklady!H54 ->  | C106: =IF(A106<>"",INDEX(FP!D:D,Doklady!B$2+(ROW()-53)),"") ->  | D106: =IF(A106<>"",Doklady!I54-Doklady!J54,"") ->  | E106: =IF(A106<>"",MIN(D106,C106)*Doklady!C54/(1-Doklady!C54),"") ->  | F106: =IF(A106<>"",Doklady!J54,"") ->  | G106: 0 | I106: 0 | K106: =Doklady!F54 ->  | L106: =IF(A106<>"",INDEX(FP!H:H,Doklady!B$2+(ROW()-52)),"") -> 
A107: =Doklady!D55 ->  | B107: =Doklady!H55 ->  | C107: =IF(A107<>"",INDEX(FP!D:D,Doklady!B$2+(ROW()-53)),"") ->  | D107: =IF(A107<>"",Doklady!I55-Doklady!J55,"") ->  | E107: =IF(A107<>"",MIN(D107,C107)*Doklady!C55/(1-Doklady!C55),"") ->  | F107: =IF(A107<>"",Doklady!J55,"") ->  | G107: 0 | I107: 0 | K107: =Doklady!F55 ->  | L107: =IF(A107<>"",INDEX(FP!H:H,Doklady!B$2+(ROW()-52)),"") -> 
A108: =Doklady!D56 ->  | B108: =Doklady!H56 ->  | C108: =IF(A108<>"",INDEX(FP!D:D,Doklady!B$2+(ROW()-53)),"") ->  | D108: =IF(A108<>"",Doklady!I56-Doklady!J56,"") ->  | E108: =IF(A108<>"",MIN(D108,C108)*Doklady!C56/(1-Doklady!C56),"") ->  | F108: =IF(A108<>"",Doklady!J56,"") ->  | G108: 0 | I108: 0 | K108: =Doklady!F56 ->  | L108: =IF(A108<>"",INDEX(FP!H:H,Doklady!B$2+(ROW()-52)),"") -> 
A109: =Doklady!D57 ->  | B109: =Doklady!H57 ->  | C109: =IF(A109<>"",INDEX(FP!D:D,Doklady!B$2+(ROW()-53)),"") ->  | D109: =IF(A109<>"",Doklady!I57-Doklady!J57,"") ->  | E109: =IF(A109<>"",MIN(D109,C109)*Doklady!C57/(1-Doklady!C57),"") ->  | F109: =IF(A109<>"",Doklady!J57,"") ->  | G109: 0 | I109: 0 | K109: =Doklady!F57 ->  | L109: =IF(A109<>"",INDEX(FP!H:H,Doklady!B$2+(ROW()-52)),"") -> 
A110: =Doklady!D58 ->  | B110: =Doklady!H58 ->  | C110: =IF(A110<>"",INDEX(FP!D:D,Doklady!B$2+(ROW()-53)),"") ->  | D110: =IF(A110<>"",Doklady!I58-Doklady!J58,"") ->  | E110: =IF(A110<>"",MIN(D110,C110)*Doklady!C58/(1-Doklady!C58),"") ->  | F110: =IF(A110<>"",Doklady!J58,"") ->  | G110: 0 | I110: 0 | K110: =Doklady!F58 ->  | L110: =IF(A110<>"",INDEX(FP!H:H,Doklady!B$2+(ROW()-52)),"") -> 
A111: =Doklady!D59 ->  | B111: =Doklady!H59 ->  | C111: =IF(A111<>"",INDEX(FP!D:D,Doklady!B$2+(ROW()-53)),"") ->  | D111: =IF(A111<>"",Doklady!I59-Doklady!J59,"") ->  | E111: =IF(A111<>"",MIN(D111,C111)*Doklady!C59/(1-Doklady!C59),"") ->  | F111: =IF(A111<>"",Doklady!J59,"") ->  | G111: 0 | I111: 0 | K111: =Doklady!F59 ->  | L111: =IF(A111<>"",INDEX(FP!H:H,Doklady!B$2+(ROW()-52)),"") -> 
A112: =Doklady!D60 ->  | B112: =Doklady!H60 ->  | C112: =IF(A112<>"",INDEX(FP!D:D,Doklady!B$2+(ROW()-53)),"") ->  | D112: =IF(A112<>"",Doklady!I60-Doklady!J60,"") ->  | E112: =IF(A112<>"",MIN(D112,C112)*Doklady!C60/(1-Doklady!C60),"") ->  | F112: =IF(A112<>"",Doklady!J60,"") ->  | G112: 0 | I112: 0 | K112: =Doklady!F60 ->  | L112: =IF(A112<>"",INDEX(FP!H:H,Doklady!B$2+(ROW()-52)),"") -> 
A113: =Doklady!D61 ->  | B113: =Doklady!H61 ->  | C113: =IF(A113<>"",INDEX(FP!D:D,Doklady!B$2+(ROW()-53)),"") ->  | D113: =IF(A113<>"",Doklady!I61-Doklady!J61,"") ->  | E113: =IF(A113<>"",MIN(D113,C113)*Doklady!C61/(1-Doklady!C61),"") ->  | F113: =IF(A113<>"",Doklady!J61,"") ->  | G113: 0 | I113: 0 | K113: =Doklady!F61 ->  | L113: =IF(A113<>"",INDEX(FP!H:H,Doklady!B$2+(ROW()-52)),"") -> 
A114: =Doklady!D62 ->  | B114: =Doklady!H62 ->  | C114: =IF(A114<>"",INDEX(FP!D:D,Doklady!B$2+(ROW()-53)),"") ->  | D114: =IF(A114<>"",Doklady!I62-Doklady!J62,"") ->  | E114: =IF(A114<>"",MIN(D114,C114)*Doklady!C62/(1-Doklady!C62),"") ->  | F114: =IF(A114<>"",Doklady!J62,"") ->  | G114: 0 | I114: 0 | K114: =Doklady!F62 ->  | L114: =IF(A114<>"",INDEX(FP!H:H,Doklady!B$2+(ROW()-52)),"") -> 
A115: =Doklady!D63 ->  | B115: =Doklady!H63 ->  | C115: =IF(A115<>"",INDEX(FP!D:D,Doklady!B$2+(ROW()-53)),"") ->  | D115: =IF(A115<>"",Doklady!I63-Doklady!J63,"") ->  | E115: =IF(A115<>"",MIN(D115,C115)*Doklady!C63/(1-Doklady!C63),"") ->  | F115: =IF(A115<>"",Doklady!J63,"") ->  | G115: 0 | I115: 0 | K115: =Doklady!F63 ->  | L115: =IF(A115<>"",INDEX(FP!H:H,Doklady!B$2+(ROW()-52)),"") -> 
A116: =Doklady!D64 ->  | B116: =Doklady!H64 ->  | C116: =IF(A116<>"",INDEX(FP!D:D,Doklady!B$2+(ROW()-53)),"") ->  | D116: =IF(A116<>"",Doklady!I64-Doklady!J64,"") ->  | E116: =IF(A116<>"",MIN(D116,C116)*Doklady!C64/(1-Doklady!C64),"") ->  | F116: =IF(A116<>"",Doklady!J64,"") ->  | G116: 0 | I116: 0 | K116: =Doklady!F64 ->  | L116: =IF(A116<>"",INDEX(FP!H:H,Doklady!B$2+(ROW()-52)),"") -> 
A117: =Doklady!D65 ->  | B117: =Doklady!H65 ->  | C117: =IF(A117<>"",INDEX(FP!D:D,Doklady!B$2+(ROW()-53)),"") ->  | D117: =IF(A117<>"",Doklady!I65-Doklady!J65,"") ->  | E117: =IF(A117<>"",MIN(D117,C117)*Doklady!C65/(1-Doklady!C65),"") ->  | F117: =IF(A117<>"",Doklady!J65,"") ->  | G117: 0 | I117: 0 | K117: =Doklady!F65 ->  | L117: =IF(A117<>"",INDEX(FP!H:H,Doklady!B$2+(ROW()-52)),"") -> 
A118: =Doklady!D66 ->  | B118: =Doklady!H66 ->  | C118: =IF(A118<>"",INDEX(FP!D:D,Doklady!B$2+(ROW()-53)),"") ->  | D118: =IF(A118<>"",Doklady!I66-Doklady!J66,"") ->  | E118: =IF(A118<>"",MIN(D118,C118)*Doklady!C66/(1-Doklady!C66),"") ->  | F118: =IF(A118<>"",Doklady!J66,"") ->  | G118: =+IFERROR(HLOOKUP(IF(RIGHT(B118,15)="bežné transfery",LEFT(B118,LEN(B118)-18),0),$J$40:$K$42,3,0),MIN(C118,D118)) -> 0 | I118: =IF(A118<>"",MAX(IF(G118<C118,C118-G118,0)+IF(F118<E118,E118-F118,0),0),0) -> 0 | J118: =IF(D118>C118,"Vyúčtované prostriedky nemôžu byť väčšie ako poskytnuté. Opravte v hárku ""Doklady""","") ->  | K118: =Doklady!F66 ->  | L118: =IF(A118<>"",INDEX(FP!H:H,Doklady!B$2+(ROW()-52)),"") ->  | M118: =K118&L118 -> 
A119: =Doklady!D67 ->  | B119: =Doklady!H67 ->  | C119: =IF(A119<>"",INDEX(FP!D:D,Doklady!B$2+(ROW()-53)),"") ->  | D119: =IF(A119<>"",Doklady!I67-Doklady!J67,"") ->  | E119: =IF(A119<>"",MIN(D119,C119)*Doklady!C67/(1-Doklady!C67),"") ->  | F119: =IF(A119<>"",Doklady!J67,"") ->  | G119: 0 | I119: 0 | K119: =Doklady!F67 ->  | L119: =IF(A119<>"",INDEX(FP!H:H,Doklady!B$2+(ROW()-52)),"") -> 
A120: =Doklady!D68 ->  | B120: =Doklady!H68 ->  | C120: =IF(A120<>"",INDEX(FP!D:D,Doklady!B$2+(ROW()-53)),"") ->  | D120: =IF(A120<>"",Doklady!I68-Doklady!J68,"") ->  | E120: =IF(A120<>"",MIN(D120,C120)*Doklady!C68/(1-Doklady!C68),"") ->  | F120: =IF(A120<>"",Doklady!J68,"") ->  | G120: 0 | I120: 0 | K120: =Doklady!F68 ->  | L120: =IF(A120<>"",INDEX(FP!H:H,Doklady!B$2+(ROW()-52)),"") -> 
A121: =Doklady!D69 ->  | B121: =Doklady!H69 ->  | C121: =IF(A121<>"",INDEX(FP!D:D,Doklady!B$2+(ROW()-53)),"") ->  | D121: =IF(A121<>"",Doklady!I69-Doklady!J69,"") ->  | E121: =IF(A121<>"",MIN(D121,C121)*Doklady!C69/(1-Doklady!C69),"") ->  | F121: =IF(A121<>"",Doklady!J69,"") ->  | G121: 0 | I121: 0 | K121: =Doklady!F69 ->  | L121: =IF(A121<>"",INDEX(FP!H:H,Doklady!B$2+(ROW()-52)),"") -> 
A122: =Doklady!D70 ->  | B122: =Doklady!H70 ->  | C122: =IF(A122<>"",INDEX(FP!D:D,Doklady!B$2+(ROW()-53)),"") ->  | D122: =IF(A122<>"",Doklady!I70-Doklady!J70,"") ->  | E122: =IF(A122<>"",MIN(D122,C122)*Doklady!C70/(1-Doklady!C70),"") ->  | F122: =IF(A122<>"",Doklady!J70,"") ->  | G122: 0 | I122: 0 | K122: =Doklady!F70 ->  | L122: =IF(A122<>"",INDEX(FP!H:H,Doklady!B$2+(ROW()-52)),"") -> 
A123: =Doklady!D71 ->  | B123: =Doklady!H71 ->  | C123: =IF(A123<>"",INDEX(FP!D:D,Doklady!B$2+(ROW()-53)),"") ->  | D123: =IF(A123<>"",Doklady!I71-Doklady!J71,"") ->  | E123: =IF(A123<>"",MIN(D123,C123)*Doklady!C71/(1-Doklady!C71),"") ->  | F123: =IF(A123<>"",Doklady!J71,"") ->  | G123: 0 | I123: 0 | K123: =Doklady!F71 ->  | L123: =IF(A123<>"",INDEX(FP!H:H,Doklady!B$2+(ROW()-52)),"") -> 
A124: =Doklady!D72 ->  | B124: =Doklady!H72 ->  | C124: =IF(A124<>"",INDEX(FP!D:D,Doklady!B$2+(ROW()-53)),"") ->  | D124: =IF(A124<>"",Doklady!I72-Doklady!J72,"") ->  | E124: =IF(A124<>"",MIN(D124,C124)*Doklady!C72/(1-Doklady!C72),"") ->  | F124: =IF(A124<>"",Doklady!J72,"") ->  | G124: 0 | I124: 0 | K124: =Doklady!F72 ->  | L124: =IF(A124<>"",INDEX(FP!H:H,Doklady!B$2+(ROW()-52)),"") ->  | M124: =K124&L124 -> 
A125: =Doklady!D73 ->  | B125: =Doklady!H73 ->  | C125: =IF(A125<>"",INDEX(FP!D:D,Doklady!B$2+(ROW()-53)),"") ->  | D125: =IF(A125<>"",Doklady!I73-Doklady!J73,"") ->  | E125: =IF(A125<>"",MIN(D125,C125)*Doklady!C73/(1-Doklady!C73),"") ->  | F125: =IF(A125<>"",Doklady!J73,"") ->  | G125: 0 | I125: 0 | K125: =Doklady!F73 ->  | L125: =IF(A125<>"",INDEX(FP!H:H,Doklady!B$2+(ROW()-52)),"") -> 
A126: =Doklady!D74 ->  | B126: =Doklady!H74 ->  | C126: =IF(A126<>"",INDEX(FP!D:D,Doklady!B$2+(ROW()-53)),"") ->  | D126: =IF(A126<>"",Doklady!I74-Doklady!J74,"") ->  | E126: =IF(A126<>"",MIN(D126,C126)*Doklady!C74/(1-Doklady!C74),"") ->  | F126: =IF(A126<>"",Doklady!J74,"") ->  | G126: 0 | I126: 0 | K126: =Doklady!F74 ->  | L126: =IF(A126<>"",INDEX(FP!H:H,Doklady!B$2+(ROW()-52)),"") -> 
A127: =Doklady!D75 ->  | B127: =Doklady!H75 ->  | C127: =IF(A127<>"",INDEX(FP!D:D,Doklady!B$2+(ROW()-53)),"") ->  | D127: =IF(A127<>"",Doklady!I75-Doklady!J75,"") ->  | E127: =IF(A127<>"",MIN(D127,C127)*Doklady!C75/(1-Doklady!C75),"") ->  | F127: =IF(A127<>"",Doklady!J75,"") ->  | G127: 0 | I127: 0 | K127: =Doklady!F75 ->  | L127: =IF(A127<>"",INDEX(FP!H:H,Doklady!B$2+(ROW()-52)),"") -> 
A128: =Doklady!D76 ->  | B128: =Doklady!H76 ->  | C128: =IF(A128<>"",INDEX(FP!D:D,Doklady!B$2+(ROW()-53)),"") ->  | D128: =IF(A128<>"",Doklady!I76-Doklady!J76,"") ->  | E128: =IF(A128<>"",MIN(D128,C128)*Doklady!C76/(1-Doklady!C76),"") ->  | F128: =IF(A128<>"",Doklady!J76,"") ->  | G128: 0 | I128: 0 | K128: =Doklady!F76 ->  | L128: =IF(A128<>"",INDEX(FP!H:H,Doklady!B$2+(ROW()-52)),"") -> 
K129: =Doklady!F77 ->  | L129: =IF(A129<>"",INDEX(FP!H:H,Doklady!B$2+(ROW()-52)),"") -> 
A130: =Doklady!D66 ->  | B130: SPOLU | C130: =SUM(C53:C129) -> 244015 | D130: =SUM(D53:D129) -> 31678.95 | E130: 0 | F130: 0 | G130: 31678.95 | H130: 0 | I130: 212336.05 | J130: =IF(D130>C130,"Vyúčtované prostriedky nemôžu byť väčšie ako poskytnuté. Opravte v hárku ""Doklady""","") -> 
A132: Čestne vyhlasujem, že
A133: a) všetky uvedené údaje sú pravdivé,
A134: b) dolu podpísaná osoba/osoby je oprávnená/sú oprávnené v súlade so stanovami/zriaďovacou listinou na podpis vyúčtovania finančných prostriedkov poskytnutých v roku 2024.
A135: c) toto vytlačené a podpísané vyúčtovanie je zhodné s hárkom, ktorý sme zaslali na adresu ziadosti.sport@minedu.sk dňa ....................... o .......... hod. ........ min.
A137: Súhlasím so zhromažďovaním, spracovávaním a zverejňovaním poskytnutých údajov.
A139: Dátum:
B141: Kontaktná osoba zodpovedná za vyplnený formulár meno a priezvisko: e-mail: tel. kontakt (mobil): | D141: Meno, priezvisko a podpis štatutárneho zástupcu/zástupcov oprávneného/oprávnených na podpis žiadosti a zmluvy o poskytnutí finančných prostriedkov v súlade so stanovami, resp. zriaďovacou listinou

Sheet Doklady
A1: =IF(ROW()<=B$3,INDEX(FP!F:F,B$2+ROW()-1)&" - "&INDEX(FP!C:C,B$2+ROW()-1),"") -> a - krasokorčuľovanie - bežné transfery | B1: =INDEX(Adr!A:A,B102+1) -> 31805540 | C1: =IF(ROW()<=B$3,INDEX(FP!E:E,B$2+ROW()-1),"") -> 0 | D1: =IF(ROW()<=B$3,INDEX(FP!F:F,B$2+ROW()-1),"") -> a | F1: =IF(ROW()<=B$3,INDEX(FP!G:G,B$2+ROW()-1),"") -> 026 02 | H1: =IF(ROW()<=B$3,INDEX(FP!C:C,B$2+ROW()-1),"") -> krasokorčuľovanie - bežné transfery | I1: =IF(ROW()<=B$3,SUMIF(A$107:A$10042,A1,I$107:I$10042),"") -> 31678.95 | J1: =IF(ROW()<=B$3,SUMIFS(I$103:I$50042,A$103:A$50042,K1,J$103:J$50042,L1),"") -> 0 | K1: =$A1 -> a - krasokorčuľovanie - bežné transfery | L1: 99
A2: =IF(ROW()<=B$3,INDEX(FP!F:F,B$2+ROW()-1)&" - "&INDEX(FP!C:C,B$2+ROW()-1),"") ->  | B2: =MATCH(B1,FP!A:A,0) -> 54 | C2: =IF(ROW()<=B$3,INDEX(FP!E:E,B$2+ROW()-1),"") ->  | D2: =IF(ROW()<=B$3,INDEX(FP!F:F,B$2+ROW()-1),"") ->  | F2: =IF(ROW()<=B$3,INDEX(FP!G:G,B$2+ROW()-1),"") ->  | H2: =IF(ROW()<=B$3,INDEX(FP!C:C,B$2+ROW()-1),"") ->  | K2: =$A2 ->  | L2: 99 | M2: AAA | N2: HHH
A3: =IF(ROW()<=B$3,INDEX(FP!F:F,B$2+ROW()-1)&" - "&INDEX(FP!C:C,B$2+ROW()-1),"") ->  | B3: =COUNTIF(FP!A:A,Doklady!B1) -> 1 | C3: =IF(ROW()<=B$3,INDEX(FP!E:E,B$2+ROW()-1),"") ->  | D3: =IF(ROW()<=B$3,INDEX(FP!F:F,B$2+ROW()-1),"") ->  | F3: =IF(ROW()<=B$3,INDEX(FP!G:G,B$2+ROW()-1),"") ->  | H3: =IF(ROW()<=B$3,INDEX(FP!C:C,B$2+ROW()-1),"") ->  | K3: =$A3 ->  | L3: 99 | M3: =$A2 ->  | N3: 99
A4: =IF(ROW()<=B$3,INDEX(FP!F:F,B$2+ROW()-1)&" - "&INDEX(FP!C:C,B$2+ROW()-1),"") ->  | C4: =IF(ROW()<=B$3,INDEX(FP!E:E,B$2+ROW()-1),"") ->  | D4: =IF(ROW()<=B$3,INDEX(FP!F:F,B$2+ROW()-1),"") ->  | F4: =IF(ROW()<=B$3,INDEX(FP!G:G,B$2+ROW()-1),"") ->  | H4: =IF(ROW()<=B$3,INDEX(FP!C:C,B$2+ROW()-1),"") ->  | L4: 99 | M4: AAA | N4: HHH
A5: =IF(ROW()<=B$3,INDEX(FP!F:F,B$2+ROW()-1)&" - "&INDEX(FP!C:C,B$2+ROW()-1),"") ->  | C5: =IF(ROW()<=B$3,INDEX(FP!E:E,B$2+ROW()-1),"") ->  | D5: =IF(ROW()<=B$3,INDEX(FP!F:F,B$2+ROW()-1),"") ->  | F5: =IF(ROW()<=B$3,INDEX(FP!G:G,B$2+ROW()-1),"") ->  | H5: =IF(ROW()<=B$3,INDEX(FP!C:C,B$2+ROW()-1),"") ->  | L5: 99 | M5: =$A4 ->  | N5: 99
A6: =IF(ROW()<=B$3,INDEX(FP!F:F,B$2+ROW()-1)&" - "&INDEX(FP!C:C,B$2+ROW()-1),"") ->  | C6: =IF(ROW()<=B$3,INDEX(FP!E:E,B$2+ROW()-1),"") ->  | D6: =IF(ROW()<=B$3,INDEX(FP!F:F,B$2+ROW()-1),"") ->  | F6: =IF(ROW()<=B$3,INDEX(FP!G:G,B$2+ROW()-1),"") ->  | H6: =IF(ROW()<=B$3,INDEX(FP!C:C,B$2+ROW()-1),"") ->  | L6: 99 | M6: AAA | N6: HHH
A7: =IF(ROW()<=B$3,INDEX(FP!F:F,B$2+ROW()-1)&" - "&INDEX(FP!C:C,B$2+ROW()-1),"") ->  | C7: =IF(ROW()<=B$3,INDEX(FP!E:E,B$2+ROW()-1),"") ->  | D7: =IF(ROW()<=B$3,INDEX(FP!F:F,B$2+ROW()-1),"") ->  | F7: =IF(ROW()<=B$3,INDEX(FP!G:G,B$2+ROW()-1),"") ->  | H7: =IF(ROW()<=B$3,INDEX(FP!C:C,B$2+ROW()-1),"") ->  | L7: 99 | M7: =$A6 ->  | N7: 99
A8: =IF(ROW()<=B$3,INDEX(FP!F:F,B$2+ROW()-1)&" - "&INDEX(FP!C:C,B$2+ROW()-1),"") ->  | C8: =IF(ROW()<=B$3,INDEX(FP!E:E,B$2+ROW()-1),"") ->  | D8: =IF(ROW()<=B$3,INDEX(FP!F:F,B$2+ROW()-1),"") ->  | F8: =IF(ROW()<=B$3,INDEX(FP!G:G,B$2+ROW()-1),"") ->  | H8: =IF(ROW()<=B$3,INDEX(FP!C:C,B$2+ROW()-1),"") ->  | L8: 99 | M8: AAA | N8: HHH
A9: =IF(ROW()<=B$3,INDEX(FP!F:F,B$2+ROW()-1)&" - "&INDEX(FP!C:C,B$2+ROW()-1),"") ->  | C9: =IF(ROW()<=B$3,INDEX(FP!E:E,B$2+ROW()-1),"") ->  | D9: =IF(ROW()<=B$3,INDEX(FP!F:F,B$2+ROW()-1),"") ->  | F9: =IF(ROW()<=B$3,INDEX(FP!G:G,B$2+ROW()-1),"") ->  | H9: =IF(ROW()<=B$3,INDEX(FP!C:C,B$2+ROW()-1),"") ->  | L9: 99 | M9: =$A8 ->  | N9: 99
A10: =IF(ROW()<=B$3,INDEX(FP!F:F,B$2+ROW()-1)&" - "&INDEX(FP!C:C,B$2+ROW()-1),"") ->  | C10: =IF(ROW()<=B$3,INDEX(FP!E:E,B$2+ROW()-1),"") ->  | D10: =IF(ROW()<=B$3,INDEX(FP!F:F,B$2+ROW()-1),"") ->  | F10: =IF(ROW()<=B$3,INDEX(FP!G:G,B$2+ROW()-1),"") ->  | H10: =IF(ROW()<=B$3,INDEX(FP!C:C,B$2+ROW()-1),"") ->  | L10: 99 | M10: AAA | N10: HHH
A11: =IF(ROW()<=B$3,INDEX(FP!F:F,B$2+ROW()-1)&" - "&INDEX(FP!C:C,B$2+ROW()-1),"") ->  | C11: =IF(ROW()<=B$3,INDEX(FP!E:E,B$2+ROW()-1),"") ->  | D11: =IF(ROW()<=B$3,INDEX(FP!F:F,B$2+ROW()-1),"") ->  | F11: =IF(ROW()<=B$3,INDEX(FP!G:G,B$2+ROW()-1),"") ->  | H11: =IF(ROW()<=B$3,INDEX(FP!C:C,B$2+ROW()-1),"") ->  | L11: 99 | M11: =$A10 ->  | N11: 99
A12: =IF(ROW()<=B$3,INDEX(FP!F:F,B$2+ROW()-1)&" - "&INDEX(FP!C:C,B$2+ROW()-1),"") ->  | C12: =IF(ROW()<=B$3,INDEX(FP!E:E,B$2+ROW()-1),"") ->  | D12: =IF(ROW()<=B$3,INDEX(FP!F:F,B$2+ROW()-1),"") ->  | F12: =IF(ROW()<=B$3,INDEX(FP!G:G,B$2+ROW()-1),"") ->  | H12: =IF(ROW()<=B$3,INDEX(FP!C:C,B$2+ROW()-1),"") ->  | L12: 99 | M12: AAA | N12: HHH
A13: =IF(ROW()<=B$3,INDEX(FP!F:F,B$2+ROW()-1)&" - "&INDEX(FP!C:C,B$2+ROW()-1),"") ->  | C13: =IF(ROW()<=B$3,INDEX(FP!E:E,B$2+ROW()-1),"") ->  | D13: =IF(ROW()<=B$3,INDEX(FP!F:F,B$2+ROW()-1),"") ->  | F13: =IF(ROW()<=B$3,INDEX(FP!G:G,B$2+ROW()-1),"") ->  | H13: =IF(ROW()<=B$3,INDEX(FP!C:C,B$2+ROW()-1),"") ->  | L13: 99 | M13: =$A12 ->  | N13: 99
A14: =IF(ROW()<=B$3,INDEX(FP!F:F,B$2+ROW()-1)&" - "&INDEX(FP!C:C,B$2+ROW()-1),"") ->  | C14: =IF(ROW()<=B$3,INDEX(FP!E:E,B$2+ROW()-1),"") ->  | D14: =IF(ROW()<=B$3,INDEX(FP!F:F,B$2+ROW()-1),"") ->  | F14: =IF(ROW()<=B$3,INDEX(FP!G:G,B$2+ROW()-1),"") ->  | H14: =IF(ROW()<=B$3,INDEX(FP!C:C,B$2+ROW()-1),"") ->  | L14: 99 | M14: AAA | N14: HHH
A15: =IF(ROW()<=B$3,INDEX(FP!F:F,B$2+ROW()-1)&" - "&INDEX(FP!C:C,B$2+ROW()-1),"") ->  | C15: =IF(ROW()<=B$3,INDEX(FP!E:E,B$2+ROW()-1),"") ->  | D15: =IF(ROW()<=B$3,INDEX(FP!F:F,B$2+ROW()-1),"") ->  | F15: =IF(ROW()<=B$3,INDEX(FP!G:G,B$2+ROW()-1),"") ->  | H15: =IF(ROW()<=B$3,INDEX(FP!C:C,B$2+ROW()-1),"") ->  | L15: 99 | M15: =$A14 ->  | N15: 99
A16: =IF(ROW()<=B$3,INDEX(FP!F:F,B$2+ROW()-1)&" - "&INDEX(FP!C:C,B$2+ROW()-1),"") ->  | C16: =IF(ROW()<=B$3,INDEX(FP!E:E,B$2+ROW()-1),"") ->  | D16: =IF(ROW()<=B$3,INDEX(FP!F:F,B$2+ROW()-1),"") ->  | F16: =IF(ROW()<=B$3,INDEX(FP!G:G,B$2+ROW()-1),"") ->  | H16: =IF(ROW()<=B$3,INDEX(FP!C:C,B$2+ROW()-1),"") ->  | L16: 99 | M16: AAA | N16: HHH
A17: =IF(ROW()<=B$3,INDEX(FP!F:F,B$2+ROW()-1)&" - "&INDEX(FP!C:C,B$2+ROW()-1),"") ->  | C17: =IF(ROW()<=B$3,INDEX(FP!E:E,B$2+ROW()-1),"") ->  | D17: =IF(ROW()<=B$3,INDEX(FP!F:F,B$2+ROW()-1),"") ->  | F17: =IF(ROW()<=B$3,INDEX(FP!G:G,B$2+ROW()-1),"") ->  | H17: =IF(ROW()<=B$3,INDEX(FP!C:C,B$2+ROW()-1),"") ->  | L17: 99 | M17: =$A16 ->  | N17: 99
A18: =IF(ROW()<=B$3,INDEX(FP!F:F,B$2+ROW()-1)&" - "&INDEX(FP!C:C,B$2+ROW()-1),"") ->  | C18: =IF(ROW()<=B$3,INDEX(FP!E:E,B$2+ROW()-1),"") ->  | D18: =IF(ROW()<=B$3,INDEX(FP!F:F,B$2+ROW()-1),"") ->  | F18: =IF(ROW()<=B$3,INDEX(FP!G:G,B$2+ROW()-1),"") ->  | H18: =IF(ROW()<=B$3,INDEX(FP!C:C,B$2+ROW()-1),"") ->  | L18: 99 | M18: AAA | N18: HHH
A19: =IF(ROW()<=B$3,INDEX(FP!F:F,B$2+ROW()-1)&" - "&INDEX(FP!C:C,B$2+ROW()-1),"") ->  | C19: =IF(ROW()<=B$3,INDEX(FP!E:E,B$2+ROW()-1),"") ->  | D19: =IF(ROW()<=B$3,INDEX(FP!F:F,B$2+ROW()-1),"") ->  | F19: =IF(ROW()<=B$3,INDEX(FP!G:G,B$2+ROW()-1),"") ->  | H19: =IF(ROW()<=B$3,INDEX(FP!C:C,B$2+ROW()-1),"") ->  | L19: 99 | M19: =$A18 ->  | N19: 99
A20: =IF(ROW()<=B$3,INDEX(FP!F:F,B$2+ROW()-1)&" - "&INDEX(FP!C:C,B$2+ROW()-1),"") ->  | C20: =IF(ROW()<=B$3,INDEX(FP!E:E,B$2+ROW()-1),"") ->  | D20: =IF(ROW()<=B$3,INDEX(FP!F:F,B$2+ROW()-1),"") ->  | F20: =IF(ROW()<=B$3,INDEX(FP!G:G,B$2+ROW()-1),"") ->  | H20: =IF(ROW()<=B$3,INDEX(FP!C:C,B$2+ROW()-1),"") ->  | L20: 99 | M20: AAA | N20: HHH
A21: =IF(ROW()<=B$3,INDEX(FP!F:F,B$2+ROW()-1)&" - "&INDEX(FP!C:C,B$2+ROW()-1),"") ->  | C21: =IF(ROW()<=B$3,INDEX(FP!E:E,B$2+ROW()-1),"") ->  | D21: =IF(ROW()<=B$3,INDEX(FP!F:F,B$2+ROW()-1),"") ->  | F21: =IF(ROW()<=B$3,INDEX(FP!G:G,B$2+ROW()-1),"") ->  | H21: =IF(ROW()<=B$3,INDEX(FP!C:C,B$2+ROW()-1),"") ->  | L21: 99 | M21: =$A20 ->  | N21: 99
A22: =IF(ROW()<=B$3,INDEX(FP!F:F,B$2+ROW()-1)&" - "&INDEX(FP!C:C,B$2+ROW()-1),"") ->  | C22: =IF(ROW()<=B$3,INDEX(FP!E:E,B$2+ROW()-1),"") ->  | D22: =IF(ROW()<=B$3,INDEX(FP!F:F,B$2+ROW()-1),"") ->  | F22: =IF(ROW()<=B$3,INDEX(FP!G:G,B$2+ROW()-1),"") ->  | H22: =IF(ROW()<=B$3,INDEX(FP!C:C,B$2+ROW()-1),"") ->  | L22: 99 | M22: AAA | N22: HHH
A23: =IF(ROW()<=B$3,INDEX(FP!F:F,B$2+ROW()-1)&" - "&INDEX(FP!C:C,B$2+ROW()-1),"") ->  | C23: =IF(ROW()<=B$3,INDEX(FP!E:E,B$2+ROW()-1),"") ->  | D23: =IF(ROW()<=B$3,INDEX(FP!F:F,B$2+ROW()-1),"") ->  | F23: =IF(ROW()<=B$3,INDEX(FP!G:G,B$2+ROW()-1),"") ->  | H23: =IF(ROW()<=B$3,INDEX(FP!C:C,B$2+ROW()-1),"") ->  | L23: 99 | M23: =$A22 ->  | N23: 99
A24: =IF(ROW()<=B$3,INDEX(FP!F:F,B$2+ROW()-1)&" - "&INDEX(FP!C:C,B$2+ROW()-1),"") ->  | C24: =IF(ROW()<=B$3,INDEX(FP!E:E,B$2+ROW()-1),"") ->  | D24: =IF(ROW()<=B$3,INDEX(FP!F:F,B$2+ROW()-1),"") ->  | F24: =IF(ROW()<=B$3,INDEX(FP!G:G,B$2+ROW()-1),"") ->  | H24: =IF(ROW()<=B$3,INDEX(FP!C:C,B$2+ROW()-1),"") ->  | L24: 99 | M24: AAA | N24: HHH
A25: =IF(ROW()<=B$3,INDEX(FP!F:F,B$2+ROW()-1)&" - "&INDEX(FP!C:C,B$2+ROW()-1),"") ->  | C25: =IF(ROW()<=B$3,INDEX(FP!E:E,B$2+ROW()-1),"") ->  | D25: =IF(ROW()<=B$3,INDEX(FP!F:F,B$2+ROW()-1),"") ->  | F25: =IF(ROW()<=B$3,INDEX(FP!G:G,B$2+ROW()-1),"") ->  | H25: =IF(ROW()<=B$3,INDEX(FP!C:C,B$2+ROW()-1),"") ->  | L25: 99 | M25: =$A24 ->  | N25: 99
A26: =IF(ROW()<=B$3,INDEX(FP!F:F,B$2+ROW()-1)&" - "&INDEX(FP!C:C,B$2+ROW()-1),"") ->  | C26: =IF(ROW()<=B$3,INDEX(FP!E:E,B$2+ROW()-1),"") ->  | D26: =IF(ROW()<=B$3,INDEX(FP!F:F,B$2+ROW()-1),"") ->  | F26: =IF(ROW()<=B$3,INDEX(FP!G:G,B$2+ROW()-1),"") ->  | H26: =IF(ROW()<=B$3,INDEX(FP!C:C,B$2+ROW()-1),"") ->  | L26: 99 | M26: AAA | N26: HHH
A27: =IF(ROW()<=B$3,INDEX(FP!F:F,B$2+ROW()-1)&" - "&INDEX(FP!C:C,B$2+ROW()-1),"") ->  | C27: =IF(ROW()<=B$3,INDEX(FP!E:E,B$2+ROW()-1),"") ->  | D27: =IF(ROW()<=B$3,INDEX(FP!F:F,B$2+ROW()-1),"") ->  | F27: =IF(ROW()<=B$3,INDEX(FP!G:G,B$2+ROW()-1),"") ->  | H27: =IF(ROW()<=B$3,INDEX(FP!C:C,B$2+ROW()-1),"") ->  | L27: 99 | M27: =$A26 ->  | N27: 99
A28: =IF(ROW()<=B$3,INDEX(FP!F:F,B$2+ROW()-1)&" - "&INDEX(FP!C:C,B$2+ROW()-1),"") ->  | C28: =IF(ROW()<=B$3,INDEX(FP!E:E,B$2+ROW()-1),"") ->  | D28: =IF(ROW()<=B$3,INDEX(FP!F:F,B$2+ROW()-1),"") ->  | F28: =IF(ROW()<=B$3,INDEX(FP!G:G,B$2+ROW()-1),"") ->  | H28: =IF(ROW()<=B$3,INDEX(FP!C:C,B$2+ROW()-1),"") ->  | L28: 99 | M28: AAA | N28: HHH
A29: =IF(ROW()<=B$3,INDEX(FP!F:F,B$2+ROW()-1)&" - "&INDEX(FP!C:C,B$2+ROW()-1),"") ->  | C29: =IF(ROW()<=B$3,INDEX(FP!E:E,B$2+ROW()-1),"") ->  | D29: =IF(ROW()<=B$3,INDEX(FP!F:F,B$2+ROW()-1),"") ->  | F29: =IF(ROW()<=B$3,INDEX(FP!G:G,B$2+ROW()-1),"") ->  | H29: =IF(ROW()<=B$3,INDEX(FP!C:C,B$2+ROW()-1),"") ->  | L29: 99 | M29: =$A28 ->  | N29: 99
A30: =IF(ROW()<=B$3,INDEX(FP!F:F,B$2+ROW()-1)&" - "&INDEX(FP!C:C,B$2+ROW()-1),"") ->  | C30: =IF(ROW()<=B$3,INDEX(FP!E:E,B$2+ROW()-1),"") ->  | D30: =IF(ROW()<=B$3,INDEX(FP!F:F,B$2+ROW()-1),"") ->  | F30: =IF(ROW()<=B$3,INDEX(FP!G:G,B$2+ROW()-1),"") ->  | H30: =IF(ROW()<=B$3,INDEX(FP!C:C,B$2+ROW()-1),"") ->  | L30: 99 | M30: AAA | N30: HHH
A31: =IF(ROW()<=B$3,INDEX(FP!F:F,B$2+ROW()-1)&" - "&INDEX(FP!C:C,B$2+ROW()-1),"") ->  | C31: =IF(ROW()<=B$3,INDEX(FP!E:E,B$2+ROW()-1),"") ->  | D31: =IF(ROW()<=B$3,INDEX(FP!F:F,B$2+ROW()-1),"") ->  | F31: =IF(ROW()<=B$3,INDEX(FP!G:G,B$2+ROW()-1),"") ->  | H31: =IF(ROW()<=B$3,INDEX(FP!C:C,B$2+ROW()-1),"") ->  | L31: 99 | M31: =$A30 ->  | N31: 99
A32: =IF(ROW()<=B$3,INDEX(FP!F:F,B$2+ROW()-1)&" - "&INDEX(FP!C:C,B$2+ROW()-1),"") ->  | C32: =IF(ROW()<=B$3,INDEX(FP!E:E,B$2+ROW()-1),"") ->  | D32: =IF(ROW()<=B$3,INDEX(FP!F:F,B$2+ROW()-1),"") ->  | F32: =IF(ROW()<=B$3,INDEX(FP!G:G,B$2+ROW()-1),"") ->  | H32: =IF(ROW()<=B$3,INDEX(FP!C:C,B$2+ROW()-1),"") ->  | L32: 99 | M32: AAA | N32: HHH
A33: =IF(ROW()<=B$3,INDEX(FP!F:F,B$2+ROW()-1)&" - "&INDEX(FP!C:C,B$2+ROW()-1),"") ->  | C33: =IF(ROW()<=B$3,INDEX(FP!E:E,B$2+ROW()-1),"") ->  | D33: =IF(ROW()<=B$3,INDEX(FP!F:F,B$2+ROW()-1),"") ->  | F33: =IF(ROW()<=B$3,INDEX(FP!G:G,B$2+ROW()-1),"") ->  | H33: =IF(ROW()<=B$3,INDEX(FP!C:C,B$2+ROW()-1),"") ->  | I33: =IF(ROW()<=B$3,SUMIF(A$107:A$10042,A33,I$107:I$10042),"") ->  | J33: =IF(ROW()<=B$3,SUMIFS(I$103:I$50042,A$103:A$50042,K33,J$103:J$50042,L33),"") ->  | L33: 99 | M33: =$A32 ->  | N33: 99
A34: =IF(ROW()<=B$3,INDEX(FP!F:F,B$2+ROW()-1)&" - "&INDEX(FP!C:C,B$2+ROW()-1),"") ->  | C34: =IF(ROW()<=B$3,INDEX(FP!E:E,B$2+ROW()-1),"") ->  | D34: =IF(ROW()<=B$3,INDEX(FP!F:F,B$2+ROW()-1),"") ->  | F34: =IF(ROW()<=B$3,INDEX(FP!G:G,B$2+ROW()-1),"") ->  | H34: =IF(ROW()<=B$3,INDEX(FP!C:C,B$2+ROW()-1),"") ->  | L34: 99 | M34: AAA | N34: HHH
A35: =IF(ROW()<=B$3,INDEX(FP!F:F,B$2+ROW()-1)&" - "&INDEX(FP!C:C,B$2+ROW()-1),"") ->  | C35: =IF(ROW()<=B$3,INDEX(FP!E:E,B$2+ROW()-1),"") ->  | D35: =IF(ROW()<=B$3,INDEX(FP!F:F,B$2+ROW()-1),"") ->  | F35: =IF(ROW()<=B$3,INDEX(FP!G:G,B$2+ROW()-1),"") ->  | H35: =IF(ROW()<=B$3,INDEX(FP!C:C,B$2+ROW()-1),"") ->  | L35: 99 | M35: =$A34 ->  | N35: 99
A36: =IF(ROW()<=B$3,INDEX(FP!F:F,B$2+ROW()-1)&" - "&INDEX(FP!C:C,B$2+ROW()-1),"") ->  | C36: =IF(ROW()<=B$3,INDEX(FP!E:E,B$2+ROW()-1),"") ->  | D36: =IF(ROW()<=B$3,INDEX(FP!F:F,B$2+ROW()-1),"") ->  | F36: =IF(ROW()<=B$3,INDEX(FP!G:G,B$2+ROW()-1),"") ->  | H36: =IF(ROW()<=B$3,INDEX(FP!C:C,B$2+ROW()-1),"") ->  | L36: 99 | M36: AAA | N36: HHH
A37: =IF(ROW()<=B$3,INDEX(FP!F:F,B$2+ROW()-1)&" - "&INDEX(FP!C:C,B$2+ROW()-1),"") ->  | C37: =IF(ROW()<=B$3,INDEX(FP!E:E,B$2+ROW()-1),"") ->  | D37: =IF(ROW()<=B$3,INDEX(FP!F:F,B$2+ROW()-1),"") ->  | F37: =IF(ROW()<=B$3,INDEX(FP!G:G,B$2+ROW()-1),"") ->  | H37: =IF(ROW()<=B$3,INDEX(FP!C:C,B$2+ROW()-1),"") ->  | L37: 99 | M37: =$A36 ->  | N37: 99
A38: =IF(ROW()<=B$3,INDEX(FP!F:F,B$2+ROW()-1)&" - "&INDEX(FP!C:C,B$2+ROW()-1),"") ->  | C38: =IF(ROW()<=B$3,INDEX(FP!E:E,B$2+ROW()-1),"") ->  | D38: =IF(ROW()<=B$3,INDEX(FP!F:F,B$2+ROW()-1),"") ->  | F38: =IF(ROW()<=B$3,INDEX(FP!G:G,B$2+ROW()-1),"") ->  | H38: =IF(ROW()<=B$3,INDEX(FP!C:C,B$2+ROW()-1),"") ->  | L38: 99 | M38: AAA | N38: HHH
A39: =IF(ROW()<=B$3,INDEX(FP!F:F,B$2+ROW()-1)&" - "&INDEX(FP!C:C,B$2+ROW()-1),"") ->  | C39: =IF(ROW()<=B$3,INDEX(FP!E:E,B$2+ROW()-1),"") ->  | D39: =IF(ROW()<=B$3,INDEX(FP!F:F,B$2+ROW()-1),"") ->  | F39: =IF(ROW()<=B$3,INDEX(FP!G:G,B$2+ROW()-1),"") ->  | H39: =IF(ROW()<=B$3,INDEX(FP!C:C,B$2+ROW()-1),"") ->  | L39: 99 | M39: =$A38 ->  | N39: 99
A40: =IF(ROW()<=B$3,INDEX(FP!F:F,B$2+ROW()-1)&" - "&INDEX(FP!C:C,B$2+ROW()-1),"") ->  | C40: =IF(ROW()<=B$3,INDEX(FP!E:E,B$2+ROW()-1),"") ->  | D40: =IF(ROW()<=B$3,INDEX(FP!F:F,B$2+ROW()-1),"") ->  | F40: =IF(ROW()<=B$3,INDEX(FP!G:G,B$2+ROW()-1),"") ->  | H40: =IF(ROW()<=B$3,INDEX(FP!C:C,B$2+ROW()-1),"") ->  | L40: 99 | M40: AAA | N40: HHH
A41: =IF(ROW()<=B$3,INDEX(FP!F:F,B$2+ROW()-1)&" - "&INDEX(FP!C:C,B$2+ROW()-1),"") ->  | C41: =IF(ROW()<=B$3,INDEX(FP!E:E,B$2+ROW()-1),"") ->  | D41: =IF(ROW()<=B$3,INDEX(FP!F:F,B$2+ROW()-1),"") ->  | F41: =IF(ROW()<=B$3,INDEX(FP!G:G,B$2+ROW()-1),"") ->  | H41: =IF(ROW()<=B$3,INDEX(FP!C:C,B$2+ROW()-1),"") ->  | L41: 99 | M41: =$A40 ->  | N41: 99
A42: =IF(ROW()<=B$3,INDEX(FP!F:F,B$2+ROW()-1)&" - "&INDEX(FP!C:C,B$2+ROW()-1),"") ->  | C42: =IF(ROW()<=B$3,INDEX(FP!E:E,B$2+ROW()-1),"") ->  | D42: =IF(ROW()<=B$3,INDEX(FP!F:F,B$2+ROW()-1),"") ->  | F42: =IF(ROW()<=B$3,INDEX(FP!G:G,B$2+ROW()-1),"") ->  | H42: =IF(ROW()<=B$3,INDEX(FP!C:C,B$2+ROW()-1),"") ->  | L42: 99 | M42: AAA | N42: HHH
A43: =IF(ROW()<=B$3,INDEX(FP!F:F,B$2+ROW()-1)&" - "&INDEX(FP!C:C,B$2+ROW()-1),"") ->  | C43: =IF(ROW()<=B$3,INDEX(FP!E:E,B$2+ROW()-1),"") ->  | D43: =IF(ROW()<=B$3,INDEX(FP!F:F,B$2+ROW()-1),"") ->  | F43: =IF(ROW()<=B$3,INDEX(FP!G:G,B$2+ROW()-1),"") ->  | H43: =IF(ROW()<=B$3,INDEX(FP!C:C,B$2+ROW()-1),"") ->  | L43: 99 | M43: =$A42 ->  | N43: 99
A44: =IF(ROW()<=B$3,INDEX(FP!F:F,B$2+ROW()-1)&" - "&INDEX(FP!C:C,B$2+ROW()-1),"") ->  | C44: =IF(ROW()<=B$3,INDEX(FP!E:E,B$2+ROW()-1),"") ->  | D44: =IF(ROW()<=B$3,INDEX(FP!F:F,B$2+ROW()-1),"") ->  | F44: =IF(ROW()<=B$3,INDEX(FP!G:G,B$2+ROW()-1),"") ->  | H44: =IF(ROW()<=B$3,INDEX(FP!C:C,B$2+ROW()-1),"") ->  | L44: 99 | M44: AAA | N44: HHH
A45: =IF(ROW()<=B$3,INDEX(FP!F:F,B$2+ROW()-1)&" - "&INDEX(FP!C:C,B$2+ROW()-1),"") ->  | C45: =IF(ROW()<=B$3,INDEX(FP!E:E,B$2+ROW()-1),"") ->  | D45: =IF(ROW()<=B$3,INDEX(FP!F:F,B$2+ROW()-1),"") ->  | F45: =IF(ROW()<=B$3,INDEX(FP!G:G,B$2+ROW()-1),"") ->  | H45: =IF(ROW()<=B$3,INDEX(FP!C:C,B$2+ROW()-1),"") ->  | L45: 99 | M45: =$A44 ->  | N45: 99
A46: =IF(ROW()<=B$3,INDEX(FP!F:F,B$2+ROW()-1)&" - "&INDEX(FP!C:C,B$2+ROW()-1),"") ->  | C46: =IF(ROW()<=B$3,INDEX(FP!E:E,B$2+ROW()-1),"") ->  | D46: =IF(ROW()<=B$3,INDEX(FP!F:F,B$2+ROW()-1),"") ->  | F46: =IF(ROW()<=B$3,INDEX(FP!G:G,B$2+ROW()-1),"") ->  | H46: =IF(ROW()<=B$3,INDEX(FP!C:C,B$2+ROW()-1),"") ->  | L46: 99 | M46: AAA | N46: HHH
A47: =IF(ROW()<=B$3,INDEX(FP!F:F,B$2+ROW()-1)&" - "&INDEX(FP!C:C,B$2+ROW()-1),"") ->  | C47: =IF(ROW()<=B$3,INDEX(FP!E:E,B$2+ROW()-1),"") ->  | D47: =IF(ROW()<=B$3,INDEX(FP!F:F,B$2+ROW()-1),"") ->  | F47: =IF(ROW()<=B$3,INDEX(FP!G:G,B$2+ROW()-1),"") ->  | H47: =IF(ROW()<=B$3,INDEX(FP!C:C,B$2+ROW()-1),"") ->  | L47: 99 | M47: =$A46 ->  | N47: 99
A48: =IF(ROW()<=B$3,INDEX(FP!F:F,B$2+ROW()-1)&" - "&INDEX(FP!C:C,B$2+ROW()-1),"") ->  | C48: =IF(ROW()<=B$3,INDEX(FP!E:E,B$2+ROW()-1),"") ->  | D48: =IF(ROW()<=B$3,INDEX(FP!F:F,B$2+ROW()-1),"") ->  | F48: =IF(ROW()<=B$3,INDEX(FP!G:G,B$2+ROW()-1),"") ->  | H48: =IF(ROW()<=B$3,INDEX(FP!C:C,B$2+ROW()-1),"") ->  | L48: 99 | M48: AAA | N48: HHH
A49: =IF(ROW()<=B$3,INDEX(FP!F:F,B$2+ROW()-1)&" - "&INDEX(FP!C:C,B$2+ROW()-1),"") ->  | C49: =IF(ROW()<=B$3,INDEX(FP!E:E,B$2+ROW()-1),"") ->  | D49: =IF(ROW()<=B$3,INDEX(FP!F:F,B$2+ROW()-1),"") ->  | F49: =IF(ROW()<=B$3,INDEX(FP!G:G,B$2+ROW()-1),"") ->  | H49: =IF(ROW()<=B$3,INDEX(FP!C:C,B$2+ROW()-1),"") ->  | L49: 99 | M49: =$A48 ->  | N49: 99
A50: =IF(ROW()<=B$3,INDEX(FP!F:F,B$2+ROW()-1)&" - "&INDEX(FP!C:C,B$2+ROW()-1),"") ->  | C50: =IF(ROW()<=B$3,INDEX(FP!E:E,B$2+ROW()-1),"") ->  | D50: =IF(ROW()<=B$3,INDEX(FP!F:F,B$2+ROW()-1),"") ->  | F50: =IF(ROW()<=B$3,INDEX(FP!G:G,B$2+ROW()-1),"") ->  | H50: =IF(ROW()<=B$3,INDEX(FP!C:C,B$2+ROW()-1),"") ->  | L50: 99 | M50: AAA | N50: HHH
A51: =IF(ROW()<=B$3,INDEX(FP!F:F,B$2+ROW()-1)&" - "&INDEX(FP!C:C,B$2+ROW()-1),"") ->  | C51: =IF(ROW()<=B$3,INDEX(FP!E:E,B$2+ROW()-1),"") ->  | D51: =IF(ROW()<=B$3,INDEX(FP!F:F,B$2+ROW()-1),"") ->  | F51: =IF(ROW()<=B$3,INDEX(FP!G:G,B$2+ROW()-1),"") ->  | H51: =IF(ROW()<=B$3,INDEX(FP!C:C,B$2+ROW()-1),"") ->  | L51: 99 | M51: =$A50 ->  | N51: 99
A52: =IF(ROW()<=B$3,INDEX(FP!F:F,B$2+ROW()-1)&" - "&INDEX(FP!C:C,B$2+ROW()-1),"") ->  | C52: =IF(ROW()<=B$3,INDEX(FP!E:E,B$2+ROW()-1),"") ->  | D52: =IF(ROW()<=B$3,INDEX(FP!F:F,B$2+ROW()-1),"") ->  | F52: =IF(ROW()<=B$3,INDEX(FP!G:G,B$2+ROW()-1),"") ->  | H52: =IF(ROW()<=B$3,INDEX(FP!C:C,B$2+ROW()-1),"") ->  | L52: 99 | M52: AAA | N52: HHH
A53: =IF(ROW()<=B$3,INDEX(FP!F:F,B$2+ROW()-1)&" - "&INDEX(FP!C:C,B$2+ROW()-1),"") ->  | C53: =IF(ROW()<=B$3,INDEX(FP!E:E,B$2+ROW()-1),"") ->  | D53: =IF(ROW()<=B$3,INDEX(FP!F:F,B$2+ROW()-1),"") ->  | F53: =IF(ROW()<=B$3,INDEX(FP!G:G,B$2+ROW()-1),"") ->  | H53: =IF(ROW()<=B$3,INDEX(FP!C:C,B$2+ROW()-1),"") ->  | L53: 99 | M53: =$A52 ->  | N53: 99
A54: =IF(ROW()<=B$3,INDEX(FP!F:F,B$2+ROW()-1)&" - "&INDEX(FP!C:C,B$2+ROW()-1),"") ->  | C54: =IF(ROW()<=B$3,INDEX(FP!E:E,B$2+ROW()-1),"") ->  | D54: =IF(ROW()<=B$3,INDEX(FP!F:F,B$2+ROW()-1),"") ->  | F54: =IF(ROW()<=B$3,INDEX(FP!G:G,B$2+ROW()-1),"") ->  | H54: =IF(ROW()<=B$3,INDEX(FP!C:C,B$2+ROW()-1),"") ->  | L54: 99 | M54: AAA | N54: HHH
A55: =IF(ROW()<=B$3,INDEX(FP!F:F,B$2+ROW()-1)&" - "&INDEX(FP!C:C,B$2+ROW()-1),"") ->  | C55: =IF(ROW()<=B$3,INDEX(FP!E:E,B$2+ROW()-1),"") ->  | D55: =IF(ROW()<=B$3,INDEX(FP!F:F,B$2+ROW()-1),"") ->  | F55: =IF(ROW()<=B$3,INDEX(FP!G:G,B$2+ROW()-1),"") ->  | H55: =IF(ROW()<=B$3,INDEX(FP!C:C,B$2+ROW()-1),"") ->  | L55: 99 | M55: =$A54 ->  | N55: 99
A56: =IF(ROW()<=B$3,INDEX(FP!F:F,B$2+ROW()-1)&" - "&INDEX(FP!C:C,B$2+ROW()-1),"") ->  | C56: =IF(ROW()<=B$3,INDEX(FP!E:E,B$2+ROW()-1),"") ->  | D56: =IF(ROW()<=B$3,INDEX(FP!F:F,B$2+ROW()-1),"") ->  | F56: =IF(ROW()<=B$3,INDEX(FP!G:G,B$2+ROW()-1),"") ->  | H56: =IF(ROW()<=B$3,INDEX(FP!C:C,B$2+ROW()-1),"") ->  | L56: 99 | M56: AAA | N56: HHH
A57: =IF(ROW()<=B$3,INDEX(FP!F:F,B$2+ROW()-1)&" - "&INDEX(FP!C:C,B$2+ROW()-1),"") ->  | C57: =IF(ROW()<=B$3,INDEX(FP!E:E,B$2+ROW()-1),"") ->  | D57: =IF(ROW()<=B$3,INDEX(FP!F:F,B$2+ROW()-1),"") ->  | F57: =IF(ROW()<=B$3,INDEX(FP!G:G,B$2+ROW()-1),"") ->  | H57: =IF(ROW()<=B$3,INDEX(FP!C:C,B$2+ROW()-1),"") ->  | L57: 99 | M57: =$A56 ->  | N57: 99
A58: =IF(ROW()<=B$3,INDEX(FP!F:F,B$2+ROW()-1)&" - "&INDEX(FP!C:C,B$2+ROW()-1),"") ->  | C58: =IF(ROW()<=B$3,INDEX(FP!E:E,B$2+ROW()-1),"") ->  | D58: =IF(ROW()<=B$3,INDEX(FP!F:F,B$2+ROW()-1),"") ->  | F58: =IF(ROW()<=B$3,INDEX(FP!G:G,B$2+ROW()-1),"") ->  | H58: =IF(ROW()<=B$3,INDEX(FP!C:C,B$2+ROW()-1),"") ->  | L58: 99 | M58: AAA | N58: HHH
A59: =IF(ROW()<=B$3,INDEX(FP!F:F,B$2+ROW()-1)&" - "&INDEX(FP!C:C,B$2+ROW()-1),"") ->  | C59: =IF(ROW()<=B$3,INDEX(FP!E:E,B$2+ROW()-1),"") ->  | D59: =IF(ROW()<=B$3,INDEX(FP!F:F,B$2+ROW()-1),"") ->  | F59: =IF(ROW()<=B$3,INDEX(FP!G:G,B$2+ROW()-1),"") ->  | H59: =IF(ROW()<=B$3,INDEX(FP!C:C,B$2+ROW()-1),"") ->  | L59: 99 | M59: =$A58 ->  | N59: 99
A60: =IF(ROW()<=B$3,INDEX(FP!F:F,B$2+ROW()-1)&" - "&INDEX(FP!C:C,B$2+ROW()-1),"") ->  | C60: =IF(ROW()<=B$3,INDEX(FP!E:E,B$2+ROW()-1),"") ->  | D60: =IF(ROW()<=B$3,INDEX(FP!F:F,B$2+ROW()-1),"") ->  | F60: =IF(ROW()<=B$3,INDEX(FP!G:G,B$2+ROW()-1),"") ->  | H60: =IF(ROW()<=B$3,INDEX(FP!C:C,B$2+ROW()-1),"") ->  | L60: 99 | M60: AAA | N60: HHH
A61: =IF(ROW()<=B$3,INDEX(FP!F:F,B$2+ROW()-1)&" - "&INDEX(FP!C:C,B$2+ROW()-1),"") ->  | C61: =IF(ROW()<=B$3,INDEX(FP!E:E,B$2+ROW()-1),"") ->  | D61: =IF(ROW()<=B$3,INDEX(FP!F:F,B$2+ROW()-1),"") ->  | F61: =IF(ROW()<=B$3,INDEX(FP!G:G,B$2+ROW()-1),"") ->  | H61: =IF(ROW()<=B$3,INDEX(FP!C:C,B$2+ROW()-1),"") ->  | L61: 99 | M61: =$A60 ->  | N61: 99
A62: =IF(ROW()<=B$3,INDEX(FP!F:F,B$2+ROW()-1)&" - "&INDEX(FP!C:C,B$2+ROW()-1),"") ->  | C62: =IF(ROW()<=B$3,INDEX(FP!E:E,B$2+ROW()-1),"") ->  | D62: =IF(ROW()<=B$3,INDEX(FP!F:F,B$2+ROW()-1),"") ->  | F62: =IF(ROW()<=B$3,INDEX(FP!G:G,B$2+ROW()-1),"") ->  | H62: =IF(ROW()<=B$3,INDEX(FP!C:C,B$2+ROW()-1),"") ->  | L62: 99 | M62: AAA | N62: HHH
A63: =IF(ROW()<=B$3,INDEX(FP!F:F,B$2+ROW()-1)&" - "&INDEX(FP!C:C,B$2+ROW()-1),"") ->  | C63: =IF(ROW()<=B$3,INDEX(FP!E:E,B$2+ROW()-1),"") ->  | D63: =IF(ROW()<=B$3,INDEX(FP!F:F,B$2+ROW()-1),"") ->  | F63: =IF(ROW()<=B$3,INDEX(FP!G:G,B$2+ROW()-1),"") ->  | H63: =IF(ROW()<=B$3,INDEX(FP!C:C,B$2+ROW()-1),"") ->  | L63: 99 | M63: =$A62 ->  | N63: 99
A64: =IF(ROW()<=B$3,INDEX(FP!F:F,B$2+ROW()-1)&" - "&INDEX(FP!C:C,B$2+ROW()-1),"") ->  | C64: =IF(ROW()<=B$3,INDEX(FP!E:E,B$2+ROW()-1),"") ->  | D64: =IF(ROW()<=B$3,INDEX(FP!F:F,B$2+ROW()-1),"") ->  | F64: =IF(ROW()<=B$3,INDEX(FP!G:G,B$2+ROW()-1),"") ->  | H64: =IF(ROW()<=B$3,INDEX(FP!C:C,B$2+ROW()-1),"") ->  | L64: 99 | M64: AAA | N64: HHH
A65: =IF(ROW()<=B$3,INDEX(FP!F:F,B$2+ROW()-1)&" - "&INDEX(FP!C:C,B$2+ROW()-1),"") ->  | C65: =IF(ROW()<=B$3,INDEX(FP!E:E,B$2+ROW()-1),"") ->  | D65: =IF(ROW()<=B$3,INDEX(FP!F:F,B$2+ROW()-1),"") ->  | F65: =IF(ROW()<=B$3,INDEX(FP!G:G,B$2+ROW()-1),"") ->  | H65: =IF(ROW()<=B$3,INDEX(FP!C:C,B$2+ROW()-1),"") ->  | I65: =IF(ROW()<=B$3,SUMIF(A$107:A$10042,A65,I$107:I$10042),"") ->  | J65: =IF(ROW()<=B$3,SUMIFS(I$103:I$50042,A$103:A$50042,K65,J$103:J$50042,L65),"") ->  | L65: 99 | M65: =$A64 ->  | N65: 99
A66: =IF(ROW()<=B$3,INDEX(FP!F:F,B$2+ROW()-1)&" - "&INDEX(FP!C:C,B$2+ROW()-1),"") ->  | C66: =IF(ROW()<=B$3,INDEX(FP!E:E,B$2+ROW()-1),"") ->  | D66: =IF(ROW()<=B$3,INDEX(FP!F:F,B$2+ROW()-1),"") ->  | F66: =IF(ROW()<=B$3,INDEX(FP!G:G,B$2+ROW()-1),"") ->  | H66: =IF(ROW()<=B$3,INDEX(FP!C:C,B$2+ROW()-1),"") ->  | L66: 99 | M66: AAA | N66: HHH
A67: =IF(ROW()<=B$3,INDEX(FP!F:F,B$2+ROW()-1)&" - "&INDEX(FP!C:C,B$2+ROW()-1),"") ->  | C67: =IF(ROW()<=B$3,INDEX(FP!E:E,B$2+ROW()-1),"") ->  | D67: =IF(ROW()<=B$3,INDEX(FP!F:F,B$2+ROW()-1),"") ->  | F67: =IF(ROW()<=B$3,INDEX(FP!G:G,B$2+ROW()-1),"") ->  | H67: =IF(ROW()<=B$3,INDEX(FP!C:C,B$2+ROW()-1),"") ->  | K67: =$A67 ->  | L67: 99 | M67: =$A66 ->  | N67: 99
A68: =IF(ROW()<=B$3,INDEX(FP!F:F,B$2+ROW()-1)&" - "&INDEX(FP!C:C,B$2+ROW()-1),"") ->  | C68: =IF(ROW()<=B$3,INDEX(FP!E:E,B$2+ROW()-1),"") ->  | D68: =IF(ROW()<=B$3,INDEX(FP!F:F,B$2+ROW()-1),"") ->  | F68: =IF(ROW()<=B$3,INDEX(FP!G:G,B$2+ROW()-1),"") ->  | H68: =IF(ROW()<=B$3,INDEX(FP!C:C,B$2+ROW()-1),"") ->  | L68: 99 | M68: AAA | N68: HHH
A69: =IF(ROW()<=B$3,INDEX(FP!F:F,B$2+ROW()-1)&" - "&INDEX(FP!C:C,B$2+ROW()-1),"") ->  | C69: =IF(ROW()<=B$3,INDEX(FP!E:E,B$2+ROW()-1),"") ->  | D69: =IF(ROW()<=B$3,INDEX(FP!F:F,B$2+ROW()-1),"") ->  | F69: =IF(ROW()<=B$3,INDEX(FP!G:G,B$2+ROW()-1),"") ->  | H69: =IF(ROW()<=B$3,INDEX(FP!C:C,B$2+ROW()-1),"") ->  | L69: 99 | M69: =$A68 ->  | N69: 99
A70: =IF(ROW()<=B$3,INDEX(FP!F:F,B$2+ROW()-1)&" - "&INDEX(FP!C:C,B$2+ROW()-1),"") ->  | C70: =IF(ROW()<=B$3,INDEX(FP!E:E,B$2+ROW()-1),"") ->  | D70: =IF(ROW()<=B$3,INDEX(FP!F:F,B$2+ROW()-1),"") ->  | F70: =IF(ROW()<=B$3,INDEX(FP!G:G,B$2+ROW()-1),"") ->  | H70: =IF(ROW()<=B$3,INDEX(FP!C:C,B$2+ROW()-1),"") ->  | L70: 99 | M70: AAA | N70: HHH
A71: =IF(ROW()<=B$3,INDEX(FP!F:F,B$2+ROW()-1)&" - "&INDEX(FP!C:C,B$2+ROW()-1),"") ->  | C71: =IF(ROW()<=B$3,INDEX(FP!E:E,B$2+ROW()-1),"") ->  | D71: =IF(ROW()<=B$3,INDEX(FP!F:F,B$2+ROW()-1),"") ->  | F71: =IF(ROW()<=B$3,INDEX(FP!G:G,B$2+ROW()-1),"") ->  | H71: =IF(ROW()<=B$3,INDEX(FP!C:C,B$2+ROW()-1),"") ->  | L71: 99 | M71: =$A70 ->  | N71: 99
A72: =IF(ROW()<=B$3,INDEX(FP!F:F,B$2+ROW()-1)&" - "&INDEX(FP!C:C,B$2+ROW()-1),"") ->  | C72: =IF(ROW()<=B$3,INDEX(FP!E:E,B$2+ROW()-1),"") ->  | D72: =IF(ROW()<=B$3,INDEX(FP!F:F,B$2+ROW()-1),"") ->  | F72: =IF(ROW()<=B$3,INDEX(FP!G:G,B$2+ROW()-1),"") ->  | H72: =IF(ROW()<=B$3,INDEX(FP!C:C,B$2+ROW()-1),"") ->  | L72: 99 | M72: AAA | N72: HHH
A73: =IF(ROW()<=B$3,INDEX(FP!F:F,B$2+ROW()-1)&" - "&INDEX(FP!C:C,B$2+ROW()-1),"") ->  | C73: =IF(ROW()<=B$3,INDEX(FP!E:E,B$2+ROW()-1),"") ->  | D73: =IF(ROW()<=B$3,INDEX(FP!F:F,B$2+ROW()-1),"") ->  | F73: =IF(ROW()<=B$3,INDEX(FP!G:G,B$2+ROW()-1),"") ->  | H73: =IF(ROW()<=B$3,INDEX(FP!C:C,B$2+ROW()-1),"") ->  | L73: 99 | M73: =$A72 ->  | N73: 99
A74: =IF(ROW()<=B$3,INDEX(FP!F:F,B$2+ROW()-1)&" - "&INDEX(FP!C:C,B$2+ROW()-1),"") ->  | C74: =IF(ROW()<=B$3,INDEX(FP!E:E,B$2+ROW()-1),"") ->  | D74: =IF(ROW()<=B$3,INDEX(FP!F:F,B$2+ROW()-1),"") ->  | F74: =IF(ROW()<=B$3,INDEX(FP!G:G,B$2+ROW()-1),"") ->  | H74: =IF(ROW()<=B$3,INDEX(FP!C:C,B$2+ROW()-1),"") ->  | L74: 99 | M74: AAA | N74: HHH
A75: =IF(ROW()<=B$3,INDEX(FP!F:F,B$2+ROW()-1)&" - "&INDEX(FP!C:C,B$2+ROW()-1),"") ->  | C75: =IF(ROW()<=B$3,INDEX(FP!E:E,B$2+ROW()-1),"") ->  | D75: =IF(ROW()<=B$3,INDEX(FP!F:F,B$2+ROW()-1),"") ->  | F75: =IF(ROW()<=B$3,INDEX(FP!G:G,B$2+ROW()-1),"") ->  | H75: =IF(ROW()<=B$3,INDEX(FP!C:C,B$2+ROW()-1),"") ->  | L75: 99 | M75: =$A74 ->  | N75: 99
A76: =IF(ROW()<=B$3,INDEX(FP!F:F,B$2+ROW()-1)&" - "&INDEX(FP!C:C,B$2+ROW()-1),"") ->  | C76: =IF(ROW()<=B$3,INDEX(FP!E:E,B$2+ROW()-1),"") ->  | D76: =IF(ROW()<=B$3,INDEX(FP!F:F,B$2+ROW()-1),"") ->  | F76: =IF(ROW()<=B$3,INDEX(FP!G:G,B$2+ROW()-1),"") ->  | H76: =IF(ROW()<=B$3,INDEX(FP!C:C,B$2+ROW()-1),"") ->  | L76: 99 | M76: AAA | N76: HHH
A77: =IF(ROW()<=B$3,INDEX(FP!F:F,B$2+ROW()-1)&" - "&INDEX(FP!C:C,B$2+ROW()-1),"") ->  | C77: =IF(ROW()<=B$3,INDEX(FP!E:E,B$2+ROW()-1),"") ->  | D77: =IF(ROW()<=B$3,INDEX(FP!F:F,B$2+ROW()-1),"") ->  | F77: =IF(ROW()<=B$3,INDEX(FP!G:G,B$2+ROW()-1),"") ->  | H77: =IF(ROW()<=B$3,INDEX(FP!C:C,B$2+ROW()-1),"") ->  | L77: 99 | M77: =$A76 ->  | N77: 99
A78: =IF(ROW()<=B$3,INDEX(FP!F:F,B$2+ROW()-1)&" - "&INDEX(FP!C:C,B$2+ROW()-1),"") ->  | C78: =IF(ROW()<=B$3,INDEX(FP!E:E,B$2+ROW()-1),"") ->  | D78: =IF(ROW()<=B$3,INDEX(FP!F:F,B$2+ROW()-1),"") ->  | F78: =IF(ROW()<=B$3,INDEX(FP!G:G,B$2+ROW()-1),"") ->  | H78: =IF(ROW()<=B$3,INDEX(FP!C:C,B$2+ROW()-1),"") ->  | L78: 99 | M78: AAA | N78: HHH
A79: =IF(ROW()<=B$3,INDEX(FP!F:F,B$2+ROW()-1)&" - "&INDEX(FP!C:C,B$2+ROW()-1),"") ->  | C79: =IF(ROW()<=B$3,INDEX(FP!E:E,B$2+ROW()-1),"") ->  | D79: =IF(ROW()<=B$3,INDEX(FP!F:F,B$2+ROW()-1),"") ->  | F79: =IF(ROW()<=B$3,INDEX(FP!G:G,B$2+ROW()-1),"") ->  | H79: =IF(ROW()<=B$3,INDEX(FP!C:C,B$2+ROW()-1),"") ->  | L79: 99 | M79: =$A78 ->  | N79: 99
A80: =IF(ROW()<=B$3,INDEX(FP!F:F,B$2+ROW()-1)&" - "&INDEX(FP!C:C,B$2+ROW()-1),"") ->  | C80: =IF(ROW()<=B$3,INDEX(FP!E:E,B$2+ROW()-1),"") ->  | D80: =IF(ROW()<=B$3,INDEX(FP!F:F,B$2+ROW()-1),"") ->  | F80: =IF(ROW()<=B$3,INDEX(FP!G:G,B$2+ROW()-1),"") ->  | H80: =IF(ROW()<=B$3,INDEX(FP!C:C,B$2+ROW()-1),"") ->  | L80: 99 | M80: AAA | N80: HHH
A81: =IF(ROW()<=B$3,INDEX(FP!F:F,B$2+ROW()-1)&" - "&INDEX(FP!C:C,B$2+ROW()-1),"") ->  | C81: =IF(ROW()<=B$3,INDEX(FP!E:E,B$2+ROW()-1),"") ->  | D81: =IF(ROW()<=B$3,INDEX(FP!F:F,B$2+ROW()-1),"") ->  | F81: =IF(ROW()<=B$3,INDEX(FP!G:G,B$2+ROW()-1),"") ->  | H81: =IF(ROW()<=B$3,INDEX(FP!C:C,B$2+ROW()-1),"") ->  | L81: 99 | M81: =$A80 ->  | N81: 99
A82: =IF(ROW()<=B$3,INDEX(FP!F:F,B$2+ROW()-1)&" - "&INDEX(FP!C:C,B$2+ROW()-1),"") ->  | C82: =IF(ROW()<=B$3,INDEX(FP!E:E,B$2+ROW()-1),"") ->  | D82: =IF(ROW()<=B$3,INDEX(FP!F:F,B$2+ROW()-1),"") ->  | F82: =IF(ROW()<=B$3,INDEX(FP!G:G,B$2+ROW()-1),"") ->  | H82: =IF(ROW()<=B$3,INDEX(FP!C:C,B$2+ROW()-1),"") ->  | L82: 99 | M82: AAA | N82: HHH
A83: =IF(ROW()<=B$3,INDEX(FP!F:F,B$2+ROW()-1)&" - "&INDEX(FP!C:C,B$2+ROW()-1),"") ->  | C83: =IF(ROW()<=B$3,INDEX(FP!E:E,B$2+ROW()-1),"") ->  | D83: =IF(ROW()<=B$3,INDEX(FP!F:F,B$2+ROW()-1),"") ->  | F83: =IF(ROW()<=B$3,INDEX(FP!G:G,B$2+ROW()-1),"") ->  | H83: =IF(ROW()<=B$3,INDEX(FP!C:C,B$2+ROW()-1),"") ->  | L83: 99 | M83: =$A82 ->  | N83: 99
A84: =IF(ROW()<=B$3,INDEX(FP!F:F,B$2+ROW()-1)&" - "&INDEX(FP!C:C,B$2+ROW()-1),"") ->  | C84: =IF(ROW()<=B$3,INDEX(FP!E:E,B$2+ROW()-1),"") ->  | D84: =IF(ROW()<=B$3,INDEX(FP!F:F,B$2+ROW()-1),"") ->  | F84: =IF(ROW()<=B$3,INDEX(FP!G:G,B$2+ROW()-1),"") ->  | H84: =IF(ROW()<=B$3,INDEX(FP!C:C,B$2+ROW()-1),"") ->  | L84: 99 | M84: AAA | N84: HHH
A85: =IF(ROW()<=B$3,INDEX(FP!F:F,B$2+ROW()-1)&" - "&INDEX(FP!C:C,B$2+ROW()-1),"") ->  | C85: =IF(ROW()<=B$3,INDEX(FP!E:E,B$2+ROW()-1),"") ->  | D85: =IF(ROW()<=B$3,INDEX(FP!F:F,B$2+ROW()-1),"") ->  | F85: =IF(ROW()<=B$3,INDEX(FP!G:G,B$2+ROW()-1),"") ->  | H85: =IF(ROW()<=B$3,INDEX(FP!C:C,B$2+ROW()-1),"") ->  | L85: 99 | M85: =$A84 ->  | N85: 99
A86: =IF(ROW()<=B$3,INDEX(FP!F:F,B$2+ROW()-1)&" - "&INDEX(FP!C:C,B$2+ROW()-1),"") ->  | C86: =IF(ROW()<=B$3,INDEX(FP!E:E,B$2+ROW()-1),"") ->  | D86: =IF(ROW()<=B$3,INDEX(FP!F:F,B$2+ROW()-1),"") ->  | F86: =IF(ROW()<=B$3,INDEX(FP!G:G,B$2+ROW()-1),"") ->  | H86: =IF(ROW()<=B$3,INDEX(FP!C:C,B$2+ROW()-1),"") ->  | L86: 99 | M86: AAA | N86: HHH
A87: =IF(ROW()<=B$3,INDEX(FP!F:F,B$2+ROW()-1)&" - "&INDEX(FP!C:C,B$2+ROW()-1),"") ->  | C87: =IF(ROW()<=B$3,INDEX(FP!E:E,B$2+ROW()-1),"") ->  | D87: =IF(ROW()<=B$3,INDEX(FP!F:F,B$2+ROW()-1),"") ->  | F87: =IF(ROW()<=B$3,INDEX(FP!G:G,B$2+ROW()-1),"") ->  | H87: =IF(ROW()<=B$3,INDEX(FP!C:C,B$2+ROW()-1),"") ->  | L87: 99 | M87: =$A86 ->  | N87: 99
A88: =IF(ROW()<=B$3,INDEX(FP!F:F,B$2+ROW()-1)&" - "&INDEX(FP!C:C,B$2+ROW()-1),"") ->  | C88: =IF(ROW()<=B$3,INDEX(FP!E:E,B$2+ROW()-1),"") ->  | D88: =IF(ROW()<=B$3,INDEX(FP!F:F,B$2+ROW()-1),"") ->  | F88: =IF(ROW()<=B$3,INDEX(FP!G:G,B$2+ROW()-1),"") ->  | H88: =IF(ROW()<=B$3,INDEX(FP!C:C,B$2+ROW()-1),"") ->  | L88: 99 | M88: AAA | N88: HHH
A89: =IF(ROW()<=B$3,INDEX(FP!F:F,B$2+ROW()-1)&" - "&INDEX(FP!C:C,B$2+ROW()-1),"") ->  | C89: =IF(ROW()<=B$3,INDEX(FP!E:E,B$2+ROW()-1),"") ->  | D89: =IF(ROW()<=B$3,INDEX(FP!F:F,B$2+ROW()-1),"") ->  | F89: =IF(ROW()<=B$3,INDEX(FP!G:G,B$2+ROW()-1),"") ->  | H89: =IF(ROW()<=B$3,INDEX(FP!C:C,B$2+ROW()-1),"") ->  | L89: 99 | M89: =$A88 ->  | N89: 99
A90: =IF(ROW()<=B$3,INDEX(FP!F:F,B$2+ROW()-1)&" - "&INDEX(FP!C:C,B$2+ROW()-1),"") ->  | C90: =IF(ROW()<=B$3,INDEX(FP!E:E,B$2+ROW()-1),"") ->  | D90: =IF(ROW()<=B$3,INDEX(FP!F:F,B$2+ROW()-1),"") ->  | F90: =IF(ROW()<=B$3,INDEX(FP!G:G,B$2+ROW()-1),"") ->  | H90: =IF(ROW()<=B$3,INDEX(FP!C:C,B$2+ROW()-1),"") ->  | L90: 99 | M90: AAA | N90: HHH
A91: =IF(ROW()<=B$3,INDEX(FP!F:F,B$2+ROW()-1)&" - "&INDEX(FP!C:C,B$2+ROW()-1),"") ->  | C91: =IF(ROW()<=B$3,INDEX(FP!E:E,B$2+ROW()-1),"") ->  | D91: =IF(ROW()<=B$3,INDEX(FP!F:F,B$2+ROW()-1),"") ->  | F91: =IF(ROW()<=B$3,INDEX(FP!G:G,B$2+ROW()-1),"") ->  | H91: =IF(ROW()<=B$3,INDEX(FP!C:C,B$2+ROW()-1),"") ->  | L91: 99 | M91: =$A90 ->  | N91: 99
A92: =IF(ROW()<=B$3,INDEX(FP!F:F,B$2+ROW()-1)&" - "&INDEX(FP!C:C,B$2+ROW()-1),"") ->  | C92: =IF(ROW()<=B$3,INDEX(FP!E:E,B$2+ROW()-1),"") ->  | D92: =IF(ROW()<=B$3,INDEX(FP!F:F,B$2+ROW()-1),"") ->  | F92: =IF(ROW()<=B$3,INDEX(FP!G:G,B$2+ROW()-1),"") ->  | H92: =IF(ROW()<=B$3,INDEX(FP!C:C,B$2+ROW()-1),"") ->  | L92: 99 | M92: AAA | N92: HHH
A93: =IF(ROW()<=B$3,INDEX(FP!F:F,B$2+ROW()-1)&" - "&INDEX(FP!C:C,B$2+ROW()-1),"") ->  | C93: =IF(ROW()<=B$3,INDEX(FP!E:E,B$2+ROW()-1),"") ->  | D93: =IF(ROW()<=B$3,INDEX(FP!F:F,B$2+ROW()-1),"") ->  | F93: =IF(ROW()<=B$3,INDEX(FP!G:G,B$2+ROW()-1),"") ->  | H93: =IF(ROW()<=B$3,INDEX(FP!C:C,B$2+ROW()-1),"") ->  | L93: 99 | M93: =$A92 ->  | N93: 99
A94: =IF(ROW()<=B$3,INDEX(FP!F:F,B$2+ROW()-1)&" - "&INDEX(FP!C:C,B$2+ROW()-1),"") ->  | C94: =IF(ROW()<=B$3,INDEX(FP!E:E,B$2+ROW()-1),"") ->  | D94: =IF(ROW()<=B$3,INDEX(FP!F:F,B$2+ROW()-1),"") ->  | F94: =IF(ROW()<=B$3,INDEX(FP!G:G,B$2+ROW()-1),"") ->  | H94: =IF(ROW()<=B$3,INDEX(FP!C:C,B$2+ROW()-1),"") ->  | L94: 99 | M94: AAA | N94: HHH
F95: =IF(ROW()<=B$3,INDEX(FP!G:G,B$2+ROW()-1),"") ->  | M95: =$A94 ->  | N95: 99
F96: Organizácia podujatia názov podujatia (napr. Kongres ISF, Svetový pohár ICU): miesto konania (napr. Komjatice): termín (od-do) (napr. 1.5.-15.5.2013): počet aktívnych účastníkov (napr. 223): počet odpracovaných hodín spolu: (napr. 690): hrubé mzdy vyplatené osobám v súvislosti s podujatím vrátane odvodov zamestnávateľa spolu (dohody, zmluvy, faktúry, a pod.) v eur:
F97: Hrubé mzdy vyplatené osobám (zamestnancom) vrátane odvodov zamestnávateľa počet fyzických osôb (napr. 3): obdobie (napr. január - marec):
F98: Služobné motorové vozidlo EČV (napr. BB 123 AK): Obdobie (napr. 3.7.-28.7.2013): Najazdené kilometre (napr. 1 211 km):
F99: Pracovná cesta (napr. výjazd na výkonný výbor, na majstrovstvá) Názov (napr. majstrovstvá sveta, sústredenie, kongres, zasadnutie komisie): Termín (napr. 1.5.-3.6.2013): Miesto - mesto a štát (napr. Palermo, Taliansko): Spôsob dopravy (napr. letecky): Počet všetkých osôb na pracovnej ceste (napr. 17) z toho: - športovci (+ navádzači): 12 - tréneri + rozhodcovia + vedúci výpravy + administratívni pracovníci + lekár + fyzioterapeut + masér + ): 2 - ostatné osoby (napr. sponzori, hostia): 3
A100: Priebežné čerpanie a vyúčtovanie finančných prostriedkov poskytnutých zo štátneho rozpočtu v oblasti športu v roku 2024 | I100: V1
I101: 2024-01-25
A102: Názov prijímateľa prostriedkov: | B102: 61
A103: AAA | B103: BBB | C103: CCC | D103: DDD | F103: EEE | H103: FFF | I103: GGG | J103: HHH
A104: Účel úhrady (vyberte zo zoznamu, inak automatické vyhodnocovanie nebude fungovať) | B104: Interné číslo účtovného dokladu | C104: Číslo externého (originálneho) účtovného dokladu | D104: Dátum skutočnej úhrady účtovného dokladu | E104: Dátum refundácie účtovného dokladu | F104: Popis úhrady (vyberte z rozbaľovacieho zoznamu, alebo zadajte voľný text) | G104: IČO dodávateľa plnenia | H104: Dodávateľ plnenia | I104: Skutočne uhradená suma (eur) | J104: AK
A105: ÚDAJE ZORADIŤ PODĽA ÚČELU ÚHRADY A V RÁMCI JEDNÉHO ÚČELU PODĽA POPISU ÚHRADY
A107: a - krasokorčuľovanie - bežné transfery | B107: VUB 2/24 | C107: VUB 2/24 | D107: 2024-02-29 | F107: 1x výpis a poštovné | G107: 31320155 | H107: Všeobecná úverová banka,a.s. | I107: 3.65 | J107: 4
A108: a - krasokorčuľovanie - bežné transfery | B108: VUB 2/24 | C108: VUB 2/24 | D108: 2024-02-29 | F108: Vedenie konta VÚB Biznis účet Prem | G108: 31320155 | H108: Všeobecná úverová banka,a.s. | I108: 22 | J108: 4
A109: a - krasokorčuľovanie - bežné transfery | B109: VUB 3/24 | C109: VUB 3/24 | D109: 2024-03-28 | F109: 1x výpis a poštovné | G109: 31320155 | H109: Všeobecná úverová banka,a.s. | I109: 3.65 | J109: 4
A110: a - krasokorčuľovanie - bežné transfery | B110: VUB 3/24 | C110: VUB 3/24 | D110: 2024-03-28 | F110: Vedenie konta VÚB Biznis účet Prem | G110: 31320155 | H110: Všeobecná úverová banka,a.s. | I110: 22 | J110: 4
A111: a - krasokorčuľovanie - bežné transfery | C111: 56/2024 | D111: 2024-04-17 | F111: ISU Pair seminár - pracovná cesta-cestovné, účastnícky poplatok Berlín, Nemecko 31.3.-6.4.2024, doprava: AUV účastníci: tréneri: Vrlák Rastislav športovci: Sitková, Kubacak | H111: Vrlák Rastislav-vyúčtovateľ | I111: 540.2 | J111: 3
A112: a - krasokorčuľovanie - bežné transfery | D112: 2024-04-17 | F112: poštovné | H112: Vozárová Lucia, Mgr.-vyúčtovateľ | I112: 13.2 | J112: 4
A113: a - krasokorčuľovanie - bežné transfery | C113: 18/2024 | D113: 2024-04-24 | F113: ISU Majstrovstvá sveta - pracovná cesta-cestovné, parkovné Montreal, Kanada 17.3.-26.3.2024 doprava: AUV, AIR | H113: Hagara Miroslav, Ing.-vyúčtovateľ | I113: 202.86 | J113: 3
A114: a - krasokorčuľovanie - bežné transfery | D114: 2024-04-25 | F114: poštovné | H114: Vozárová Lucia, Mgr.-vyúčtovateľ | I114: 13.8 | J114: 4
A115: a - krasokorčuľovanie - bežné transfery | D115: 2024-04-29 | F115: Zasadnutie Kontrolnej komisie - pracovná cesta-cestovné, stravné, ubytovanie Bratislava-Košice, 25.4.-27.4.2024, doprava: AUV účastníci: Poljaková, Komarovská | H115: Poljaková Marta-vyúčtovateľ | I115: 106.85 | J115: 4
A116: a - krasokorčuľovanie - bežné transfery | C116: 2440412 | D116: 2024-04-29 | F116: 1.časť nájomného za prenájom priestorov-Zimný štadión Ondreja Nepelu - podujatie Nepela Memorál | G116: 00179663 | H116: Správa telovýchovných a rekreačných zariadení hlavného mesta Slovenskej republiky Bratislavy | I116: 6000 | J116: 2
A117: a - krasokorčuľovanie - bežné transfery | C117: 5783372190 | F117: telekomunikacne sluzby 4/2024 | H117: Orange Slovensko, a.s. | I117: 67 | J117: 4
A118: a - krasokorčuľovanie - bežné transfery | B118: VUB 4/24 | C118: VUB 4/24 | D118: 2024-04-30 | F118: 1x výpis a poštovné | G118: 31320155 | H118: Všeobecná úverová banka,a.s. | I118: 3.65 | J118: 4
A119: a - krasokorčuľovanie - bežné transfery | B119: VUB 4/24 | C119: VUB 4/24 | D119: 2024-04-30 | F119: Vedenie konta VÚB Biznis účet Prem | G119: 31320155 | H119: Všeobecná úverová banka,a.s. | I119: 22 | J119: 4
A120: a - krasokorčuľovanie - bežné transfery | C120: 3806700001 | D120: 2024-05-03 | F120: flotilové poistenie | G120: 54228573 | H120: Generali Poisťovňa | I120: 221.4 | J120: 4
A121: a - krasokorčuľovanie - bežné transfery | C121: 0202410010 | D121: 2024-05-03 | F121: online workshop o výžive 17.4.2024 | G121: 53937490 | H121: Nutrisport, s.r.o. | I121: 200 | J121: 4
A122: a - krasokorčuľovanie - bežné transfery | C122: 56/2024 | D122: 2024-05-07 | F122: Participation fee-pair skating development seminar Berlin 2024 | H122: Války Alex-vyúčtovateľ | I122: 100 | J122: 3
A123: a - krasokorčuľovanie - bežné transfery | D123: 2024-05-07 | F123: kancelárske potreby | H123: Vozárová Lucia, Mgr.-vyúčtovateľ | I123: 7.9 | J123: 4
A124: a - krasokorčuľovanie - bežné transfery | D124: 2024-05-07 | F124: taxi-Bratislava-Viedeň 5.5.2024 - Amodio+Ecomonides Repre camp 2024 | H124: Vozárová Lucia, Mgr.-vyúčtovateľ | I124: 53.39 | J124: 3
A125: a - krasokorčuľovanie - bežné transfery | D125: 2024-05-07 | F125: Zasadnutie Kontrolnej komisie - pracovná cesta-použitie súkr. vozidla Bratislava-Košice, 25.4.-27.4.2024, doprava: AUV účastníci: Poljaková, Komarovská | H125: Komarovská Marta -vyúčtovateľ | I125: 367.2 | J125: 4
A126: a - krasokorčuľovanie - bežné transfery | C126: 2024002 | D126: 2024-05-07 | F126: organizačné zabezpečenie Repre camp 2024 - 29.4.-4.5.2024-Monika Kuštáková | G126: 55179444 | H126: M&M Excellence Services s.r.o. | I126: 600 | J126: 3
A127: a - krasokorčuľovanie - bežné transfery | C127: 202405K | D127: 2024-05-07 | F127: off-ice tréning - 12 tréning.jednotiek Repre camp 2024 - 29.4.-4.5.2024-Juraj Pecho | G127: 52055167 | H127: Juraj Pecho, PhD. - Strenght & Conditioning | I127: 720 | J127: 3
A128: a - krasokorčuľovanie - bežné transfery | C128: 1010131268 | D128: 2024-05-13 | F128: internet 04/2024 | G128: 35954612 | H128: Slovanet, a.s. | I128: 8.4 | J128: 4
A129: a - krasokorčuľovanie - bežné transfery | C129: 2410329 | D129: 2024-05-13 | F129: prenájom ľadovej plochy, šatní, rozcvičovne a ozvučenia v TIPOS Aréne-ZŠ Ondreja Nepelu 29.4.-30.4.2024-podujatie: Repre camp 2024 | G129: 00179663 | H129: Správa telovýchovných a rekreačných zariadení hlavného mesta Slovenskej republiky Bratislavy | I129: 1707.6 | J129: 3
A130: a - krasokorčuľovanie - bežné transfery | C130: 2410330 | D130: 2024-05-13 | F130: prenájom ľadovej plochy, šatní, rozcvičovne a ozvučenia v TIPOS Aréne-ZŠ Ondreja Nepelu 1.5.-4.5.2024-podujatie: Repre camp 2024 | G130: 00179663 | H130: Správa telovýchovných a rekreačných zariadení hlavného mesta Slovenskej republiky Bratislavy | I130: 3342.4 | J130: 3
A131: a - krasokorčuľovanie - bežné transfery | C131: 56/2024 | D131: 2024-05-13 | F131: ISU Pair seminár - pracovná cesta-cestovné, účastnícky poplatok Berlín, Nemecko 31.3.-6.4.2024, doprava: AUV | H131: Bokor Miroslav-vyúčtovateľ | I131: 356.32 | J131: 3
A132: a - krasokorčuľovanie - bežné transfery | C132: FA-29156 | D132: 2024-05-13 | F132: ubytovanie 29.4.-4.5.2024 - Repre camp | G132: 35880899 | H132: Hotel Set s.r.o. | I132: 2495 | J132: 3
A133: a - krasokorčuľovanie - bežné transfery | C133: UC-45385 | D133: 2024-05-13 | F133: strava 28.4.-4.5.2024 - Repre camp | G133: 35880899 | H133: Hotel Set s.r.o. | I133: 2624 | J133: 3
A134: a - krasokorčuľovanie - bežné transfery | C134: FA-29157 | D134: 2024-05-13 | F134: prenájom sály - školenie - Repre camp | G134: 35880899 | H134: Hotel Set s.r.o. | I134: 40 | J134: 3
A135: a - krasokorčuľovanie - bežné transfery | C135: OFH20240150 | D135: 2024-05-14 | F135: prenájom ľadovej plochy ZŠ NMnV 9.-10.3.2024 - M-SR | G135: 00350656 | H135: Technické služby mesta Nové mesto nad Váhom | I135: 3640 | J135: 2
A136: a - krasokorčuľovanie - bežné transfery | D136: 2024-05-15 | F136: poštovné | H136: Vozárová Lucia, Mgr.-vyúčtovateľ | I136: 15.9 | J136: 4
A137: a - krasokorčuľovanie - bežné transfery | C137: OFH20240166 | D137: 2024-05-15 | F137: prenájom ľadovej plochy ZŠ NMnV 12.1.2024 - testy výkonnosti | G137: 00350656 | H137: Technické služby mesta Nové mesto nad Váhom | I137: 1470 | J137: 2
A138: a - krasokorčuľovanie - bežné transfery | B138: VUB 5/24 | C138: VUB 5/24 | D138: 2024-05-31 | F138: 1x výpis a poštovné | G138: 31320155 | H138: Všeobecná úverová banka,a.s. | I138: 3.65 | J138: 4
A139: a - krasokorčuľovanie - bežné transfery | B139: VUB 5/24 | C139: VUB 5/24 | D139: 2024-05-31 | F139: Vedenie konta VÚB Biznis účet Prem | G139: 31320155 | H139: Všeobecná úverová banka,a.s. | I139: 22 | J139: 4
A141: a - krasokorčuľovanie - bežné transfery | B141: VUB 6/24 | C141: VUB 6/24 | D141: 2024-06-11 | F141: poplatok za zmenu podpisoveho vzoru | G141: 31320155 | H141: Všeobecná úverová banka,a.s. | I141: 3.5 | J141: 4
A144: a - krasokorčuľovanie - bežné transfery | C144: 2024005143 | D144: 2024-06-11 | F144: Valné zhromaždenie SKrZ prenájom priestorov dňa 18.5.2024, Púchov | G144: 36845981 | H144: ALEXANDRA HOTEL, s.r.o. | I144: 1256.75 | J144: 4
A145: a - krasokorčuľovanie - bežné transfery | C145: 1000069624 | D145: 2024-06-11 | F145: Ocenenia | G145: 35774282 | H145: Victory sport, spol. s r.o. | I145: 391 | J145: 4
A146: a - krasokorčuľovanie - bežné transfery | C146: 0202400065 | D146: 2024-06-11 | F146: Overenie účtovnej závierky za rok 2023 - audit | G146: 33620253 | H146: Ing. Edita Čechová | I146: 1060 | J146: 4
A147: a - krasokorčuľovanie - bežné transfery | C147: 132329210 | D147: 2024-06-11 | F147: Telekomunikacne sluzby 5/2024 | G147: 35697270 | H147: Orange Slovensko, a.s. | I147: 67 | J147: 4
A148: a - krasokorčuľovanie - bežné transfery | C148: 1024141 | D148: 2024-06-11 | F148: Nájomné kancelárskych priestorov SKrZ v období 06/2024 | G148: 47234407 | H148: INVEST 5 - Grand House a. s. | I148: 451.99 | J148: 4
A149: a - krasokorčuľovanie - bežné transfery | C149: 1024174 | D149: 2024-06-11 | F149: Nájomné kancelárskych priestorov SKrZ v období 07/2024 | G149: 47234407 | H149: INVEST 5 - Grand House a. s. | I149: 451.99 | J149: 4
A150: a - krasokorčuľovanie - bežné transfery | C150: 6202410249 | D150: 2024-06-25 | F150: Valné zhromaždenie SKrZ prenájom priestorov dňa 15.6.2024, Ružomberok | G150: 35789638 | H150: SLOVAKIA REAL-IN, a.s. | I150: 1100 | J150: 4
A151: a - krasokorčuľovanie - bežné transfery | C151: 32024037 | D151: 2024-06-25 | F151: Tréningový poplatok pre športovcov počas reprezentačného sústredenia 29.4.-4.5.2024, Bratislava, 12x60EUR | G151: 30853923 | H151: Národné športové centrum | I151: 720 | J151: 3
A152: a - krasokorčuľovanie - bežné transfery | C152: 32024038 | D152: 2024-06-25 | F152: Testovanie športovcov počas reprezentačného sústredenia 29.4.-4.5.2024, Bratislava, 9 repre športovcov | G152: 30853923 | H152: Národné športové centrum | I152: 1045.8 | J152: 3
A153: a - krasokorčuľovanie - bežné transfery | D153: 2024-06-26 | F153: poštovné, kancelárske potreby, kolky | H153: Vozárová Lucia, Mgr. - vyúčtovateľ | I153: 67.6 | J153: 4
A154: a - krasokorčuľovanie - bežné transfery | C154: 1010131268 | D154: 2024-06-28 | F154: Poplatok za internet v obdobi 05/2024 | G154: 35954612 | H154: Slovanet, a.s., | I154: 8.4 | J154: 4
A155: a - krasokorčuľovanie - bežné transfery | D155: 2024-06-28 | F155: notárske poplatky za osvedčenie, poštovné | H155: Majerník Peter, JUDr. - vyúčtovateľ | I155: 13.25 | J155: 4
A156: a - krasokorčuľovanie - bežné transfery | B156: VUB 6/24 | C156: VUB 6/24 | D156: 2024-06-28 | F156: 1x výpis a poštovné | G156: 31320155 | H156: Všeobecná úverová banka,a.s. | I156: 3.65 | J156: 4
A157: a - krasokorčuľovanie - bežné transfery | B157: VUB 6/24 | C157: VUB 6/24 | D157: 2024-06-28 | F157: Vedenie konta VÚB Biznis účet Prem | G157: 31320155 | H157: Všeobecná úverová banka,a.s. | I157: 22 | J157: 4

Sheet Adr (hidden)
A1: IČO | B1: Subjekt | C1: Právna forma | D1: Ulica a číslo domu | E1: Mesto | F1: PSČ | G1: Webové sídlo | H1: E-mail | I1: Štatutárny zástupca | J1: Štatutár - funkcia | K1: Kontakná osoba | L1: Kontakt telefón | M1: IBAN 1 | N1: IBAN PUŠ 2 | O1: IBAN TOP | P1: IBAN DOT
A2: 42254388 | B2: Deaflympijský výbor Slovenska | C2: občianske združenie | D2: Kýčerského 7 | E2: Bratislava 1 | F2: 811 05 | G2: www.deaflympic.sk | H2: office@deaflympic.sk | I2: Peter Birka | J2: prezident | K2: Milena Fabšičová | L2: 421911370554 | M2: SK30 1100 0000 0029 2988 5740 | R2: =A2 -> 42254388
A3: 50642804 | B3: iCompete Natural Slovakia | C3: občianske združenie | D3: Jesenského 71 | E3: Zvolen | F3: 960 01 | G3: www.icn.sk | H3: icn@icn.sk | I3: René Tomášek | J3: prezident | K3: René Tomášek | L3: 421905819613 | M3: SK84 7500 0000 0040 3183 7581
A4: 00688312 | B4: Klub slovenských turistov | C4: občianske združenie | D4: Záborského 33 | E4: Bratislava 3 | F4: 831 03 | G4: www.kst.sk | H4: ustredie@kst.sk | I4: František Šiller | J4: predseda | K4: Marica Žáková | L4: 421910448008 | M4: SK34 0900 0000 0001 7152 7595
A5: 47845660 | B5: Košická Futbalová Aréna a. s. | C5: akciová spoločnosť | D5: Pri prachárni 13 | E5: Košice – mestská časť Juh | F5: 040 11 | G5: www.kosickafutbalovaarena.sk | H5: office@kosickafutbalovaarena.sk | I5: Marcel Gibóda, Stanislav Petráš | J5: predseda predstavenstva, člen predstavenstva | M5: SK89 0200 0000 0035 8891 0657
A6: 42269423 | B6: MAMMAL - Slovenský zväz MMA | C6: občianske združenie | D6: Židovská 298/19 | E6: Bratislava 1 | F6: 811 01 | G6: www.mammal.sk | H6: info@mammal.sk; marek.herda@mammal.sk | I6: Marek Herda | J6: prezident | K6: Jana Gurová | L6: 421903555547 | M6: SK31 0200 0000 0031 8656 0551
A7: 00595209 | B7: Maratónsky klub Košice | C7: občianske združenie | D7: Hroncova 2 | E7: Košice | F7: 040 01 | G7: www.kosicemarathon.com | H7: klub@kosicemarathon.com | I7: Ján Sudzina | J7: prezident | M7: SK53 0900 0000 0051 8854 0107
A8: 42296901 | B8: Občianske združenie Street Dance Academy | C8: občianske združenie | D8: Kvačalova 1011/51 | E8: Bratislava 2 | F8: 821 08 | G8: www.streetdance.sk | H8: stanka@streetdance.sk | I8: Ladislav Neuschl | J8: predseda | K8: Stanislava Matejová | L8: 421911472299 | M8: SK67 0900 0000 0051 8102 0512 | R8: =A8 -> 42296901
A9: 42255171 | B9: OZ za zdravší život | C9: občianske združenie | D9: Komárnicka 11 | E9: Bratislava 2 | F9: 821 33 | G9: www.zdravachrbtica.sk | H9: info@zdravachrbtica.sk | I9: Róbert Rusnák | J9: predseda | K9: Zuzana Hrčková | L9: 421918149068 | M9: SK12 1100 0000 0029 4307 8646
A10: 53500423 | B10: Pomáhame pohybom | C10: občianske združenie | D10: Prievozská 1326/34 | E10: Bratislava 2 | F10: 821 05 | G10: https://www.falcon1crossfit.sk/sk/obcianske-zdruzenie/ | H10: pomahamepohybom@gmail.com | I10: Róbert Rybanský | J10: podpredseda | K10: Róbert Rybanský | L10: 421917614884 | M10: SK25 1100 0000 0029 4511 8904
A11: 30787009 | B11: Slovenská asociácia amerického futbalu, o.z. | C11: občianske združenie | D11: Nevädzová 17211/6B | E11: Bratislava | F11: 821 01 | G11: www.saaf.sk | H11: info@saaf.sk | I11: Michal Slašťan | J11: prezident | K11: Michal Slašťan | L11: 421908868248 | M11: SK90 8330 0000 0021 0189 0697
A12: 50897152 | B12: Slovenská Asociácia Bandy, skrátený názov SAB | C12: občianske združenie | D12: Trenčianske Teplice 611/2 | E12: Trenčianske Teplice | F12: 914 51 | G12: www.slovakbandy.sk | H12: slovakbandy@gmail.com | I12: Lukáš Vepy | J12: predseda | K12: Ľudovít Vepy | L12: 421917626568 | M12: SK62 0900 0000 0051 3067 7020
A13: 00631655 | B13: Slovenská asociácia boccie | C13: občianske združenie | D13: Ulica Vajanského 874/46 | E13: Lučenec | F13: 984 01 | G13: www.bocce.sk | H13: slovenska.asociacia.bocce@gmail.com | I13: Ján Macko, Ján Brezňan, Ladislav Mészáros | J13: prezident, predseda, predseda | K13: Ján Macko | L13: 421919188236 | M13: SK92 8330 0000 0026 0113 7730
A14: 42019541 | B14: Slovenská asociácia čínskeho wushu | C14: občianske združenie | D14: Ladislava Dérera 35 | E14: Bratislava | F14: 831 01 | G14: www.wushuslovakia.sk | H14: email@wushuslovakia.sk | I14: Ľubomír France | J14: prezident | K14: Ľubomír France | L14: 421905948422 | M14: SK12 8330 0000 0024 0152 5392
A15: 30810108 | B15: Slovenská Asociácia Dynamickej Streľby | C15: občianske združenie | D15: Skautská 2 | E15: Košice | F15: 040 01 | G15: www.sads.sk | H15: prezident@sads.sk | I15: Bystrík Zachar | J15: prezident | K15: Bystrík Zachar | L15: 421915184709 | M15: SK75 3100 0000 0040 0020 5012
A16: 30842069 | B16: Slovenská asociácia fitnes, kulturistiky a silového trojboja | C16: občianske združenie | D16: Junácka 6 | E16: Bratislava | F16: 832 80 | G16: www.safkst.sk | H16: sekretariat@safkst.sk | I16: Boris Mlsna | J16: prezident | K16: Boris Mlsna | L16: 421908965156 | M16: SK77 0900 0000 0051 7589 2912 | R16: =A16 -> 30842069
A17: 31749852 | B17: Slovenská asociácia Frisbee | C17: občianske združenie | D17: Eisnerova 6131/13 | E17: Bratislava | F17: 841 07 | G17: www.szf.sk | H17: safslovakia@gmail.com | I17: Juraj Turan | J17: predseda | K17: Martin Keseg | L17: 421905998953 | M17: SK62 0200 0000 0000 7763 5012 | R17: =A17 -> 31749852
A18: 30844711 | B18: Slovenská asociácia go | C18: občianske združenie | D18: Junácka 6 | E18: Bratislava | F18: 832 80 | G18: www.sago.sk | H18: slovakgo@gmail.com | I18: Martin Lukáč | J18: prezident | K18: Miroslav Poliak | L18: 421903200136 | M18: SK31 8330 0000 0025 0173 0318 | R18: =A18 -> 30844711
A19: 31940668 | B19: Slovenská asociácia korfbalu | C19: občianske združenie | D19: Makovického 6/2 | E19: Prievidza | F19: 971 01 | G19: www.korfbal.sk | H19: martinsonoga@gmail.com | I19: Martin Sonoga | J19: prezident | K19: Martin Sonoga | L19: 421911361044 | M19: SK91 3100 0000 0040 0116 2405 | R19: =A19 -> 31940668
A20: 31824021 | B20: Slovenská asociácia motoristického športu | C20: občianske združenie | D20: Fatranská 3 | E20: Nitra | F20: 949 01 | G20: www.sams-asn.sk | H20: samssk@nextra.sk | I20: Dušan Koblišek | J20: prezident | K20: Vojtech Ruisl | L20: 421903403105 | M20: SK29 3100 0000 0042 2012 1718 | R20: =A20 -> 31824021
A21: 45009660 | B21: Slovenská asociácia naturálnej kulturistiky | C21: občianske združenie | D21: Štefániková 3509/20 | E21: Michalovce | F21: 071 01 | G21: www.sank.sk | H21: rigosank@gmail.com | I21: Viliam Rigo | J21: prezident | K21: Viliam Rigo | L21: 421917812810 | M21: SK83 0900 0000 0051 5460 0722 | R21: =A21 -> 45009660
A22: 42340594 | B22: Slovenská asociácia Nordic Walking | C22: občianske združenie | D22: Rudolfa Mocka 2/A | E22: Bratislava 4 | F22: 841 04 | G22: www.snwa.sk | H22: info@snwa.sk | I22: Lucia Okoličányová | J22: prezidentka | K22: Lucia Okoličányová | M22: SK19 1100 0000 0029 2589 3903
A23: 30811686 | B23: Slovenská asociácia pretláčania rukou | C23: občianske združenie | D23: Vavrečka 311 | E23: Námestovo | F23: 029 01 | G23: www.armsport.sk | H23: sekretariat@armsport.sk | I23: Ján Germánus | J23: prezident | K23: Dagmar Petrová | L23: 421905162424 | M23: SK46 0900 0000 0000 1147 3305 | R23: 30811686
A24: 30814910 | B24: Slovenská asociácia taekwondo WT | C24: občianske združenie | D24: Stará spišská cesta 2166/38 | E24: Košice | F24: 040 01 | G24: new.satkd.sk | H24: satkd.office@gmail.com | I24: Mário Švec | J24: prezident | K24: Pavel Ižarik | L24: 421902901640 | M24: SK19 8330 0000 0021 0142 0070 | R24: 30814910
A25: 17316731 | B25: Slovenská asociácia univerzitného športu | C25: občianske združenie | D25: Trnavska cesta 37 | E25: Bratislava 3 | F25: 831 04 | G25: www.saus.sk | H25: saus@saus.sk | I25: Július Dubovský | J25: prezident | K25: Michaela Masárová | L25: 421907696186 | M25: SK51 1100 0000 0026 2902 3663 | R25: 17316731
A26: 30841798 | B26: Slovenská asociácia zrakovo postihnutých športovcov | C26: občianske združenie | D26: Rosina 497 | E26: Rosina | F26: 013 22 | G26: www.sazps.sk | H26: sazps@sazps.sk | I26: Peter Ďuroška | J26: predseda | K26: Peter Ďuroška | L26: 421907253794 | M26: SK95 8330 0000 0021 0076 9190
A27: 30844568 | B27: Slovenská baseballová federácia | C27: občianske združenie | D27: Junácka 6 | E27: Bratislava | F27: 831 04 | G27: www.slovakiabaseball.com | H27: office@slovakiabaseball.com | I27: Mojmír Jankovič | J27: prezident | K27: František Bunta | L27: 421905294239 | M27: SK09 0200 0000 0017 8566 0854 | R27: 30844568
A28: 17315166 | B28: Slovenská basketbalová asociácia | C28: občianske združenie | D28: Trnavská cesta 37 | E28: Bratislava | F28: 831 04 | G28: www.slovakbasket.sk | H28: sekretariat@slovakbasket.sk | I28: Michal Ondruš | J28: prezident | K28: Štefan Kubík | L28: 421905504810 | M28: SK94 1100 0000 0029 2586 5005 | R28: 17315166
A29: 31744621 | B29: Slovenská boxerská federácia | C29: občianske združenie | D29: Dr. Vladimíra Clementisa 3222/10 | E29: Bratislava | F29: 821 02 | G29: www.sbf.sk | H29: sbf@sbf.sk | I29: Tomáš Kovács | J29: prezident | K29: Ivana Haršányová | L29: 421949246786 | M29: SK63 0200 0000 0017 8550 5555 | R29: 31744621
A30: 34056939 | B30: SLOVENSKÁ CYKLOTRIALOVÁ ÚNIA | C30: občianske združenie | D30: Štefánikova 4445 | E30: Poprad | F30: 058 01 | G30: www.slovakbiketrial.sk | H30: stefan@blackmail.sk | I30: Štefan Pčola | J30: prezident | K30: Štefan Pčola | L30: 421905607646 | M30: SK82 7500 0000 0040 2786 8668 | R30: 34056939
A31: 34003975 | B31: Slovenská federácia karate a bojových umení | C31: občianske združenie | D31: Miletičova 3/A | E31: Bratislava | F31: 821 08 | G31: www.karate-slovakia.sk | H31: info@karate-slovakia.sk | I31: Daniel Baran | J31: prezident | K31: Daniel Baran | L31: 421903919943 | M31: SK51 0200 0000 0011 8096 9955 | R31: 34003975
A32: 36064742 | B32: Slovenská federácia pétanque | C32: občianske združenie | D32: Karpatské námestie 10A | E32: Bratislava | F32: 831 06 | G32: www.sfp.sk | H32: peter.sury@gmail.com | I32: Peter Šúry | J32: prezident | K32: Peter Šúry | L32: 421903421644 | M32: SK28 8330 0000 0023 0103 3104 | R32: 36064742
A33: 42361885 | B33: Slovenská footgolfová asociácia | C33: občianske združenie | D33: Medveďovej 13 | E33: Bratislava | F33: 851 04 | G33: www.sfga.sk | H33: info@sfga.sk | I33: Viliam Nemčko | J33: prezident | K33: Tomáš Bartko | L33: 421903204367 | M33: SK72 1111 0000 0014 6314 7011 | R33: 42361885
A34: 50284363 | B34: Slovenská golfová asociácia | C34: občianske združenie | D34: Kukučínova 26 | E34: Bratislava | F34: 831 02 | G34: www.skga.sk | H34: skga@skga.sk | I34: Rastislav Antala, Miroslav Rusnák | J34: Prezident, viceprezident | K34: Kamil Balga | L34: 421903446366 | M34: SK42 0900 0000 0052 1113 2866 | R34: 50284363
A35: 00688321 | B35: Slovenská gymnastická federácia | C35: občianske združenie | D35: Junácka 6 | E35: Bratislava | F35: 832 80 | G35: www.sgf.sk | H35: gymnastics@sgf.sk | I35: Monika Šišková | J35: prezidentka | K35: Silvia Ruščinová | L35: 421915177492 | M35: SK53 0900 0000 0051 0865 8667 | R35: 00688321
A36: 00603091 | B36: Slovenská hokejbalová únia | C36: občianske združenie | D36: Junácka 6 | E36: Bratislava | F36: 832 80 | G36: www.hokejbal.sk | H36: hokejbal@hokejbal.sk | I36: Miroslav Dragun | J36: Generálny sekretár | K36: Miroslav Dragun | L36: 421908145184 | M36: SK77 0200 0000 0017 8572 3456 | R36: 00603091
A37: 54041368 | B37: SLOVENSKÁ CHEERLEADING ÚNIA | C37: občianske združenie | D37: Novozámocká 3212/22 | E37: Zvolen | F37: 960 01 | G37: www.scu.sk | H37: sekretariatscu@scu.sk | I37: Zuzana Niščáková | J37: prezidentka | K37: Zuzana Niščáková | L37: 421905380634 | M37: SK37 8330 0000 0022 0206 1417 | R37: 54041368
A38: 31787801 | B38: SLOVENSKÁ JAZDECKÁ FEDERÁCIA | C38: občianske združenie | D38: Junácka 6 | E38: Bratislava | F38: 832 80 | G38: www.sjf.sk | H38: baciak.masarykova@sjf.sk | I38: Vladimír Chovan | J38: predseda | K38: Zuzana Bačiak Masaryková | L38: 421907100191 | M38: SK06 0900 0000 0001 7426 1462 | R38: 31787801
A39: 50434101 | B39: Slovenská kanoistika | C39: občianske združenie | D39: Junácka 6 | E39: Bratislava | F39: 831 04 | G39: www.canoe.sk | H39: canoe@canoe.sk | I39: Miroslav Haviar | J39: prezident | K39: Boris Bergendi | L39: 421905659739 | M39: SK77 0900 0000 0051 1559 0728 | R39: 50434101
A40: 30853427 | B40: Slovenská Lakrosová Federácia | C40: občianske združenie | D40: Jarabinková 6/B | E40: Bratislava | F40: 821 09 | G40: www.lacrosse.sk | H40: eminentasro@gmail.com | I40: Igor Moravčík | J40: prezident | K40: Igor Moravčík | L40: 421905620961 | M40: SK65 0200 0000 0041 7252 5557 | R40: 30853427
A41: 36075809 | B41: Slovenská lukostrelecká asociácia 3D | C41: občianske združenie | D41: Trnovec nad Váhom 1040 | E41: Trnovec nad Váhom | F41: 825 71 | G41: www.archery3d.sk | H41: info@archery3d.sk | I41: Peter Málek | J41: predseda | K41: Peter Málek | L41: 421944644533 | M41: SK63 8330 0000 0020 0175 2748 | R41: 36075809
A42: 30813883 | B42: Slovenská motocyklová federácia | C42: občianske združenie | D42: Športovcov 340 | E42: Považská Bystrica | F42: 017 01 | G42: www.smf.sk | H42: smf@smf.sk | I42: Peter Lazar | J42: prezident | K42: Tatiana Kašlíková | L42: 421905601243 | M42: SK96 0900 0000 0003 6178 9457 | R42: 30813883
A43: 34057587 | B43: Slovenská Muaythai asociácia | C43: občianske združenie | D43: Lermontovova 3 | E43: Bratislava | F43: 811 05 | G43: www.smta.sk | H43: office@smta.sk | I43: Róbert Kajánek | J43: prezident | K43: Róbert Kajánek | L43: 421903584555 | M43: SK64 1100 0000 0029 4704 5980 | R43: 34057587
A44: 30806887 | B44: Slovenská nohejbalová asociácia | C44: občianske združenie | D44: Junácka 6 | E44: Bratislava 3 | F44: 832 80 | G44: www.nohejbalsk.com | H44: nohejbal.sna@gmail.com | I44: Miroslav Kováč | J44: prezident | K44: Miroslav Kováč | L44: 421917800004 | M44: SK75 0200 0000 0017 8646 8258 | R44: 30806887
A45: 36068764 | B45: Slovenská plavecká federácia | C45: občianske združenie | D45: Za kasárňou 315/1 | E45: Bratislava | F45: 831 03 | G45: www.swimmsvk.sk | H45: prezident@swimmsvk.sk | I45: Ivan Šulek | J45: prezident | K45: Ivan Šulek | L45: 421905297832 | M45: SK13 0200 0000 0030 7422 5951 | R45: 36068764
A46: 31813283 | B46: Slovenská rope skippingová asociácia | C46: občianske združenie | D46: Junácka 6 | E46: Bratislava 3 | F46: 831 04 | G46: www.srsa.sk | H46: srsa@srsa.sk | I46: Martin Kolčák | J46: predseda | K46: Pavlína Hadová | L46: 421905790607 | M46: SK73 8330 0000 0024 0111 2432 | R46: 31813283
A47: 30851459 | B47: Slovenská rugbyová únia | C47: občianske združenie | D47: Hrobákova 1 | E47: Bratislava | F47: 851 02 | G47: www.slovakrugby.sk | H47: kubalova@sprinklersystem.sk | I47: Eduard Krützner | J47: prezident | K47: Katarína Kubalová | L47: 421911977728 | M47: SK14 0200 0000 0028 4751 3556 | R47: 30851459
A48: 37998919 | B48: Slovenská skialpinistická asociácia | C48: občianske združenie | D48: Jalovec 98 | E48: Bobrovec | F48: 032 21 | G48: www.slovakskimo.sk | H48: info@slovakskimo.sk | I48: Michaela Babčanová | J48: podpredseda | K48: Michaela Babčanová | L48: 421915156717 | M48: SK69 1100 0000 0026 2009 8466 | R48: 37998919
A49: 17316723 | B49: Slovenská softballová asociácia | C49: občianske združenie | D49: Junácka 6 | E49: Bratislava | F49: 831 04 | G49: www.slovakiasoftball.com | H49: office@softballslovakia.com | I49: Lenka Gunišová | J49: prezident | K49: František Bunta | L49: 421905294239 | M49: SK37 0200 0000 0017 8559 5554 | R49: 17316723
A50: 30807018 | B50: Slovenská squashová asociácia | C50: občianske združenie | D50: Junácka 6 | E50: Bratislava | F50: 832 80 | G50: www.squashtour.sk | H50: gs@squash.sk | I50: Dávid Kubiček | J50: generálny sekretár | K50: Dávid Kubiček | L50: 421908447934 | M50: SK75 0200 0000 0017 8581 8455
A51: 31745466 | B51: Slovenská triatlonová únia | C51: občianske združenie | D51: Junácka 6 | E51: Bratislava | F51: 832 80 | G51: www.triathlon.sk | H51: triathlon@triathlon.sk | I51: Jozef Jurášek | J51: prezident | K51: Peter Dobiaš | L51: 421918234840 | M51: SK41 0200 0000 0017 8359 4857 | R51: 31745466
A52: 00688819 | B52: Slovenská volejbalová federácia | C52: občianske združenie | D52: Kalinčiakova 33 | E52: Bratislava | F52: 831 04 | G52: www.svf.sk | H52: svf@svf.sk | I52: Marek Rojko | J52: prezident | K52: Jozef Mihalco | L52: 421911427222 | M52: SK03 0200 0000 0017 7219 1251 | R52: 00688819
A53: 36063835 | B53: Slovenský atletický zväz | C53: občianske združenie | D53: Junácka 6 | E53: Bratislava | F53: 831 04 | G53: www.atletika.sk | H53: office@atletika.sk | I53: Peter Korčok, Vladimír Gubrický | J53: prezident, generálny sekretár | K53: Vladimír Gubrický | L53: 421905278836 | M53: SK17 0200 0000 0017 8547 1754 | R53: 36063835
A54: 31753825 | B54: Slovenský biliardový zväz | C54: občianske združenie | D54: Junácka 6 | E54: Bratislava | F54: 832 80 | G54: www.biliard.online | H54: koniar@sbiz.sk; sbiz1994@gmail.com | I54: Samuel Koniar | J54: predseda | K54: Samuel Koniar | L54: 421907194669 | M54: SK40 0200 0000 0017 8851 0253 | R54: 31753825
A55: 36128147 | B55: Slovenský bowlingový zväz | C55: občianske združenie | D55: Dunajská 12 | E55: Košice | F55: 040 11 | G55: www.slovakbowling.sk | H55: merkovskyv@gmail.com | I55: Vladimír Merkovský | J55: prezident | K55: Vladimír Merkovský | L55: 421903712927 | M55: SK70 1100 0000 0026 2878 1403 | R55: 36128147
A56: 31770908 | B56: Slovenský bridžový zväz | C56: občianske združenie | D56: Lopenícka 1/A | E56: Bratislava | F56: 831 02 | G56: www.bridgeclub.sk | H56: sbz@bridgeclub.sk | I56: Peter Belčák | J56: prezident | K56: Peter Belčák | L56: 421908672270 | M56: SK65 0900 0000 0001 7666 9007 | R56: 31770908
A57: 37841866 | B57: Slovenský curlingový zväz | C57: občianske združenie | D57: Zahradnícka 27 | E57: Bratislava | F57: 811 07 | G57: www.curling.sk | H57: office@curling.sk | I57: Pavol Pitoňák | J57: predseda | K57: Pavel Kocian | L57: 421918824449 | M57: SK82 0200 0000 0017 0714 0853 | R57: 37841866
A58: 34009388 | B58: Slovenský cykloklub | C58: občianske združenie | D58: Námestie slobody 1716/6 | E58: Piešťany | F58: 921 01 | G58: www.cykloklub.sk | H58: office@cykloklub.sk | I58: Michal Hlatký | J58: predseda | K58: Michal Hlatký | L58: 421903996977 | M58: SK76 0200 0000 0014 3822 4951 | R58: 34009388
A59: 00687308 | B59: Slovenský futbalový zväz | C59: občianske združenie | D59: Tomášikova 30C | E59: Bratislava | F59: 821 01 | G59: www.futbalsfz.sk | H59: msvvas@futbalsfz.sk | I59: Ján Kováčik | J59: prezident | K59: Marcel Korinek | L59: 421907984638 | M59: SK80 0900 0000 0051 1021 1442 | R59: 00687308
A60: 00586455 | B60: Slovenský horolezecký spolok JAMES | C60: občianske združenie | D60: Junácka 6 | E60: Bratislava | F60: 832 80 | G60: www.james.sk | H60: office@james.sk | I60: Anton Pacek | J60: predseda | K60: Anton Pacek | L60: 421911597705 | M60: SK53 0200 0000 0017 7177 3057 | R60: 00586455
A61: 31771688 | B61: Slovenský kolkársky zväz | C61: občianske združenie | D61: Štúrova 1158/22 | E61: Piešťany | F61: 921 01 | G61: www.kolky.sk | H61: sekretariat@kolky.sk | I61: Štefan Kočan | J61: prezident | K61: Eva Ondrejkovičová | L61: 421905762340 | M61: SK56 0200 0000 0017 8579 0958 | R61: 31771688
A62: 31805540 | B62: Slovenský krasokorčuliarsky zväz | C62: občianske združenie | D62: Záhradnícka 752/95 | E62: Bratislava | F62: 821 08 | G62: www.kraso.sk | H62: slovakskating@kraso.sk | I62: Jozef Beständig | J62: predseda | K62: Jozef Beständig | L62: 421905504040 | M62: SK14 0200 0000 0017 8521 4758 | R62: 31805540
A63: 30793009 | B63: Slovenský lukostrelecký zväz | C63: občianske združenie | D63: Junácka 6 | E63: Bratislava | F63: 832 80 | G63: www.archerysvk.sk | H63: office@archerysvk.sk | I63: Vladimír Bužek | J63: predseda | K63: Vladimír Bužek | L63: 421903202270 | M63: SK53 0900 0000 0051 1920 0627 | R63: 30793009
A64: 00677604 | B64: Slovenský národný aeroklub generála Milana Rastislava Štefánika | C64: občianske združenie | D64: Pri Rajčianke 49 | E64: Žilina | F64: 010 01 | G64: www.sna.sk | H64: sna@sna.sk | I64: Miroslav Gábor | J64: prezident | K64: Marcela Nagyová | L64: 421911928826 | M64: SK61 0900 0000 0051 8920 0921 | R64: 00677604
A65: 30811082 | B65: Slovenský olympijský a športový výbor | C65: občianske združenie | D65: Junácka 6 | E65: Bratislava 3 | F65: 831 04 | G65: www.olympic.sk | H65: office@olympic.sk | I65: Anton Siekel | J65: prezident | K65: Gábor Asványi; Patrik Hrbek | L65: 421903584992; 421911090490 | M65: SK07 1100 0000 0026 2702 3539 | R65: 30811082
A66: 31745661 | B66: Slovenský paralympijský výbor | C66: občianske združenie | D66: Benediktiho 5 | E66: Bratislava 1 | F66: 811 05 | G66: www.spv.sk | H66: spcoffice@spv.sk | I66: Ján Riapoš | J66: predseda | K66: Ján Riapoš; Maroš Čambal | L66: 421905788436; 421257789713 | M66: SK62 8120 0000 0014 1226 2060 | R66: 31745661
A67: 30688060 | B67: Slovenský rýchlokorčuliarsky zväz | C67: občianske združenie | D67: T.Vansovej 2171/1 | E67: Spišská Nová Ves | F67: 052 01 | G67: www.speedskating.sk | H67: info@speedskating.sk | I67: Ivana Iliašová | J67: predseda | K67: Ján Magdoško | L67: 421903601379 | M67: SK49 5600 0000 0075 0146 2002 | R67: 30688060
A68: 30806836 | B68: Slovenský stolnotenisový zväz | C68: občianske združenie | D68: Černockého 6 | E68: Bratislava | F68: 831 53 | G68: www.sstz.sk | H68: sstz1@sstz.sk | I68: Anton Hamran | J68: predseda | K68: Ivica Hatalová | L68: 421903370792 | M68: SK09 0900 0000 0051 6511 8018 | R68: 30806836
A69: 00603341 | B69: SLOVENSKÝ STRELECKÝ ZVÄZ | C69: občianske združenie | D69: Wolkrova 4 | E69: Bratislava | F69: 851 01 | G69: www.shooting.sk | H69: ssz@shooting.sk | I69: Miloslav Benca | J69: prezident | K69: Ján Kulich | L69: 421905795511 | M69: SK12 0900 0000 0001 1080 4827 | R69: 00603341
A70: 17310571 | B70: Slovenský šachový zväz | C70: občianske združenie | D70: Bernolákovo námestie 25 | E70: Nové Zámky | F70: 940 01 | G70: www.chess.sk | H70: sekretariat@chess.sk | I70: Milan Roman | J70: prezident | K70: Vladimír Szűcs | L70: 421903363993 | M70: SK71 1111 0000 0066 0114 7013 | R70: 17310571
A71: 30806437 | B71: Slovenský šermiarsky zväz | C71: občianske združenie | D71: Trnavská cesta 39 | E71: Bratislava | F71: 831 04 | G71: ww.slovak-fencing.sk | H71: slovak-fencing@slovak-fencing.sk | I71: Attila Érsek | J71: prezident | K71: Gabriela Geršiová | L71: 421903740961 | M71: SK15 0200 0000 0017 8550 2151 | R71: 30806437
A72: 30811384 | B72: Slovenský tenisový zväz | C72: občianske združenie | D72: Príkopova 6 | E72: Bratislava | F72: 831 03 | G72: www.stz.sk | H72: stz@stz.sk | I72: Miloslav Mečíř | J72: prezident | K72: Ivan Greguška | L72: 421903714918 | M72: SK34 0900 0000 0052 0010 1394 | R72: 30811384
A73: 00688304 | B73: Slovenský veslársky zväz | C73: občianske združenie | D73: FTVŠ, Nábrežie armádneho generála Ludvíka Svobodu 4298/9 | E73: Bratislava | F73: 814 69 | G73: www.veslovanie.sk | H73: rowingslovakia@gmail.com | I73: Ján Žiška | J73: predseda | K73: Stanislava Vičanová | L73: 421918882990 | M73: SK97 0200 0000 0017 8584 7256 | R73: 00688304
A74: 31791981 | B74: SLOVENSKÝ ZÁPASNÍCKY ZVÄZ | C74: občianske združenie | D74: Junácka 2951/6 | E74: Bratislava | F74: 832 80 | G74: www.slovenskezapasenie.sk | H74: szz@zapasenie.sk | I74: Štefánia Galandová | J74: generálna sekretárka | K74: Štefánia Galandová | L74: 421917476268 | M74: SK64 0200 0000 0017 8575 3954 | R74: 31791981
A75: 30811546 | B75: Slovenský zväz bedmintonu | C75: občianske združenie | D75: Slovenská 19 | E75: Prešov | F75: 080 01 | G75: www.bedminton.sk | H75: sekretar@bedminton.sk | I75: Zuzana Rajdugová | J75: generálna sekretárka | K75: Zuzana Rajdugová | L75: 421905193404 | M75: SK47 5600 0000 0008 5511 7001 | R75: 30811546
A76: 35656743 | B76: Slovenský zväz biatlonu | C76: občianske združenie | D76: Partizánska cesta 3501/71 | E76: Banská Bystrica | F76: 974 01 | G76: www.biathlon.sk | H76: svk@biathlon.sk | I76: Peter Vozár | J76: prezident | K76: Zuzana Donovalová | L76: 421902902970 | M76: SK28 0900 0000 0051 1924 9092 | R76: 35656743
A77: 36067580 | B77: Slovenský zväz bobistov | C77: občianske združenie | D77: Líščie údolie 134 | E77: Bratislava | F77: 841 01 | G77: www.boby.sk | H77: szb@boby.sk | I77: Milan Majtán | J77: predseda | K77: Zdenka Jagnešáková | L77: 421903262626 | M77: SK97 1100 0000 0026 2153 0361 | R77: 36067580
A78: 00684112 | B78: Slovenský zväz cyklistiky | C78: občianske združenie | D78: Kukuričná 13 | E78: Bratislava | F78: 831 03 | G78: www.cyklistikaszc.sk | H78: szc@cyklistikaszc.sk | I78: Peter Privara, Katarína Jakubová | J78: prezident, generálna sekretárka | K78: Michal Rohoň | L78: 421902228191 | M78: SK29 0200 0000 0017 8455 9156 | R78: 00684112
A79: 31806431 | B79: Slovenský zväz dráhového golfu | C79: občianske združenie | D79: Junácka 2951/6 | E79: Bratislava | F79: 832 80 | G79: www.minigolfsport.sk | H79: manager@minigolfsport.sk | I79: František Drgoň | J79: prezident | K79: René Šimanský | L79: 421905305338 | M79: SK44 0200 0000 0017 8760 5656 | R79: 31806431
A80: 31795421 | B80: Slovenský zväz florbalu | C80: občianske združenie | D80: Junácka 6 | E80: Bratislava | F80: 832 80 | G80: www.szfb.sk | H80: info@szfb.sk | I80: Martin Kopejtko | J80: prezident | K80: Oto Divinský | L80: 421908979442 | M80: SK09 0900 0000 0051 0969 4061 | R80: 31795421
A81: 30774772 | B81: Slovenský zväz hádzanej | C81: občianske združenie | D81: Junácka 6 | E81: Bratislava | F81: 831 04 | G81: www.slovakhandball.sk | H81: szh@slovakhandball.sk | I81: Jaroslav Holeša | J81: prezident | K81: Ivan Sabovik | L81: 421903708275 | M81: SK81 8420 0000 0001 7512 8786
A82: 30793211 | B82: Slovenský zväz jachtingu | C82: občianske združenie | D82: Junácka 6 | E82: Bratislava | F82: 832 80 | G82: www.sailing.sk | H82: szj@sailing.sk | I82: Martin Mydlík | J82: predseda | K82: Zuzana Vargová | L82: 421918529304 | M82: SK82 1100 0000 0029 4803 1855
A83: 17308518 | B83: Slovenský zväz Judo | C83: občianske združenie | D83: Junácka 6 | E83: Bratislava | F83: 832 80 | G83: www.judo.sk | H83: szj@judo.sk | I83: Jozef Tománek ml., Pavel Zvara | J83: predseda, podpredseda | K83: Sophia Kanátová | L83: 421944318444 | M83: SK08 0200 0000 0017 8526 0359
A84: 30811571 | B84: Slovenský Zväz Karate | C84: občianske združenie | D84: Junácka 6 | E84: Bratislava | F84: 832 80 | G84: www.karate.sk | H84: karate@karate.sk | I84: Daniel Líška | J84: prezident | K84: Leopold Roman | L84: 421903692095 | M84: SK51 0200 0000 0017 8666 3854
A85: 31119247 | B85: Slovenský zväz kickboxu | C85: občianske združenie | D85: Junácka 6 | E85: Bratislava | F85: 832 80 | G85: www.slovak-kickboxing.sk | H85: onuscak@kickboxing.sk | I85: Jozef Kolozsy | J85: prezident | K85: Viliam Sabol | L85: 421915499077 | M85: SK90 0200 0000 0017 8509 1655
A86: 30845386 | B86: Slovenský zväz ľadového hokeja | C86: občianske združenie | D86: Trnavská cesta 27/B | E86: Bratislava | F86: 831 04 | G86: www.hockeyslovakia.sk | H86: urbanova@szlh.sk | I86: Miroslav Lažo | J86: generálny sekretár | K86: Andrea Urbanová | L86: 421905234323 | M86: SK58 0200 0000 0013 0803 9053
A87: 30865930 | B87: Slovenský zväz malého futbalu | C87: občianske združenie | D87: Ružinovská 28 | E87: Bratislava 2 | F87: 821 03 | G87: www.malyfutbal.sk | H87: peter.kralik@malyfutbal.sk | I87: Peter Králik | J87: prezident | K87: Peter Králik | L87: 421915902632 | M87: SK19 1100 0000 0029 4108 0902
A88: 30788714 | B88: Slovenský zväz moderného päťboja | C88: občianske združenie | D88: Junácka 6 | E88: Bratislava | F88: 832 80 | G88: www.pentathlon.sk | H88: smpa@pentathlon.sk | I88: Dušan Poláček ml. | J88: predseda | K88: Dušan Poláček st. | L88: 421905650170 | M88: SK71 0200 0000 0017 8531 6455
A89: 30806518 | B89: Slovenský zväz orientačných športov | C89: občianske združenie | D89: Junácka 6 | E89: Bratislava | F89: 832 80 | G89: www.orienteering.sk | H89: slovakia@orienteering.sk | I89: Andrej Patráš | J89: predseda | K89: Milan Mazúr | L89: 421903636503 | M89: SK88 1100 0000 0026 2876 2843
A90: 31751075 | B90: Slovenský zväz pozemného hokeja | C90: občianske združenie | D90: Jurkovičova 5 | E90: Bratislava | F90: 831 06 | G90: www.szph.sk | H90: szph@szph.sk | I90: Ľudmila Pastorová | J90: predseda | K90: Matej Boho | L90: 421917263316 | M90: SK12 0200 0000 0017 8578 5251
A91: 37818058 | B91: Slovenský zväz psích záprahov | C91: občianske združenie | D91: M.R.Štefánika 217 | E91: Vranov nad Topľou | F91: 093 01 | G91: www.mushing.sk | H91: igorpribula11@gmail.com | I91: Igor Pribula | J91: prezident | K91: Igor Pribula | L91: 421905486716 | M91: SK12 5600 0000 0012 2522 2004
A92: 00896896 | B92: Slovenský zväz rádioamatérov | C92: občianske združenie | D92: Mlynská 4 | E92: Stupava | F92: 900 31 | G92: www.hamradio.sk | H92: szr@szr.sk | I92: Roman Kudláč | J92: prezident | M92: SK41 0200 0000 0037 9716 9551
A93: 31871526 | B93: Slovenský zväz rybolovnej techniky | C93: občianske združenie | D93: Svornosti 69 | E93: Nové Zámky | F93: 940 77 | G93: www.szrtnz.sk | H93: szrtnz@szm.sk | I93: Juraj Mészáros | J93: prezident | K93: Juraj Mészáros | L93: 421905235472 | M93: SK93 0200 0000 3500 2413 6172
A94: 31989373 | B94: Slovenský zväz sánkarov | C94: občianske združenie | D94: Starý Smokovec 18074 | E94: Vysoké Tatry | F94: 062 01 | G94: www.sane.sk | H94: sane@sane.sk | I94: Viera Bachárová Findurová | J94: predseda | K94: Viera Bachárová Findurová | L94: 421905970041 | M94: SK77 7500 0000 0006 1310 1613
A95: 17326087 | B95: Slovenský zväz športovcov s mentálnym postihnutím | C95: občianske združenie | D95: SNP 90 | E95: Košice-Lorinčík | F95: 040 11 | G95: www.szsmp.sk | H95: robert@cassovianet.sk | I95: Róbert Luby | J95: Funkciapredseda | L95: 421907953701
A96: 42219922 | B96: Slovenský zväz športového ju-jitsu | C96: občianske združenie | D96: Sládkovičova 454/16 | E96: Martin | F96: 036 01 | G96: www.szsjj.sk | H96: predseda@szsjj.sk | I96: Miroslav Ševčík | J96: predseda | K96: Miroslav Ševčík | L96: 421915879583 | M96: SK04 1100 0000 0029 4113 5395
A97: 51118831 | B97: Slovenský zväz športového rybolovu | C97: občianske združenie | D97: Andreja Kmeťa 314/20 | E97: Žilina | F97: 010 01 | G97: www.szsr.sk | H97: sekretariatszsr@gmail.com | I97: Jaroslav Sámela | J97: prezident | K97: Mária Sprušanská | L97: 421918711548 | M97: SK96 0200 0000 0041 7420 1353
A98: 37938941 | B98: Slovenský zväz Taekwon-Do ITF | C98: občianske združenie | D98: Staré Grunty 3553/9A | E98: Bratislava | F98: 841 05 | G98: www.sztkd-itf.sk | H98: sztkditf@gmail.com | I98: Matej Košalko | J98: prezident | K98: Ladislav Huňady | L98: 421908553335 | M98: SK27 1100 0000 0026 2903 9227
A99: 00684767 | B99: Slovenský zväz tanečných športov | C99: občianske združenie | D99: Junácka 14290/6 | E99: Bratislava | F99: 832 80 | G99: www.szts.sk | H99: szts@szts.sk | I99: Peter Ivanič | J99: prezident | K99: Peter Ivanič | L99: 421905245008 | M99: SK50 0200 0000 0019 7814 8953
A100: 22665234 | B100: Slovenský zväz telesne postihnutých športovcov | C100: občianske združenie | D100: Benediktiho 5 | E100: Bratislava 1 | F100: 811 05 | G100: www.sztps.sk | H100: tps@sztps.sk | I100: Ján Riapoš | J100: predseda | K100: Ján Riapoš Martina Balcová | L100: 421905788436; 421918940356 | M100: SK47 8120 0000 0014 1246 5060
A101: 30793203 | B101: Slovenský zväz vodného lyžovania a wakeboardingu | C101: občianske združenie | D101: Junácka 6 | E101: Bratislava | F101: 832 80 | G101: www.waterski.sk | H101: waterski@waterski.sk | I101: Alexander Vaško | J101: predseda | K101: Denisa Oravcová | L101: 421918808923 | M101: SK65 0200 0000 0017 8165 3358
A102: 00681768 | B102: Slovenský zväz vodného motorizmu | C102: občianske združenie | D102: Trnavská cesta 29 | E102: Bratislava | F102: 832 84 | G102: www.szvm.sk | H102: szvm@szvm.sk | I102: Marian Jung | J102: predseda | K102: Marian Jung | L102: 421905418010 | M102: SK48 0900 0000 0051 2383 8869
A103: 31796079 | B103: Slovenský zväz vzpierania | C103: občianske združenie | D103: Junácka 2951/6 | E103: Bratislava | F103: 832 80 | G103: www.vzpieranie.sk | H103: chairmanswf@gmail.com | I103: Tomáš Chovanec | J103: predseda | K103: Tomáš Chovanec | L103: 421915282858 | M103: SK44 0200 0000 0017 8558 1654
A104: 30811406 | B104: Špeciálne olympiády Slovensko | C104: občianske združenie | D104: Trnavská cesta 37 | E104: Bratislava 3 | F104: 831 04 | G104: www.specialolympics.sk | H104: office@specialolympics.sk | I104: Eva Gažová | J104: Národná riaditeľka | K104: Eva Gažová | L104: 421917176673 | M104: SK31 0200 0000 0013 5172 7951
A105: 42184827 | B105: Športová akadémia Mateja Tótha, o. z. | C105: občianske združenie | D105: Trnavská cesta 37 | E105: Bratislava 3 | F105: 831 04 | G105: www.akademiamatejatotha.sk | H105: bedlekova@akademiamatejatotha.sk | I105: Michal Tóth, Daniel Pastorek | J105: Vedúci člen predstavenstva a štatutár | K105: Mária Bedleková | L105: 421915165745 | M105: SK49 0900 0000 0051 2925 8435
A106: 53007344 | B106: Teqballová federácia Slovensko | C106: občianske združenie | D106: Jazdecká 13198/1A | E106: Prešov | F106: 080 01 | G106: www.teq.sk | H106: info@teq.sk | I106: Artúr Benes | J106: prezident | K106: Artúr Benes | L106: 421918648073 | M106: SK21 1111 0000 0016 2429 8006
A107: 35538015 | B107: Združenie šípkarských organizácií | C107: občianske združenie | D107: Szakkayho 1 | E107: Košice | F107: 040 01 | G107: www.slovakiadart.sk | H107: info@sipky.sk | I107: Karol Kirchner | J107: predseda | K107: Karol Kirchner | L107: 421905700790 | M107: SK26 0900 0000 0005 7536 2504
A108: 00585319 | B108: Zväz potápačov Slovenska | C108: občianske združenie | D108: Wolkrova 4 | E108: Bratislava | F108: 851 01 | G108: www.zps-diving.sk | H108: zps@zps-diving.sk | I108: Roman Baláž | J108: prezident | K108: Zuzana Žecová | L108: 421918737877 | M108: SK26 0200 0000 0017 8515 2753
A109: 42132690 | B109: Zväz slovenského kolieskového korčuľovania | C109: občianske združenie | D109: Trnavská 3273/37 | E109: Bratislava 3 | F109: 831 04 | G109: www.slovakskate.sk | H109: president@slovakskate.sk | I109: Štefan Pjontek | J109: predseda | K109: Štefan Pjontek | L109: 421903422249 | M109: SK68 0200 0000 0046 8802 7153
A110: 50671669 | B110: Zväz slovenského lyžovania | C110: občianske združenie | D110: Galvaniho 16617/17A | E110: Bratislava | F110: 821 04 | G110: www.zsl.sk | H110: sekretariat@zsl.sk | I110: Martin Paško | J110: prezident | K110: Radovan Cagala | L110: 421905641479 | M110: SK72 0900 0000 0051 8522 2656
A111: 12664901 | B111: Zväz vodáctva a raftingu Slovenskej republiky | C111: občianske združenie | D111: Dunajská 8 | E111: Bratislava 1 | F111: 811 08 | G111: www.zvazraftingu.sk | H111: zvazraftingu@gmail.com | I111: Radoslav Orokocký | J111: prezident | M111: SK91 8330 0000 0023 0203 5726

Sheet FP (hidden)
A1: IČO | B1: Prijímateľ | C1: Predmet (názov, miesto, termín, parametre) | D1: Schválená (eur) | E1: SF (%) | F1: Účel | G1: PPG | H1: B/K | I1: ico+ucel | J1: ico+ppg | K1: Šport | L1: ICO+PPG+BK | M1: Zoraď | N1: ico+ucel+B/K
A2: 42254388 | B2: =VLOOKUP(A2,Adr!A:B,2,FALSE) -> Deaflympijský výbor Slovenska | C2: zabezpečenie činnosti a úloh v roku 2024 | D2: 310117 | E2: 0 | F2: c | G2: 026 03 | H2: B | I2: =A2&F2 -> 42254388c | J2: =A2&G2 -> 42254388026 03 | L2: =A2&G2&H2 -> 42254388026 03B | M2: =B2&F2&H2&C2 -> Deaflympijský výbor SlovenskacBzabezpečenie činnosti a úloh v roku 2024 | N2: =+I2&H2 -> 42254388cB
A3: 30787009 | B3: =VLOOKUP(A3,Adr!A:B,2,FALSE) -> Slovenská asociácia amerického futbalu, o.z. | C3: americký futbal - bežné transfery | D3: 30160 | E3: 0 | F3: a | G3: 026 02 | H3: B | I3: 30787009a | J3: 30787009026 02 | K3: americký futbal | L3: 30787009026 02B | M3: Slovenská asociácia amerického futbalu, o.z.aBamerický futbal - bežné transfery | N3: 30787009aB
A4: 00631655 | B4: =VLOOKUP(A4,Adr!A:B,2,FALSE) -> Slovenská asociácia boccie | C4: boccia - bežné transfery | D4: 30160 | E4: 0 | F4: a | G4: 026 02 | H4: B | I4: 00631655a | J4: 00631655026 02 | K4: boccia | L4: 00631655026 02B | M4: Slovenská asociácia boccieaBboccia - bežné transfery | N4: 00631655aB
A5: 00631655 | B5: =VLOOKUP(A5,Adr!A:B,2,FALSE) -> Slovenská asociácia boccie | C5: boule lyonnaise - bežné transfery | D5: 30160 | E5: 0 | F5: a | G5: 026 02 | H5: B | I5: 00631655a | J5: 00631655026 02 | K5: boule lyonnaise | L5: 00631655026 02B | M5: Slovenská asociácia boccieaBboule lyonnaise - bežné transfery | N5: 00631655aB
A6: 42019541 | B6: =VLOOKUP(A6,Adr!A:B,2,FALSE) -> Slovenská asociácia čínskeho wushu | C6: wushu - bežné transfery | D6: 30160 | E6: 0 | F6: a | G6: 026 02 | H6: B | I6: 42019541a | J6: 42019541026 02 | K6: wushu | L6: 42019541026 02B | M6: Slovenská asociácia čínskeho wushuaBwushu - bežné transfery | N6: 42019541aB
A7: 30810108 | B7: =VLOOKUP(A7,Adr!A:B,2,FALSE) -> Slovenská Asociácia Dynamickej Streľby | C7: dynamická streľba - bežné transfery | D7: 50284 | E7: 0 | F7: a | G7: 026 02 | H7: B | I7: 30810108a | J7: 30810108026 02 | K7: dynamická streľba | L7: 30810108026 02B | M7: Slovenská Asociácia Dynamickej StreľbyaBdynamická streľba - bežné transfery | N7: 30810108aB
A8: 30842069 | B8: =VLOOKUP(A8,Adr!A:B,2,FALSE) -> Slovenská asociácia fitnes, kulturistiky a silového trojboja | C8: fitnes a kulturistika - bežné transfery | D8: 730205 | E8: 0 | F8: a | G8: 026 02 | H8: B | I8: 30842069a | J8: 30842069026 02 | K8: fitnes a kulturistika | L8: 30842069026 02B | M8: Slovenská asociácia fitnes, kulturistiky a silového trojbojaaBfitnes a kulturistika - bežné transfery | N8: 30842069aB
A9: 30842069 | B9: =VLOOKUP(A9,Adr!A:B,2,FALSE) -> Slovenská asociácia fitnes, kulturistiky a silového trojboja | C9: silové športy - bežné transfery | D9: 41829 | E9: 0 | F9: a | G9: 026 02 | H9: B | I9: 30842069a | J9: 30842069026 02 | K9: silové športy | L9: 30842069026 02B | M9: Slovenská asociácia fitnes, kulturistiky a silového trojbojaaBsilové športy - bežné transfery | N9: 30842069aB
A10: 31749852 | B10: =VLOOKUP(A10,Adr!A:B,2,FALSE) -> Slovenská asociácia Frisbee | C10: športy s lietajúcim diskom - bežné transfery | D10: 118069 | E10: 0 | F10: a | G10: 026 02 | H10: B | I10: 31749852a | J10: 31749852026 02 | K10: športy s lietajúcim diskom | L10: 31749852026 02B | M10: Slovenská asociácia FrisbeeaBšporty s lietajúcim diskom - bežné transfery | N10: 31749852aB
A11: 30844711 | B11: =VLOOKUP(A11,Adr!A:B,2,FALSE) -> Slovenská asociácia go | C11: go - bežné transfery | D11: 30160 | E11: 0 | F11: a | G11: 026 02 | H11: B | I11: 30844711a | J11: 30844711026 02 | K11: go | L11: 30844711026 02B | M11: Slovenská asociácia goaBgo - bežné transfery | N11: 30844711aB
A12: 31940668 | B12: =VLOOKUP(A12,Adr!A:B,2,FALSE) -> Slovenská asociácia korfbalu | C12: korfbal - bežné transfery | D12: 45447 | E12: 0 | F12: a | G12: 026 02 | H12: B | I12: 31940668a | J12: 31940668026 02 | K12: korfbal | L12: 31940668026 02B | M12: Slovenská asociácia korfbaluaBkorfbal - bežné transfery | N12: 31940668aB
A13: 31824021 | B13: =VLOOKUP(A13,Adr!A:B,2,FALSE) -> Slovenská asociácia motoristického športu | C13: automobilový šport - bežné transfery | D13: 446106 | E13: 0 | F13: a | G13: 026 02 | H13: B | I13: 31824021a | J13: 31824021026 02 | K13: automobilový šport | L13: 31824021026 02B | M13: Slovenská asociácia motoristického športuaBautomobilový šport - bežné transfery | N13: 31824021aB
A14: 31824021 | B14: =VLOOKUP(A14,Adr!A:B,2,FALSE) -> Slovenská asociácia motoristického športu | C14: automobilový šport - kapitálové transfery | D14: 31000 | E14: 0 | F14: a | G14: 026 02 | H14: K | I14: 31824021a | J14: 31824021026 02 | K14: automobilový šport | L14: 31824021026 02K | M14: Slovenská asociácia motoristického športuaKautomobilový šport - kapitálové transfery | N14: 31824021aK
A15: 30811686 | B15: =VLOOKUP(A15,Adr!A:B,2,FALSE) -> Slovenská asociácia pretláčania rukou | C15: pretláčanie rukou - bežné transfery | D15: 36664 | E15: 0 | F15: a | G15: 026 02 | H15: B | I15: 30811686a | J15: 30811686026 02 | K15: pretláčanie rukou | L15: 30811686026 02B | M15: Slovenská asociácia pretláčania rukouaBpretláčanie rukou - bežné transfery | N15: 30811686aB
A16: 30814910 | B16: =VLOOKUP(A16,Adr!A:B,2,FALSE) -> Slovenská asociácia taekwondo WT | C16: taekwondo - bežné transfery | D16: 80310 | E16: 0 | F16: a | G16: 026 02 | H16: B | I16: 30814910a | J16: 30814910026 02 | K16: taekwondo | L16: 30814910026 02B | M16: Slovenská asociácia taekwondo WTaBtaekwondo - bežné transfery | N16: 30814910aB
A17: 30814910 | B17: =VLOOKUP(A17,Adr!A:B,2,FALSE) -> Slovenská asociácia taekwondo WT | C17: zabezpečenie a rozvoj zdravotne postihnutých športovcov (SPV) | D17: 9003 | E17: 0 | F17: c | G17: 026 03 | H17: B | I17: 30814910c | J17: 30814910026 03 | L17: 30814910026 03B | M17: Slovenská asociácia taekwondo WTcBzabezpečenie a rozvoj zdravotne postihnutých športovcov (SPV) | N17: 30814910cB
A18: 30841798 | B18: =VLOOKUP(A18,Adr!A:B,2,FALSE) -> Slovenská asociácia zrakovo postihnutých športovcov | C18: zabezpečenie činnosti a úloh v roku 2024 | D18: 150057 | E18: 0 | F18: c | G18: 026 03 | H18: B | I18: 30841798c | J18: 30841798026 03 | L18: 30841798026 03B | M18: Slovenská asociácia zrakovo postihnutých športovcovcBzabezpečenie činnosti a úloh v roku 2024 | N18: 30841798cB
A19: 30844568 | B19: =VLOOKUP(A19,Adr!A:B,2,FALSE) -> Slovenská baseballová federácia | C19: baseball - bežné transfery | D19: 233925 | E19: 0 | F19: a | G19: 026 02 | H19: B | I19: 30844568a | J19: 30844568026 02 | K19: baseball | L19: 30844568026 02B | M19: Slovenská baseballová federáciaaBbaseball - bežné transfery | N19: 30844568aB
A20: 17315166 | B20: =VLOOKUP(A20,Adr!A:B,2,FALSE) -> Slovenská basketbalová asociácia | C20: basketbal - bežné transfery | D20: 1476337 | E20: 0 | F20: a | G20: 026 02 | H20: B | I20: 17315166a | J20: 17315166026 02 | K20: basketbal | L20: 17315166026 02B | M20: Slovenská basketbalová asociáciaaBbasketbal - bežné transfery | N20: 17315166aB
A21: 31744621 | B21: =VLOOKUP(A21,Adr!A:B,2,FALSE) -> Slovenská boxerská federácia | C21: box - bežné transfery | D21: 327913 | E21: 0 | F21: a | G21: 026 02 | H21: B | I21: 31744621a | J21: 31744621026 02 | K21: box | L21: 31744621026 02B | M21: Slovenská boxerská federáciaaBbox - bežné transfery | N21: 31744621aB
A22: 31744621 | B22: =VLOOKUP(A22,Adr!A:B,2,FALSE) -> Slovenská boxerská federácia | C22: box - kapitálové transfery | D22: 60000 | E22: 0 | F22: a | G22: 026 02 | H22: K | I22: 31744621a | J22: 31744621026 02 | K22: box | L22: 31744621026 02K | M22: Slovenská boxerská federáciaaKbox - kapitálové transfery | N22: 31744621aK
A23: 36064742 | B23: =VLOOKUP(A23,Adr!A:B,2,FALSE) -> Slovenská federácia pétanque | C23: pétanque - bežné transfery | D23: 30160 | E23: 0 | F23: a | G23: 026 02 | H23: B | I23: 36064742a | J23: 36064742026 02 | K23: pétanque | L23: 36064742026 02B | M23: Slovenská federácia pétanqueaBpétanque - bežné transfery | N23: 36064742aB
A24: 50284363 | B24: =VLOOKUP(A24,Adr!A:B,2,FALSE) -> Slovenská golfová asociácia | C24: golf - bežné transfery | D24: 477372 | E24: 0 | F24: a | G24: 026 02 | H24: B | I24: 50284363a | J24: 50284363026 02 | K24: golf | L24: 50284363026 02B | M24: Slovenská golfová asociáciaaBgolf - bežné transfery | N24: 50284363aB
A25: 50284363 | B25: =VLOOKUP(A25,Adr!A:B,2,FALSE) -> Slovenská golfová asociácia | C25: zabezpečenie a rozvoj zdravotne postihnutých športovcov (SPV) | D25: 4502 | E25: 0 | F25: c | G25: 026 03 | H25: B | I25: 50284363c | J25: 50284363026 03 | L25: 50284363026 03B | M25: Slovenská golfová asociáciacBzabezpečenie a rozvoj zdravotne postihnutých športovcov (SPV) | N25: 50284363cB
A26: 00688321 | B26: =VLOOKUP(A26,Adr!A:B,2,FALSE) -> Slovenská gymnastická federácia | C26: gymnastika - bežné transfery | D26: 1123715 | E26: 0 | F26: a | G26: 026 02 | H26: B | I26: 00688321a | J26: 00688321026 02 | K26: gymnastika | L26: 00688321026 02B | M26: Slovenská gymnastická federáciaaBgymnastika - bežné transfery | N26: 00688321aB
A27: 00688321 | B27: =VLOOKUP(A27,Adr!A:B,2,FALSE) -> Slovenská gymnastická federácia | C27: gymnastika - kapitálové transfery | D27: 35000 | E27: 0 | F27: a | G27: 026 02 | H27: K | I27: 00688321a | J27: 00688321026 02 | K27: gymnastika | L27: 00688321026 02K | M27: Slovenská gymnastická federáciaaKgymnastika - kapitálové transfery | N27: 00688321aK
A28: 54041368 | B28: =VLOOKUP(A28,Adr!A:B,2,FALSE) -> SLOVENSKÁ CHEERLEADING ÚNIA | C28: cheerleading - bežné transfery | D28: 30160 | E28: 0 | F28: a | G28: 026 02 | H28: B | I28: 54041368a | J28: 54041368026 02 | K28: cheerleading | L28: 54041368026 02B | M28: SLOVENSKÁ CHEERLEADING ÚNIAaBcheerleading - bežné transfery | N28: 54041368aB
A29: 31787801 | B29: =VLOOKUP(A29,Adr!A:B,2,FALSE) -> SLOVENSKÁ JAZDECKÁ FEDERÁCIA | C29: jazdectvo - bežné transfery | D29: 210599 | E29: 0 | F29: a | G29: 026 02 | H29: B | I29: 31787801a | J29: 31787801026 02 | K29: jazdectvo | L29: 31787801026 02B | M29: SLOVENSKÁ JAZDECKÁ FEDERÁCIAaBjazdectvo - bežné transfery | N29: 31787801aB
A30: 50434101 | B30: =VLOOKUP(A30,Adr!A:B,2,FALSE) -> Slovenská kanoistika | C30: kanoistika - bežné transfery | D30: 2045117 | E30: 0 | F30: a | G30: 026 02 | H30: B | I30: 50434101a | J30: 50434101026 02 | K30: kanoistika | L30: 50434101026 02B | M30: Slovenská kanoistikaaBkanoistika - bežné transfery | N30: 50434101aB
A31: 50434101 | B31: =VLOOKUP(A31,Adr!A:B,2,FALSE) -> Slovenská kanoistika | C31: kanoistika - kapitálové transfery | D31: 12500 | E31: 0 | F31: a | G31: 026 02 | H31: K | I31: 50434101a | J31: 50434101026 02 | K31: kanoistika | L31: 50434101026 02K | M31: Slovenská kanoistikaaKkanoistika - kapitálové transfery | N31: 50434101aK
A32: 30853427 | B32: =VLOOKUP(A32,Adr!A:B,2,FALSE) -> Slovenská Lakrosová Federácia | C32: lakros - bežné transfery | D32: 30160 | E32: 0 | F32: a | G32: 026 02 | H32: B | I32: 30853427a | J32: 30853427026 02 | K32: lakros | L32: 30853427026 02B | M32: Slovenská Lakrosová FederáciaaBlakros - bežné transfery | N32: 30853427aB
A33: 30813883 | B33: =VLOOKUP(A33,Adr!A:B,2,FALSE) -> Slovenská motocyklová federácia | C33: motocyklový šport - bežné transfery | D33: 135335 | E33: 0 | F33: a | G33: 026 02 | H33: B | I33: 30813883a | J33: 30813883026 02 | K33: motocyklový šport | L33: 30813883026 02B | M33: Slovenská motocyklová federáciaaBmotocyklový šport - bežné transfery | N33: 30813883aB
A34: 34057587 | B34: =VLOOKUP(A34,Adr!A:B,2,FALSE) -> Slovenská Muaythai asociácia | C34: thajský box - bežné transfery | D34: 34156 | E34: 0 | F34: a | G34: 026 02 | H34: B | I34: =A34&F34 -> 34057587a | J34: 34057587026 02 | K34: thajský box | L34: 34057587026 02B | M34: Slovenská Muaythai asociáciaaBthajský box - bežné transfery | N34: 34057587aB
A35: 36068764 | B35: =VLOOKUP(A35,Adr!A:B,2,FALSE) -> Slovenská plavecká federácia | C35: plavecké športy - bežné transfery | D35: 3020031 | E35: 0 | F35: a | G35: 026 02 | H35: B | I35: 36068764a | J35: 36068764026 02 | K35: plavecké športy | L35: 36068764026 02B | M35: Slovenská plavecká federáciaaBplavecké športy - bežné transfery | N35: 36068764aB
A36: 36068764 | B36: =VLOOKUP(A36,Adr!A:B,2,FALSE) -> Slovenská plavecká federácia | C36: plavecké športy - kapitálové transfery | D36: 11300 | E36: 0 | F36: a | G36: 026 02 | H36: K | I36: 36068764a | J36: 36068764026 02 | K36: plavecké športy | L36: 36068764026 02K | M36: Slovenská plavecká federáciaaKplavecké športy - kapitálové transfery | N36: 36068764aK
A37: 30851459 | B37: =VLOOKUP(A37,Adr!A:B,2,FALSE) -> Slovenská rugbyová únia | C37: rugby - bežné transfery | D37: 40763 | E37: 0 | F37: a | G37: 026 02 | H37: B | I37: 30851459a | J37: 30851459026 02 | K37: rugby | L37: 30851459026 02B | M37: Slovenská rugbyová úniaaBrugby - bežné transfery | N37: 30851459aB
A38: 37998919 | B38: =VLOOKUP(A38,Adr!A:B,2,FALSE) -> Slovenská skialpinistická asociácia | C38: skialpinizmus - bežné transfery | D38: 30160 | E38: 0 | F38: a | G38: 026 02 | H38: B | I38: 37998919a | J38: 37998919026 02 | K38: skialpinizmus | L38: 37998919026 02B | M38: Slovenská skialpinistická asociáciaaBskialpinizmus - bežné transfery | N38: 37998919aB
A39: 17316723 | B39: =VLOOKUP(A39,Adr!A:B,2,FALSE) -> Slovenská softballová asociácia | C39: softbal - bežné transfery | D39: 48320 | E39: 0 | F39: a | G39: 026 02 | H39: B | I39: 17316723a | J39: 17316723026 02 | K39: softbal | L39: 17316723026 02B | M39: Slovenská softballová asociáciaaBsoftbal - bežné transfery | N39: 17316723aB
A40: 30807018 | B40: =VLOOKUP(A40,Adr!A:B,2,FALSE) -> Slovenská squashová asociácia | C40: squash - bežné transfery | D40: 30160 | E40: 0 | F40: a | G40: 026 02 | H40: B | I40: 30807018a | J40: 30807018026 02 | K40: squash | L40: 30807018026 02B | M40: Slovenská squashová asociáciaaBsquash - bežné transfery | N40: 30807018aB
A41: 31745466 | B41: =VLOOKUP(A41,Adr!A:B,2,FALSE) -> Slovenská triatlonová únia | C41: triatlon - bežné transfery | D41: 294372 | E41: 0 | F41: a | G41: 026 02 | H41: B | I41: 31745466a | J41: 31745466026 02 | K41: triatlon | L41: 31745466026 02B | M41: Slovenská triatlonová úniaaBtriatlon - bežné transfery | N41: 31745466aB
A42: 00688819 | B42: =VLOOKUP(A42,Adr!A:B,2,FALSE) -> Slovenská volejbalová federácia | C42: volejbal - bežné transfery | D42: 1865534 | E42: 0 | F42: a | G42: 026 02 | H42: B | I42: 00688819a | J42: 00688819026 02 | K42: volejbal | L42: 00688819026 02B | M42: Slovenská volejbalová federáciaaBvolejbal - bežné transfery | N42: 00688819aB
A43: 00688819 | B43: =VLOOKUP(A43,Adr!A:B,2,FALSE) -> Slovenská volejbalová federácia | C43: volejbal - kapitálové transfery | D43: 6500 | E43: 0 | F43: a | G43: 026 02 | H43: K | I43: 00688819a | J43: 00688819026 02 | K43: volejbal | L43: 00688819026 02K | M43: Slovenská volejbalová federáciaaKvolejbal - kapitálové transfery | N43: 00688819aK
A44: 36063835 | B44: =VLOOKUP(A44,Adr!A:B,2,FALSE) -> Slovenský atletický zväz | C44: atletika - bežné transfery | D44: 3028883 | E44: 0 | F44: a | G44: 026 02 | H44: B | I44: 36063835a | J44: 36063835026 02 | K44: atletika | L44: 36063835026 02B | M44: Slovenský atletický zväzaBatletika - bežné transfery | N44: 36063835aB
A45: 36063835 | B45: =VLOOKUP(A45,Adr!A:B,2,FALSE) -> Slovenský atletický zväz | C45: atletika - kapitálové transfery | D45: 100000 | E45: 0 | F45: a | G45: 026 02 | H45: K | I45: 36063835a | J45: 36063835026 02 | K45: atletika | L45: 36063835026 02K | M45: Slovenský atletický zväzaKatletika - kapitálové transfery | N45: 36063835aK
A46: 31753825 | B46: =VLOOKUP(A46,Adr!A:B,2,FALSE) -> Slovenský biliardový zväz | C46: biliard - bežné transfery | D46: 44985 | E46: 0 | F46: a | G46: 026 02 | H46: B | I46: 31753825a | J46: 31753825026 02 | K46: biliard | L46: 31753825026 02B | M46: Slovenský biliardový zväzaBbiliard - bežné transfery | N46: 31753825aB
A47: 36128147 | B47: =VLOOKUP(A47,Adr!A:B,2,FALSE) -> Slovenský bowlingový zväz | C47: bowling - bežné transfery | D47: 34574 | E47: 0 | F47: a | G47: 026 02 | H47: B | I47: 36128147a | J47: 36128147026 02 | K47: bowling | L47: 36128147026 02B | M47: Slovenský bowlingový zväzaBbowling - bežné transfery | N47: 36128147aB
A48: 31770908 | B48: =VLOOKUP(A48,Adr!A:B,2,FALSE) -> Slovenský bridžový zväz | C48: bridž - bežné transfery | D48: 30160 | E48: 0 | F48: a | G48: 026 02 | H48: B | I48: 31770908a | J48: 31770908026 02 | K48: bridž | L48: 31770908026 02B | M48: Slovenský bridžový zväzaBbridž - bežné transfery | N48: 31770908aB
A49: 37841866 | B49: =VLOOKUP(A49,Adr!A:B,2,FALSE) -> Slovenský curlingový zväz | C49: curling - bežné transfery | D49: 42861 | E49: 0 | F49: a | G49: 026 02 | H49: B | I49: 37841866a | J49: 37841866026 02 | K49: curling | L49: 37841866026 02B | M49: Slovenský curlingový zväzaBcurling - bežné transfery | N49: 37841866aB
A50: 00687308 | B50: =VLOOKUP(A50,Adr!A:B,2,FALSE) -> Slovenský futbalový zväz | C50: futbal - bežné transfery | D50: 12717974 | E50: 0 | F50: a | G50: 026 02 | H50: B | I50: 00687308a | J50: 00687308026 02 | K50: futbal | L50: 00687308026 02B | M50: Slovenský futbalový zväzaBfutbal - bežné transfery | N50: 00687308aB
A51: 00687308 | B51: =VLOOKUP(A51,Adr!A:B,2,FALSE) -> Slovenský futbalový zväz | C51: futbal - kapitálové transfery | D51: 100000 | E51: 0 | F51: a | G51: 026 02 | H51: K | I51: 00687308a | J51: 00687308026 02 | K51: futbal | L51: 00687308026 02K | M51: Slovenský futbalový zväzaKfutbal - kapitálové transfery | N51: 00687308aK
A52: 00586455 | B52: =VLOOKUP(A52,Adr!A:B,2,FALSE) -> Slovenský horolezecký spolok JAMES | C52: horolezectvo - bežné transfery | D52: 134606 | E52: 0 | F52: a | G52: 026 02 | H52: B | I52: 00586455a | J52: 00586455026 02 | K52: horolezectvo | L52: 00586455026 02B | M52: Slovenský horolezecký spolok JAMESaBhorolezectvo - bežné transfery | N52: 00586455aB
A53: 00586455 | B53: =VLOOKUP(A53,Adr!A:B,2,FALSE) -> Slovenský horolezecký spolok JAMES | C53: športové lezenie - bežné transfery | D53: 58898 | E53: 0 | F53: a | G53: 026 02 | H53: B | I53: 00586455a | J53: 00586455026 02 | K53: športové lezenie | L53: 00586455026 02B | M53: Slovenský horolezecký spolok JAMESaBšportové lezenie - bežné transfery | N53: 00586455aB
A54: 31805540 | B54: =VLOOKUP(A54,Adr!A:B,2,FALSE) -> Slovenský krasokorčuliarsky zväz | C54: krasokorčuľovanie - bežné transfery | D54: 244015 | E54: 0 | F54: a | G54: 026 02 | H54: B | I54: 31805540a | J54: 31805540026 02 | K54: krasokorčuľovanie | L54: 31805540026 02B | M54: Slovenský krasokorčuliarsky zväzaBkrasokorčuľovanie - bežné transfery | N54: 31805540aB
A55: 30793009 | B55: =VLOOKUP(A55,Adr!A:B,2,FALSE) -> Slovenský lukostrelecký zväz | C55: lukostreľba - bežné transfery | D55: 255821 | E55: 0 | F55: a | G55: 026 02 | H55: B | I55: 30793009a | J55: 30793009026 02 | K55: lukostreľba | L55: 30793009026 02B | M55: Slovenský lukostrelecký zväzaBlukostreľba - bežné transfery | N55: 30793009aB
A56: 00677604 | B56: =VLOOKUP(A56,Adr!A:B,2,FALSE) -> Slovenský národný aeroklub generála Milana Rastislava Štefánika | C56: letecké športy - bežné transfery | D56: 156786 | E56: 0 | F56: a | G56: 026 02 | H56: B | I56: 00677604a | J56: 00677604026 02 | K56: letecké športy | L56: 00677604026 02B | M56: Slovenský národný aeroklub generála Milana Rastislava ŠtefánikaaBletecké športy - bežné transfery | N56: 00677604aB
A57: 30811082 | B57: =VLOOKUP(A57,Adr!A:B,2,FALSE) -> Slovenský olympijský a športový výbor | C57: činnosť Slovenského olympijského a športového výboru | D57: 1507997 | E57: 0 | F57: b | G57: 026 03 | H57: B | I57: 30811082b | J57: 30811082026 03 | L57: 30811082026 03B | M57: Slovenský olympijský a športový výborbBčinnosť Slovenského olympijského a športového výboru | N57: 30811082bB
A58: 31745661 | B58: =VLOOKUP(A58,Adr!A:B,2,FALSE) -> Slovenský paralympijský výbor | C58: činnosť Slovenského paralympijského výboru | D58: 1032389 | E58: 0 | F58: c | G58: 026 03 | H58: B | I58: 31745661c | J58: 31745661026 03 | L58: 31745661026 03B | M58: Slovenský paralympijský výborcBčinnosť Slovenského paralympijského výboru | N58: 31745661cB
A59: 31745661 | B59: =VLOOKUP(A59,Adr!A:B,2,FALSE) -> Slovenský paralympijský výbor | C59: letné paralympijské hry Paríž 2024 (UV SR č. 626) | D59: 500000 | E59: 0 | F59: e | G59: 026 03 | H59: B | I59: 31745661e | J59: 31745661026 03 | L59: 31745661026 03B | M59: Slovenský paralympijský výboreBletné paralympijské hry Paríž 2024 (UV SR č. 626) | N59: 31745661eB
A60: 30688060 | B60: =VLOOKUP(A60,Adr!A:B,2,FALSE) -> Slovenský rýchlokorčuliarsky zväz | C60: rýchlokorčuľovanie - bežné transfery | D60: 73430 | E60: 0 | F60: a | G60: 026 02 | H60: B | I60: 30688060a | J60: 30688060026 02 | K60: rýchlokorčuľovanie | L60: 30688060026 02B | M60: Slovenský rýchlokorčuliarsky zväzaBrýchlokorčuľovanie - bežné transfery | N60: 30688060aB
A61: 30806836 | B61: =VLOOKUP(A61,Adr!A:B,2,FALSE) -> Slovenský stolnotenisový zväz | C61: stolný tenis - bežné transfery | D61: 1596005 | E61: 0 | F61: a | G61: 026 02 | H61: B | I61: 30806836a | J61: 30806836026 02 | K61: stolný tenis | L61: 30806836026 02B | M61: Slovenský stolnotenisový zväzaBstolný tenis - bežné transfery | N61: 30806836aB
A62: 30806836 | B62: =VLOOKUP(A62,Adr!A:B,2,FALSE) -> Slovenský stolnotenisový zväz | C62: stolný tenis - kapitálové transfery | D62: 40000 | E62: 0 | F62: a | G62: 026 02 | H62: K | I62: 30806836a | J62: 30806836026 02 | K62: stolný tenis | L62: 30806836026 02K | M62: Slovenský stolnotenisový zväzaKstolný tenis - kapitálové transfery | N62: 30806836aK
A63: 00603341 | B63: =VLOOKUP(A63,Adr!A:B,2,FALSE) -> SLOVENSKÝ STRELECKÝ ZVÄZ | C63: streľba - bežné transfery | D63: 958295 | E63: 0 | F63: a | G63: 026 02 | H63: B | I63: 00603341a | J63: 00603341026 02 | K63: streľba | L63: 00603341026 02B | M63: SLOVENSKÝ STRELECKÝ ZVÄZaBstreľba - bežné transfery | N63: 00603341aB
A64: 00603341 | B64: =VLOOKUP(A64,Adr!A:B,2,FALSE) -> SLOVENSKÝ STRELECKÝ ZVÄZ | C64: streľba - kapitálové transfery | D64: 51000 | E64: 0 | F64: a | G64: 026 02 | H64: K | I64: 00603341a | J64: 00603341026 02 | K64: streľba | L64: 00603341026 02K | M64: SLOVENSKÝ STRELECKÝ ZVÄZaKstreľba - kapitálové transfery | N64: 00603341aK
A65: 17310571 | B65: =VLOOKUP(A65,Adr!A:B,2,FALSE) -> Slovenský šachový zväz | C65: šach - bežné transfery | D65: 507517 | E65: 0 | F65: a | G65: 026 02 | H65: B | I65: 17310571a | J65: 17310571026 02 | K65: šach | L65: 17310571026 02B | M65: Slovenský šachový zväzaBšach - bežné transfery | N65: 17310571aB
A66: 17310571 | B66: =VLOOKUP(A66,Adr!A:B,2,FALSE) -> Slovenský šachový zväz | C66: zabezpečenie a rozvoj zdravotne postihnutých športovcov (SPV) | D66: 5502 | E66: 0 | F66: c | G66: 026 03 | H66: B | I66: =A66&F66 -> 17310571c | J66: =A66&G66 -> 17310571026 03 | L66: =A66&G66&H66 -> 17310571026 03B | M66: =B66&F66&H66&C66 -> Slovenský šachový zväzcBzabezpečenie a rozvoj zdravotne postihnutých športovcov (SPV) | N66: =+I66&H66 -> 17310571cB
A67: 30806437 | B67: =VLOOKUP(A67,Adr!A:B,2,FALSE) -> Slovenský šermiarsky zväz | C67: šerm - bežné transfery | D67: 155771 | E67: 0 | F67: a | G67: 026 02 | H67: B | I67: 30806437a | J67: 30806437026 02 | K67: šerm | L67: 30806437026 02B | M67: Slovenský šermiarsky zväzaBšerm - bežné transfery | N67: 30806437aB
A68: 30811384 | B68: =VLOOKUP(A68,Adr!A:B,2,FALSE) -> Slovenský tenisový zväz | C68: tenis - bežné transfery | D68: 4428173 | E68: 0 | F68: a | G68: 026 02 | H68: B | I68: 30811384a | J68: 30811384026 02 | K68: tenis | L68: 30811384026 02B | M68: Slovenský tenisový zväzaBtenis - bežné transfery | N68: 30811384aB
A69: 00688304 | B69: =VLOOKUP(A69,Adr!A:B,2,FALSE) -> Slovenský veslársky zväz | C69: veslovanie - bežné transfery | D69: 104114 | E69: 0 | F69: a | G69: 026 02 | H69: B | I69: 00688304a | J69: 00688304026 02 | K69: veslovanie | L69: 00688304026 02B | M69: Slovenský veslársky zväzaBveslovanie - bežné transfery | N69: 00688304aB
A70: 00688304 | B70: =VLOOKUP(A70,Adr!A:B,2,FALSE) -> Slovenský veslársky zväz | C70: veslovanie - kapitálové transfery | D70: 35000 | E70: 0 | F70: a | G70: 026 02 | H70: K | I70: 00688304a | J70: 00688304026 02 | K70: veslovanie | L70: 00688304026 02K | M70: Slovenský veslársky zväzaKveslovanie - kapitálové transfery | N70: 00688304aK
A71: 00688304 | B71: =VLOOKUP(A71,Adr!A:B,2,FALSE) -> Slovenský veslársky zväz | C71: zabezpečenie a rozvoj zdravotne postihnutých športovcov (SPV) | D71: 6503 | E71: 0 | F71: c | G71: 026 03 | H71: B | I71: 00688304c | J71: 00688304026 03 | L71: 00688304026 03B | M71: Slovenský veslársky zväzcBzabezpečenie a rozvoj zdravotne postihnutých športovcov (SPV) | N71: 00688304cB
A72: 31791981 | B72: =VLOOKUP(A72,Adr!A:B,2,FALSE) -> SLOVENSKÝ ZÁPASNÍCKY ZVÄZ | C72: zápasenie - bežné transfery | D72: 367713 | E72: 0 | F72: a | G72: 026 02 | H72: B | I72: 31791981a | J72: 31791981026 02 | K72: zápasenie | L72: 31791981026 02B | M72: SLOVENSKÝ ZÁPASNÍCKY ZVÄZaBzápasenie - bežné transfery | N72: 31791981aB
A73: 30811546 | B73: =VLOOKUP(A73,Adr!A:B,2,FALSE) -> Slovenský zväz bedmintonu | C73: bedminton - bežné transfery | D73: 319933 | E73: 0 | F73: a | G73: 026 02 | H73: B | I73: 30811546a | J73: 30811546026 02 | K73: bedminton | L73: 30811546026 02B | M73: Slovenský zväz bedmintonuaBbedminton - bežné transfery | N73: 30811546aB
A74: 35656743 | B74: =VLOOKUP(A74,Adr!A:B,2,FALSE) -> Slovenský zväz biatlonu | C74: biatlon - bežné transfery | D74: 590940 | E74: 0 | F74: a | G74: 026 02 | H74: B | I74: 35656743a | J74: 35656743026 02 | K74: biatlon | L74: 35656743026 02B | M74: Slovenský zväz biatlonuaBbiatlon - bežné transfery | N74: 35656743aB
A75: 35656743 | B75: =VLOOKUP(A75,Adr!A:B,2,FALSE) -> Slovenský zväz biatlonu | C75: biatlon - kapitálové transfery | D75: 68450 | E75: 0 | F75: a | G75: 026 02 | H75: K | I75: 35656743a | J75: 35656743026 02 | K75: biatlon | L75: 35656743026 02K | M75: Slovenský zväz biatlonuaKbiatlon - kapitálové transfery | N75: 35656743aK
A76: 36067580 | B76: =VLOOKUP(A76,Adr!A:B,2,FALSE) -> Slovenský zväz bobistov | C76: boby a skeleton - bežné transfery | D76: 86372 | E76: 0 | F76: a | G76: 026 02 | H76: B | I76: 36067580a | J76: 36067580026 02 | K76: boby a skeleton | L76: 36067580026 02B | M76: Slovenský zväz bobistovaBboby a skeleton - bežné transfery | N76: 36067580aB
A77: 36067580 | B77: =VLOOKUP(A77,Adr!A:B,2,FALSE) -> Slovenský zväz bobistov | C77: boby a skeleton - kapitálové transfery | D77: 8376 | E77: 0 | F77: a | G77: 026 02 | H77: K | I77: 36067580a | J77: 36067580026 02 | K77: boby a skeleton | L77: 36067580026 02K | M77: Slovenský zväz bobistovaKboby a skeleton - kapitálové transfery | N77: 36067580aK
A78: 00684112 | B78: =VLOOKUP(A78,Adr!A:B,2,FALSE) -> Slovenský zväz cyklistiky | C78: cyklistika - bežné transfery | D78: 2585363 | E78: 0 | F78: a | G78: 026 02 | H78: B | I78: 00684112a | J78: 00684112026 02 | K78: cyklistika | L78: 00684112026 02B | M78: Slovenský zväz cyklistikyaBcyklistika - bežné transfery | N78: 00684112aB
A79: 00684112 | B79: =VLOOKUP(A79,Adr!A:B,2,FALSE) -> Slovenský zväz cyklistiky | C79: cyklistika - kapitálové transfery | D79: 21200 | E79: 0 | F79: a | G79: 026 02 | H79: K | I79: 00684112a | J79: 00684112026 02 | K79: cyklistika | L79: 00684112026 02K | M79: Slovenský zväz cyklistikyaKcyklistika - kapitálové transfery | N79: 00684112aK
A80: 00684112 | B80: =VLOOKUP(A80,Adr!A:B,2,FALSE) -> Slovenský zväz cyklistiky | C80: zabezpečenie a rozvoj zdravotne postihnutých športovcov (SPV) | D80: 56021 | E80: 0 | F80: c | G80: 026 03 | H80: B | I80: 00684112c | J80: 00684112026 03 | L80: 00684112026 03B | M80: Slovenský zväz cyklistikycBzabezpečenie a rozvoj zdravotne postihnutých športovcov (SPV) | N80: 00684112cB
A81: 31806431 | B81: =VLOOKUP(A81,Adr!A:B,2,FALSE) -> Slovenský zväz dráhového golfu | C81: dráhový golf - bežné transfery | D81: 36551 | E81: 0 | F81: a | G81: 026 02 | H81: B | I81: 31806431a | J81: 31806431026 02 | K81: dráhový golf | L81: 31806431026 02B | M81: Slovenský zväz dráhového golfuaBdráhový golf - bežné transfery | N81: 31806431aB
A82: 31795421 | B82: =VLOOKUP(A82,Adr!A:B,2,FALSE) -> Slovenský zväz florbalu | C82: florbal - bežné transfery | D82: 823221 | E82: 0 | F82: a | G82: 026 02 | H82: B | I82: 31795421a | J82: 31795421026 02 | K82: florbal | L82: 31795421026 02B | M82: Slovenský zväz florbaluaBflorbal - bežné transfery | N82: 31795421aB
A83: 30774772 | B83: =VLOOKUP(A83,Adr!A:B,2,FALSE) -> Slovenský zväz hádzanej | C83: hádzaná - bežné transfery | D83: 2001954 | E83: 0 | F83: a | G83: 026 02 | H83: B | I83: 30774772a | J83: 30774772026 02 | K83: hádzaná | L83: 30774772026 02B | M83: Slovenský zväz hádzanejaBhádzaná - bežné transfery | N83: 30774772aB
A84: 30793211 | B84: =VLOOKUP(A84,Adr!A:B,2,FALSE) -> Slovenský zväz jachtingu | C84: jachting - bežné transfery | D84: 97455 | E84: 0 | F84: a | G84: 026 02 | H84: B | I84: 30793211a | J84: 30793211026 02 | K84: jachting | L84: 30793211026 02B | M84: Slovenský zväz jachtinguaBjachting - bežné transfery | N84: 30793211aB
A85: 17308518 | B85: =VLOOKUP(A85,Adr!A:B,2,FALSE) -> Slovenský zväz Judo | C85: judo - bežné transfery | D85: 275194 | E85: 0 | F85: a | G85: 026 02 | H85: B | I85: 17308518a | J85: 17308518026 02 | K85: judo | L85: 17308518026 02B | M85: Slovenský zväz JudoaBjudo - bežné transfery | N85: 17308518aB
A86: 30811571 | B86: =VLOOKUP(A86,Adr!A:B,2,FALSE) -> Slovenský Zväz Karate | C86: karate - bežné transfery | D86: 905449 | E86: 0 | F86: a | G86: 026 02 | H86: B | I86: 30811571a | J86: 30811571026 02 | K86: karate | L86: 30811571026 02B | M86: Slovenský Zväz KarateaBkarate - bežné transfery | N86: 30811571aB
A87: 30811571 | B87: =VLOOKUP(A87,Adr!A:B,2,FALSE) -> Slovenský Zväz Karate | C87: zabezpečenie a rozvoj zdravotne postihnutých športovcov (SPV) | D87: 8503 | E87: 0 | F87: c | G87: 026 03 | H87: B | I87: 30811571c | J87: 30811571026 03 | L87: 30811571026 03B | M87: Slovenský Zväz KaratecBzabezpečenie a rozvoj zdravotne postihnutých športovcov (SPV) | N87: 30811571cB
A88: 31119247 | B88: =VLOOKUP(A88,Adr!A:B,2,FALSE) -> Slovenský zväz kickboxu | C88: kickbox - bežné transfery | D88: 164699 | E88: 0 | F88: a | G88: 026 02 | H88: B | I88: 31119247a | J88: 31119247026 02 | K88: kickbox | L88: 31119247026 02B | M88: Slovenský zväz kickboxuaBkickbox - bežné transfery | N88: 31119247aB
A89: 30845386 | B89: =VLOOKUP(A89,Adr!A:B,2,FALSE) -> Slovenský zväz ľadového hokeja | C89: ľadový hokej - bežné transfery | D89: 9710306 | E89: 0 | F89: a | G89: 026 02 | H89: B | I89: 30845386a | J89: 30845386026 02 | K89: ľadový hokej | L89: 30845386026 02B | M89: Slovenský zväz ľadového hokejaaBľadový hokej - bežné transfery | N89: 30845386aB
A90: 30845386 | B90: =VLOOKUP(A90,Adr!A:B,2,FALSE) -> Slovenský zväz ľadového hokeja | C90: ľadový hokej - kapitálové transfery | D90: 91674 | E90: 0 | F90: a | G90: 026 02 | H90: K | I90: 30845386a | J90: 30845386026 02 | K90: ľadový hokej | L90: 30845386026 02K | M90: Slovenský zväz ľadového hokejaaKľadový hokej - kapitálové transfery | N90: 30845386aK
A91: 30788714 | B91: =VLOOKUP(A91,Adr!A:B,2,FALSE) -> Slovenský zväz moderného päťboja | C91: moderný päťboj - bežné transfery | D91: 117759 | E91: 0 | F91: a | G91: 026 02 | H91: B | I91: 30788714a | J91: 30788714026 02 | K91: moderný päťboj | L91: 30788714026 02B | M91: Slovenský zväz moderného päťbojaaBmoderný päťboj - bežné transfery | N91: 30788714aB
A92: 30806518 | B92: =VLOOKUP(A92,Adr!A:B,2,FALSE) -> Slovenský zväz orientačných športov | C92: orientačné športy - bežné transfery | D92: 57729 | E92: 0 | F92: a | G92: 026 02 | H92: B | I92: 30806518a | J92: 30806518026 02 | K92: orientačné športy | L92: 30806518026 02B | M92: Slovenský zväz orientačných športovaBorientačné športy - bežné transfery | N92: 30806518aB
A93: 31751075 | B93: =VLOOKUP(A93,Adr!A:B,2,FALSE) -> Slovenský zväz pozemného hokeja | C93: pozemný hokej - bežné transfery | D93: 142124 | E93: 0 | F93: a | G93: 026 02 | H93: B | I93: 31751075a | J93: 31751075026 02 | K93: pozemný hokej | L93: 31751075026 02B | M93: Slovenský zväz pozemného hokejaaBpozemný hokej - bežné transfery | N93: 31751075aB
A94: 31751075 | B94: =VLOOKUP(A94,Adr!A:B,2,FALSE) -> Slovenský zväz pozemného hokeja | C94: pozemný hokej - kapitálové transfery | D94: 20000 | E94: 0 | F94: a | G94: 026 02 | H94: K | I94: 31751075a | J94: 31751075026 02 | K94: pozemný hokej | L94: 31751075026 02K | M94: Slovenský zväz pozemného hokejaaKpozemný hokej - kapitálové transfery | N94: 31751075aK
A95: 37818058 | B95: =VLOOKUP(A95,Adr!A:B,2,FALSE) -> Slovenský zväz psích záprahov | C95: psie záprahy - bežné transfery | D95: 41497 | E95: 0 | F95: a | G95: 026 02 | H95: B | I95: 37818058a | J95: 37818058026 02 | K95: psie záprahy | L95: 37818058026 02B | M95: Slovenský zväz psích záprahovaBpsie záprahy - bežné transfery | N95: 37818058aB
A96: 31871526 | B96: =VLOOKUP(A96,Adr!A:B,2,FALSE) -> Slovenský zväz rybolovnej techniky | C96: rybolovná technika - bežné transfery | D96: 65346 | E96: 0 | F96: a | G96: 026 02 | H96: B | I96: 31871526a | J96: 31871526026 02 | K96: rybolovná technika | L96: 31871526026 02B | M96: Slovenský zväz rybolovnej technikyaBrybolovná technika - bežné transfery | N96: 31871526aB
A97: 31989373 | B97: =VLOOKUP(A97,Adr!A:B,2,FALSE) -> Slovenský zväz sánkarov | C97: sánkovanie - bežné transfery | D97: 140092 | E97: 0 | F97: a | G97: 026 02 | H97: B | I97: 31989373a | J97: 31989373026 02 | K97: sánkovanie | L97: 31989373026 02B | M97: Slovenský zväz sánkarovaBsánkovanie - bežné transfery | N97: 31989373aB
A98: 17326087 | B98: =VLOOKUP(A98,Adr!A:B,2,FALSE) -> Slovenský zväz športovcov s mentálnym postihnutím | C98: zabezpečenie činnosti a úloh v roku 2024 | D98: 10004 | E98: 0 | F98: c | G98: 026 03 | H98: B | I98: =A98&F98 -> 17326087c | J98: 17326087026 03 | L98: 17326087026 03B | M98: Slovenský zväz športovcov s mentálnym postihnutímcBzabezpečenie činnosti a úloh v roku 2024 | N98: 17326087cB
A99: 42219922 | B99: =VLOOKUP(A99,Adr!A:B,2,FALSE) -> Slovenský zväz športového ju-jitsu | C99: ju-jitsu - bežné transfery | D99: 30160 | E99: 0 | F99: a | G99: 026 02 | H99: B | I99: 42219922a | J99: 42219922026 02 | K99: ju-jitsu | L99: 42219922026 02B | M99: Slovenský zväz športového ju-jitsuaBju-jitsu - bežné transfery | N99: 42219922aB
A100: 51118831 | B100: =VLOOKUP(A100,Adr!A:B,2,FALSE) -> Slovenský zväz športového rybolovu | C100: športové rybárstvo - bežné transfery | D100: 89011 | E100: 0 | F100: a | G100: 026 02 | H100: B | I100: 51118831a | J100: 51118831026 02 | K100: športové rybárstvo | L100: 51118831026 02B | M100: Slovenský zväz športového rybolovuaBšportové rybárstvo - bežné transfery | N100: 51118831aB
A101: 00684767 | B101: =VLOOKUP(A101,Adr!A:B,2,FALSE) -> Slovenský zväz tanečných športov | C101: tanečný šport - bežné transfery | D101: 590215 | E101: 0 | F101: a | G101: 026 02 | H101: B | I101: 00684767a | J101: 00684767026 02 | K101: tanečný šport | L101: 00684767026 02B | M101: Slovenský zväz tanečných športovaBtanečný šport - bežné transfery | N101: 00684767aB
A102: 22665234 | B102: =VLOOKUP(A102,Adr!A:B,2,FALSE) -> Slovenský zväz telesne postihnutých športovcov | C102: zabezpečenie činnosti a úloh v roku 2024 | D102: 503190 | E102: 0 | F102: c | G102: 026 03 | H102: B | I102: 22665234c | J102: 22665234026 03 | L102: 22665234026 03B | M102: Slovenský zväz telesne postihnutých športovcovcBzabezpečenie činnosti a úloh v roku 2024 | N102: 22665234cB
A103: 30793203 | B103: =VLOOKUP(A103,Adr!A:B,2,FALSE) -> Slovenský zväz vodného lyžovania a wakeboardingu | C103: vodné lyžovanie - bežné transfery | D103: 64577 | E103: 0 | F103: a | G103: 026 02 | H103: B | I103: 30793203a | J103: 30793203026 02 | K103: vodné lyžovanie | L103: 30793203026 02B | M103: Slovenský zväz vodného lyžovania a wakeboardinguaBvodné lyžovanie - bežné transfery | N103: 30793203aB
A104: 00681768 | B104: =VLOOKUP(A104,Adr!A:B,2,FALSE) -> Slovenský zväz vodného motorizmu | C104: vodný motorizmus - bežné transfery | D104: 30160 | E104: 0 | F104: a | G104: 026 02 | H104: B | I104: 00681768a | J104: 00681768026 02 | K104: vodný motorizmus | L104: 00681768026 02B | M104: Slovenský zväz vodného motorizmuaBvodný motorizmus - bežné transfery | N104: 00681768aB
A105: 31796079 | B105: =VLOOKUP(A105,Adr!A:B,2,FALSE) -> Slovenský zväz vzpierania | C105: vzpieranie - bežné transfery | D105: 488195 | E105: 0 | F105: a | G105: 026 02 | H105: B | I105: 31796079a | J105: 31796079026 02 | K105: vzpieranie | L105: 31796079026 02B | M105: Slovenský zväz vzpieraniaaBvzpieranie - bežné transfery | N105: 31796079aB
A106: 30811406 | B106: =VLOOKUP(A106,Adr!A:B,2,FALSE) -> Špeciálne olympiády Slovensko | C106: zabezpečenie činnosti a úloh v roku 2024 | D106: 419158 | E106: 0 | F106: c | G106: 026 03 | H106: B | I106: 30811406c | J106: 30811406026 03 | L106: 30811406026 03B | M106: Špeciálne olympiády SlovenskocBzabezpečenie činnosti a úloh v roku 2024 | N106: 30811406cB
A107: 53007344 | B107: =VLOOKUP(A107,Adr!A:B,2,FALSE) -> Teqballová federácia Slovensko | C107: teqball - bežné transfery | D107: 22160 | E107: 0 | F107: a | G107: 026 02 | H107: B | I107: 53007344a | J107: 53007344026 02 | K107: teqball | L107: 53007344026 02B | M107: Teqballová federácia SlovenskoaBteqball - bežné transfery | N107: 53007344aB
A108: 53007344 | B108: =VLOOKUP(A108,Adr!A:B,2,FALSE) -> Teqballová federácia Slovensko | C108: teqball - kapitálové transfery | D108: 8000 | E108: 0 | F108: a | G108: 026 02 | H108: K | I108: 53007344a | J108: 53007344026 02 | K108: teqball | L108: 53007344026 02K | M108: Teqballová federácia SlovenskoaKteqball - kapitálové transfery | N108: 53007344aK
A109: 35538015 | B109: =VLOOKUP(A109,Adr!A:B,2,FALSE) -> Združenie šípkarských organizácií | C109: šípky - bežné transfery | D109: 59057 | E109: 0 | F109: a | G109: 026 02 | H109: B | I109: 35538015a | J109: 35538015026 02 | K109: šípky | L109: 35538015026 02B | M109: Združenie šípkarských organizáciíaBšípky - bežné transfery | N109: 35538015aB
A110: 00585319 | B110: =VLOOKUP(A110,Adr!A:B,2,FALSE) -> Zväz potápačov Slovenska | C110: potápačské športy - bežné transfery | D110: 102563 | E110: 0 | F110: a | G110: 026 02 | H110: B | I110: 00585319a | J110: 00585319026 02 | K110: potápačské športy | L110: 00585319026 02B | M110: Zväz potápačov SlovenskaaBpotápačské športy - bežné transfery | N110: 00585319aB
A111: 42132690 | B111: =VLOOKUP(A111,Adr!A:B,2,FALSE) -> Zväz slovenského kolieskového korčuľovania | C111: kolieskové korčuľovanie - bežné transfery | D111: 185600 | E111: 0 | F111: a | G111: 026 02 | H111: B | I111: 42132690a | J111: 42132690026 02 | K111: kolieskové korčuľovanie | L111: 42132690026 02B | M111: Zväz slovenského kolieskového korčuľovaniaaBkolieskové korčuľovanie - bežné transfery | N111: 42132690aB
A112: 50671669 | B112: =VLOOKUP(A112,Adr!A:B,2,FALSE) -> Zväz slovenského lyžovania | C112: lyžovanie - bežné transfery | D112: 1571612 | E112: 0 | F112: a | G112: 026 02 | H112: B | I112: 50671669a | J112: 50671669026 02 | K112: lyžovanie | L112: 50671669026 02B | M112: Zväz slovenského lyžovaniaaBlyžovanie - bežné transfery | N112: 50671669aB
A113: 50671669 | B113: =VLOOKUP(A113,Adr!A:B,2,FALSE) -> Zväz slovenského lyžovania | C113: lyžovanie - kapitálové transfery | D113: 100000 | E113: 0 | F113: a | G113: 026 02 | H113: K | I113: 50671669a | J113: 50671669026 02 | K113: lyžovanie | L113: 50671669026 02K | M113: Zväz slovenského lyžovaniaaKlyžovanie - kapitálové transfery | N113: 50671669aK
A114: 50671669 | B114: =VLOOKUP(A114,Adr!A:B,2,FALSE) -> Zväz slovenského lyžovania | C114: zabezpečenie a rozvoj zdravotne postihnutých športovcov (SPV) | D114: 124046 | E114: 0 | F114: c | G114: 026 03 | H114: B | I114: 50671669c | J114: 50671669026 03 | L114: 50671669026 03B | M114: Zväz slovenského lyžovaniacBzabezpečenie a rozvoj zdravotne postihnutých športovcov (SPV) | N114: 50671669cB
B115: =VLOOKUP(A115,Adr!A:B,2,FALSE) -> 
B116: =VLOOKUP(A116,Adr!A:B,2,FALSE) -> 
B117: =VLOOKUP(A117,Adr!A:B,2,FALSE) -> 
B118: =VLOOKUP(A118,Adr!A:B,2,FALSE) -> 
B119: =VLOOKUP(A119,Adr!A:B,2,FALSE) -> 
B120: =VLOOKUP(A120,Adr!A:B,2,FALSE) -> 
B121: =VLOOKUP(A121,Adr!A:B,2,FALSE) -> 
B122: =VLOOKUP(A122,Adr!A:B,2,FALSE) -> 
B123: =VLOOKUP(A123,Adr!A:B,2,FALSE) -> 
B124: =VLOOKUP(A124,Adr!A:B,2,FALSE) -> 
B125: =VLOOKUP(A125,Adr!A:B,2,FALSE) -> 
B126: =VLOOKUP(A126,Adr!A:B,2,FALSE) -> 
B127: =VLOOKUP(A127,Adr!A:B,2,FALSE) -> 
B128: =VLOOKUP(A128,Adr!A:B,2,FALSE) -> 
B129: =VLOOKUP(A129,Adr!A:B,2,FALSE) -> 
B130: =VLOOKUP(A130,Adr!A:B,2,FALSE) ->  | I130: =A130&F130 ->  | J130: =A130&G130 ->  | L130: =A130&G130&H130 ->  | M130: =B130&F130&H130&C130 ->  | N130: =+I130&H130 -> 
B131: =VLOOKUP(A131,Adr!A:B,2,FALSE) -> 
B132: =VLOOKUP(A132,Adr!A:B,2,FALSE) -> 
B133: =VLOOKUP(A133,Adr!A:B,2,FALSE) -> 
B134: =VLOOKUP(A134,Adr!A:B,2,FALSE) -> 
B135: =VLOOKUP(A135,Adr!A:B,2,FALSE) -> 
B136: =VLOOKUP(A136,Adr!A:B,2,FALSE) -> 
B137: =VLOOKUP(A137,Adr!A:B,2,FALSE) -> 
B138: =VLOOKUP(A138,Adr!A:B,2,FALSE) -> 
B139: =VLOOKUP(A139,Adr!A:B,2,FALSE) -> 
B140: =VLOOKUP(A140,Adr!A:B,2,FALSE) -> 
B141: =VLOOKUP(A141,Adr!A:B,2,FALSE) -> 
B142: =VLOOKUP(A142,Adr!A:B,2,FALSE) -> 
B143: =VLOOKUP(A143,Adr!A:B,2,FALSE) -> 
B144: =VLOOKUP(A144,Adr!A:B,2,FALSE) -> 
B145: =VLOOKUP(A145,Adr!A:B,2,FALSE) -> 
B146: =VLOOKUP(A146,Adr!A:B,2,FALSE) -> 
B147: =VLOOKUP(A147,Adr!A:B,2,FALSE) -> 
B148: =VLOOKUP(A148,Adr!A:B,2,FALSE) -> 
B149: =VLOOKUP(A149,Adr!A:B,2,FALSE) -> 
B150: =VLOOKUP(A150,Adr!A:B,2,FALSE) -> 
B151: =VLOOKUP(A151,Adr!A:B,2,FALSE) -> 
B152: =VLOOKUP(A152,Adr!A:B,2,FALSE) -> 
B153: =VLOOKUP(A153,Adr!A:B,2,FALSE) -> 
B154: =VLOOKUP(A154,Adr!A:B,2,FALSE) -> 
B155: =VLOOKUP(A155,Adr!A:B,2,FALSE) -> 
B156: =VLOOKUP(A156,Adr!A:B,2,FALSE) -> 
B157: =VLOOKUP(A157,Adr!A:B,2,FALSE) -> 
B158: =VLOOKUP(A158,Adr!A:B,2,FALSE) -> 
B159: =VLOOKUP(A159,Adr!A:B,2,FALSE) -> 
B160: =VLOOKUP(A160,Adr!A:B,2,FALSE) -> 
B161: =VLOOKUP(A161,Adr!A:B,2,FALSE) -> 
B162: =VLOOKUP(A162,Adr!A:B,2,FALSE) ->  | I162: =A162&F162 -> 
B163: =VLOOKUP(A163,Adr!A:B,2,FALSE) -> 
B164: =VLOOKUP(A164,Adr!A:B,2,FALSE) -> 
B165: =VLOOKUP(A165,Adr!A:B,2,FALSE) -> 
B166: =VLOOKUP(A166,Adr!A:B,2,FALSE) -> 
B167: =VLOOKUP(A167,Adr!A:B,2,FALSE) -> 
B168: =VLOOKUP(A168,Adr!A:B,2,FALSE) -> 
B169: =VLOOKUP(A169,Adr!A:B,2,FALSE) -> 
B170: =VLOOKUP(A170,Adr!A:B,2,FALSE) -> 
B171: =VLOOKUP(A171,Adr!A:B,2,FALSE) -> 
B172: =VLOOKUP(A172,Adr!A:B,2,FALSE) -> 
B173: =VLOOKUP(A173,Adr!A:B,2,FALSE) -> 
B174: =VLOOKUP(A174,Adr!A:B,2,FALSE) -> 
B175: =VLOOKUP(A175,Adr!A:B,2,FALSE) -> 
B176: =VLOOKUP(A176,Adr!A:B,2,FALSE) -> 
B177: =VLOOKUP(A177,Adr!A:B,2,FALSE) -> 
B178: =VLOOKUP(A178,Adr!A:B,2,FALSE) -> 
B179: =VLOOKUP(A179,Adr!A:B,2,FALSE) -> 
B180: =VLOOKUP(A180,Adr!A:B,2,FALSE) -> 
B181: =VLOOKUP(A181,Adr!A:B,2,FALSE) -> 
B182: =VLOOKUP(A182,Adr!A:B,2,FALSE) -> 
B183: =VLOOKUP(A183,Adr!A:B,2,FALSE) -> 
B184: =VLOOKUP(A184,Adr!A:B,2,FALSE) -> 
B185: =VLOOKUP(A185,Adr!A:B,2,FALSE) -> 
B186: =VLOOKUP(A186,Adr!A:B,2,FALSE) -> 
B187: =VLOOKUP(A187,Adr!A:B,2,FALSE) -> 
B188: =VLOOKUP(A188,Adr!A:B,2,FALSE) -> 
B189: =VLOOKUP(A189,Adr!A:B,2,FALSE) -> 
B190: =VLOOKUP(A190,Adr!A:B,2,FALSE) -> 
B191: =VLOOKUP(A191,Adr!A:B,2,FALSE) -> 
B192: =VLOOKUP(A192,Adr!A:B,2,FALSE) -> 
B193: =VLOOKUP(A193,Adr!A:B,2,FALSE) -> 
B194: =VLOOKUP(A194,Adr!A:B,2,FALSE) ->  | J194: =A194&G194 ->  | L194: =A194&G194&H194 ->  | M194: =B194&F194&H194&C194 ->  | N194: =+I194&H194 -> 
B195: =VLOOKUP(A195,Adr!A:B,2,FALSE) -> 
B196: =VLOOKUP(A196,Adr!A:B,2,FALSE) -> 
B197: =VLOOKUP(A197,Adr!A:B,2,FALSE) -> 
B198: =VLOOKUP(A198,Adr!A:B,2,FALSE) -> 
B199: =VLOOKUP(A199,Adr!A:B,2,FALSE) -> 
B200: =VLOOKUP(A200,Adr!A:B,2,FALSE) -> 
... 622 more rows

Sheet Cis (hidden)
A1: Šport | C1: Účel | D1: Účel rozšírený | E1: Režim | F1: PPG | G1: Transfer | I1: PPG | J1: PPG názov
A2: aikido | C2: a | D2: šport 23 | E2: 1 | F2: 026 02 | G2: Príspevok uznanému športu | I2: 026 01 | J2: Šport pre všetkých, školský a univerzitný šport
A3: americký futbal | C3: b | D3: talenty | E3: 1 | F3: 026 02 | G3: Príspevok uznanému športu | I3: 026 02 | J3: Uznané športy
A4: atletika | C4: c | D4: reprezentácia | E4: 1 | F4: 026 02 | G4: Príspevok uznanému športu | I4: 026 03 | J4: Národné športové projekty
A5: automobilový šport | C5: d | D5: administratíva | E5: 1 | F5: 026 02 | G5: Príspevok uznanému športu | I5: 026 04 | J5: Športová infraštruktúra
A6: bandy hokej | C6: e | D6: ostatné | E6: 1 | F6: 026 02 | G6: Príspevok uznanému športu | I6: 026 05 | J6: Prierezové činnosti
A7: basebal | C7: f | D7: športovci | E7: 2 | F7: 026 03 | G7: Príspevok šporovcom top tímu
A8: basketbal | C8: g | D8: SOV | E8: 3 | F8: 026 03 | G8: Príspevok Slovenskému olympijskému výboru
A9: baskická pelota | C9: h | D9: SPV | E9: 3 | F9: 026 03 | G9: Príspevok slovenskému paralympijskému výboru
A10: bedminton | C10: i | D10: účasť a mládež | E10: 4 | F10: 026 03 | G10: Dotácia
A11: biatlon | C11: j | D11: multi a ŠPV | E11: 4 | F11: 026 01 | G11: Dotácia
A12: biliard | C12: k | D12: trasy | E12: 4 | F12: 026 01 | G12: Dotácia
A13: boby a skeleton | C13: l | D13: kampaň | E13: 4 | F13: 026 05 | G13: Dotácia
A14: boccia | C14: m | D14: odmeny | E14: 4 | F14: 026 03 | G14: Dotácia
A15: boule lyonnaise | C15: n
A16: bowling | C16: o
A17: box | C17: p
A18: bridž | C18: q
A19: curling | C19: r
A20: cyklistika | C20: s
A21: dáma | C21: t
A22: dračie lode | C22: u
A23: dráhový golf | C23: v
A24: fistbal | C24: w
A25: florbal | C25: x
A26: futbal | C26: y
A27: go | C27: z
A28: golf
A29: gymnastika
A30: hádzaná
A31: horolezectvo
A32: jachting
A33: jazdectvo
A34: judo
A35: ju-jitsu
A36: kanoistika
A37: karate
A38: kendo
A39: kickbox
A40: kolieskové korčuľovanie
A41: korfbal
A42: krasokorčuľovanie
A43: kriket
A44: kulturistika a fitnes
A45: ľadové kužele
A46: ľadový hokej
A47: lakros
A48: letecké športy
A49: lukostreľba
A50: lyžovanie
A51: moderný päťboj
A52: motocyklový šport
A53: netbal
A54: orientačné športy
A55: petang
A56: plavecké športy
A57: pólo
A58: potápačské športy
A59: povzbudzovanie
A60: pozemný hokej
A61: preťahovanie lanom
A62: psie záprahy
A63: raketbal
A64: rugby
A65: rybolovná technika
A66: rýchlokorčuľovanie
A67: sambo
A68: sánkovanie
A69: savate
A70: sepaktakraw
A71: silové športy
A72: skialpinizmus
A73: soft tenis
A74: softbal
A75: squash
A76: stolný tenis
A77: streľba
A78: sumo
A79: surfovanie
A80: šach
A81: šerm
A82: šípky
A83: športové lezectvo
A84: športové rybárstvo
A85: športy s lietajúcim diskom
A86: taekwondo
A87: tanečný šport
A88: tenis
A89: thajský box
A90: triatlon
A91: veslovanie
A92: vodné lyžovanie
A93: vodné záchranárstvo
A94: vodný motorizmus
A95: volejbal
A96: vzpieranie
A97: wushu
A98: zápasenie

Sheet Avízo - výnosy
A1: =Spolu!C3&", "&Spolu!C6 -> Slovenský krasokorčuliarsky zväz, Záhradnícka 752/95, Bratislava, 821 08 | N1: =O1&" - "&P1 -> a - príspevok uznaným športom | O1: a | P1: príspevok uznaným športom
N2: =O2&" - "&P2 -> b - príspevok Slovenskému olympijskému a športovému výboru | O2: b | P2: príspevok Slovenskému olympijskému a športovému výboru
E3: 1. VYPLŇTE ZELENÉ BUNKY 2. VYTLAČTE, PODPÍŠTE A ODOŠLITE V LISTINNEJ PODOBE | N3: c - príspevok Slovenskému paralympijskému výboru | O3: c | P3: príspevok Slovenskému paralympijskému výboru
N4: d - príspevok športovcom top tímu | O4: d | P4: príspevok športovcom top tímu
C5: Ministerstvo školstva, vedy, výskumu a športu Slovenskej republiky | N5: e - rozvoj športov, ktoré nie sú uznanými podľa zákona č. 440/2015 Z. z. | O5: e | P5: rozvoj športov, ktoré nie sú uznanými podľa zákona č. 440/2015 Z. z.
C6: sekcia športu | E6: Dátum poukázania vrátených prostriedkov: | N6: f - organizovanie významných a tradičných športových podujatí na území SR v roku 2020 | O6: f | P6: organizovanie významných a tradičných športových podujatí na území SR v roku 2020
C7: Stromová 1 | E7: Suma vrátených prostriedkov (eur): | N7: g - projekty školského, univerzitného športu a športu pre všetkých | O7: g | P7: projekty školského, univerzitného športu a športu pre všetkých
C8: 813 30 Bratislava 1 | E8: IBAN odosielajúceho účtu: | N8: h - podpora a rozvoj turistických a cykloturistických trás | O8: h | P8: podpora a rozvoj turistických a cykloturistických trás
E9: Dátum odoslania AVÍZA: | N9: i - finančné odmeny športovcom za výsledky dosiahnuté v roku 2019 a trénerom mládeže za dosiahnuté výsledky ich športovcov v roku 2019 a za celoživotnú prácu s mládežou | O9: i | P9: finančné odmeny športovcom za výsledky dosiahnuté v roku 2019 a trénerom mládeže za dosiahnuté výsledky ich športovcov v roku 2019 a za celoživotnú prácu s mládežou
N10: j - projekty pre popularizáciu pohybových aktivít detí, mládeže a seniorov | O10: j | P10: projekty pre popularizáciu pohybových aktivít detí, mládeže a seniorov
N11: k - výstavba, modernizácia a rekonštrukcia športovej infraštruktúry národného významu | O11: k | P11: výstavba, modernizácia a rekonštrukcia športovej infraštruktúry národného významu
A12: Avízo o úhrade výnosov | N12: l - podpora zdravotne postihnutých športovcov | O12: l | P12: podpora zdravotne postihnutých športovcov
N13: m - plnenie úloh verejného záujmu v športe národnými športovými organizáciami | O13: m | P13: plnenie úloh verejného záujmu v športe národnými športovými organizáciami
A14: ="Oznamujeme Vám, že dňa "&TEXT(F6,"dd..mm.yyyy")&" sme poukázali Ministerstvu školstva, vedy, výskumu a športu Slovenskej republiky výnosy z príspevku/dotácie poskytnutého/poskytnutej na úlohy v oblasti športu v roku 2024 v sume "&TEXT(F7,"### ### ###,00")& " eur. Finančné prostriedky vraciame z programu 026 Národný program rozvoja športu v SR." -> Oznamujeme Vám, že dňa 00.01.1900 sme poukázali Ministerstvu školstva, vedy, výskumu a športu Slovenskej republiky výnosy z príspevku/dotácie poskytnutého/poskytnutej na úlohy v oblasti športu v roku 2024 v sume ,00 eur. Finančné prostriedky vraciame z programu 026 Národný program rozvoja športu v SR. | N14: n - organizovanie významnej súťaže podľa § 55 ods. 1 písm. b) | O14: n | P14: organizovanie významnej súťaže podľa § 55 ods. 1 písm. b)
A15: z podprogramu: | B15: 026 02 - Uznané športy | N15: o - účasť na významnej súťaži podľa § 3 písm. h) druhého až štvrtého bodu Zákona o športe vrátane prípravy na túto súťaž | O15: o | P15: účasť na významnej súťaži podľa § 3 písm. h) druhého až štvrtého bodu Zákona o športe vrátane prípravy na túto súťaž
A16: z nášho účtu: | B16: =F8 -> 0 | E16: V prípade nejasností kontaktujte nasledovné osoby: | N16: p - účasť na významnej súťaži podľa § 3 písm. h) prvého bodu Zákona o športe | O16: p | P16: účasť na významnej súťaži podľa § 3 písm. h) prvého bodu Zákona o športe
A17: na účet: | B17: SK68 8180 0000 0070 0006 3900 | C17: 31 | E17: Ing. Jaroslava Gregoríková | F17: 02 / 59374 763 | N17: q - | O17: q
B18: ŠS: | C18: =Spolu!C4 -> 31805540 | E18: Ing. Mária Horáková | F18: 02 / 59374 693 | N18: r - | O18: r
E19: Ing. Ildikó Belanová | F19: 02 / 59374 762
A20: Dátum: | B20: =F6 -> 00:00:00 | E20: Mgr. Lýdia Gojda | F20: 02 / 59374 636
B22: meno, priezvisko, mobil a podpis osoby oprávnenej vykonávať právne úkony v mene prijímateľa (v súlade so stanovami/zriaďovacou listinou) | N22: =O22&" - "&P22 -> 026 01 - Šport pre všetkých, školský a univerzitný šport | O22: 026 01 | P22: Šport pre všetkých, školský a univerzitný šport
N23: =O23&" - "&P23 -> 026 02 - Uznané športy | O23: 026 02 | P23: Uznané športy
N24: =O24&" - "&P24 -> 026 03 - Národné športové projekty | O24: 026 03 | P24: Národné športové projekty
N25: =O25&" - "&P25 -> 026 04 - Športová infraštruktúra | O25: 026 04 | P25: Športová infraštruktúra
N26: =O26&" - "&P26 -> 026 05 - Prierezové činnosti v športe | O26: 026 05 | P26: Prierezové činnosti v športe
N28: SK80 8180 0000 0070 0006 5236
N29: SK68 8180 0000 0070 0006 3900
N30: SK94 8180 0000 0070 0006 3820

Sheet Avízo - vratka
A1: =Spolu!C3&", "&Spolu!C6 -> Slovenský krasokorčuliarsky zväz, Záhradnícka 752/95, Bratislava, 821 08 | N1: =O1&" - "&P1 -> a - príspevok uznaným športom | O1: a | P1: príspevok uznaným športom
N2: =O2&" - "&P2 -> b - príspevok Slovenskému olympijskému a športovému výboru | O2: b | P2: príspevok Slovenskému olympijskému a športovému výboru
E3: 1. VYPLŇTE ZELENÉ BUNKY 2. VYTLAČTE, PODPÍŠTE A ODOŠLITE V LISTINNEJ PODOBE | N3: c - príspevok Slovenskému paralympijskému výboru | O3: c | P3: príspevok Slovenskému paralympijskému výboru
N4: d - príspevok športovcom top tímu | O4: d | P4: príspevok športovcom top tímu
C5: Ministerstvo školstva, vedy, výskumu a športu Slovenskej republiky | N5: e - rozvoj športov, ktoré nie sú uznanými podľa zákona č. 440/2015 Z. z. | O5: e | P5: rozvoj športov, ktoré nie sú uznanými podľa zákona č. 440/2015 Z. z.
C6: sekcia športu | E6: Dátum poukázania vrátených prostriedkov: | N6: f - organizovanie významných a tradičných športových podujatí na území SR v roku 2020 | O6: f | P6: organizovanie významných a tradičných športových podujatí na území SR v roku 2020
C7: Stromová 1 | E7: Suma vrátených prostriedkov (eur): | N7: g - projekty školského, univerzitného športu a športu pre všetkých | O7: g | P7: projekty školského, univerzitného športu a športu pre všetkých
C8: 813 30 Bratislava 1 | E8: IBAN odosielajúceho účtu: | N8: h - podpora a rozvoj turistických a cykloturistických trás | O8: h | P8: podpora a rozvoj turistických a cykloturistických trás
E9: IBAN určeného účtu ministerstva: | N9: i - finančné odmeny športovcom za výsledky dosiahnuté v roku 2019 a trénerom mládeže za dosiahnuté výsledky ich športovcov v roku 2019 a za celoživotnú prácu s mládežou | O9: i | P9: finančné odmeny športovcom za výsledky dosiahnuté v roku 2019 a trénerom mládeže za dosiahnuté výsledky ich športovcov v roku 2019 a za celoživotnú prácu s mládežou
E10: Dátum odoslania AVÍZA: | N10: j - projekty pre popularizáciu pohybových aktivít detí, mládeže a seniorov | O10: j | P10: projekty pre popularizáciu pohybových aktivít detí, mládeže a seniorov
N11: k - výstavba, modernizácia a rekonštrukcia športovej infraštruktúry národného významu | O11: k | P11: výstavba, modernizácia a rekonštrukcia športovej infraštruktúry národného významu
A12: Avízo o vrátení finančných prostriedkov | F12: SK80 8180 0000 0070 0006 5236 (výdavkový účet štátneho rozpočtu) slúži pre vrátenie nevyčerpaných finančných prostriedkov poskytnutých v r. 2024, v termíne do 30.11.2024 | N12: l - podpora zdravotne postihnutých športovcov | O12: l | P12: podpora zdravotne postihnutých športovcov
A13: ="Oznamujeme Vám, že dňa "&TEXT(F6,"dd..mm.yyyy")&" sme poukázali Ministerstvu školstva, vedy, výskumu a športu Slovenskej republiky nevyčerpané finančné prostriedky v sume "&TEXT(F7,"### ### ###,00")& " eur z príspevku/dotácie poskytnutého/poskytnutej na úlohy v oblasti športu v roku 2024. Finančné prostriedky vraciame z programu 026 Národný program rozvoja športu v SR." -> Oznamujeme Vám, že dňa 00.01.1900 sme poukázali Ministerstvu školstva, vedy, výskumu a športu Slovenskej republiky nevyčerpané finančné prostriedky v sume ,00 eur z príspevku/dotácie poskytnutého/poskytnutej na úlohy v oblasti športu v roku 2024. Finančné prostriedky vraciame z programu 026 Národný program rozvoja športu v SR. | F13: SK68 8180 0000 0070 0006 3900 (depozitný účet) slúži pre vrátenie nevyčerpaných/nezúčtovaných finančných prostriedkov poskytnutých v r. 2024, v termíne od 01.01.2025 do 31.05.2025 | N13: m - plnenie úloh verejného záujmu v športe národnými športovými organizáciami | O13: m | P13: plnenie úloh verejného záujmu v športe národnými športovými organizáciami
A14: z podprogramu: | B14: 026 03 - Národné športové projekty | F14: SK92 8180 0000 0070 0006 3759 (príjmový účet) slúži na vrátenie finančných prostriedkov za porušenie finančnej disciplíny | N14: n - | O14: n
A15: z účelu: | F15: SK94 8180 0000 0070 0006 3820 (odvody nedaňových príjmov z minulých rokov) slúži pre vrátenie nevyčerpaných/nezúčtovaných finančných prostriedkov poskytnutých v r. 2024 a vrátených po 31.05.2025, resp. poskytnutých v predchádzajúcich rokoch (t. j. pred r. 2024), bez rozdielu termínu ich vrátenia | N15: o - | O15: o
A16: z nášho účtu: | B16: =F8 -> 0 | N16: p - | O16: p
A17: na účet: | B17: =F9 -> 0 | N17: q - | O17: q
B18: VS: | C18: 31 | N18: r - | O18: r
B19: ŠS: | C19: =Spolu!C4 -> 31805540 | F19: V prípade nejasností kontaktujte nasledovné osoby: | N19: -
A20: Dátum: | B20: =F6 -> 00:00:00 | F20: Ing. Jaroslava Gregoríková | G20: 02 / 59374 763
F21: Ing. Mária Horáková | G21: 02 / 59374 693 | N21: =O21&" - "&P21 -> 026 01 - Šport pre všetkých, školský a univerzitný šport | O21: 026 01 | P21: Šport pre všetkých, školský a univerzitný šport
F22: Ing. Ildikó Belanová | G22: 02 / 59374 762 | N22: =O22&" - "&P22 -> 026 02 - Uznané športy | O22: 026 02 | P22: Uznané športy
F23: Mgr. Lýdia Gojda | G23: 02 / 59374 636 | N23: =O23&" - "&P23 -> 026 03 - Národné športové projekty | O23: 026 03 | P23: Národné športové projekty
B24: meno, priezvisko, mobil a podpis osoby oprávnenej vykonávať právne úkony v mene prijímateľa (v súlade so stanovami/zriaďovacou listinou) | N24: =O24&" - "&P24 -> 026 04 - Športová infraštruktúra | O24: 026 04 | P24: Športová infraštruktúra
N25: =O25&" - "&P25 -> 026 05 - Prierezové činnosti v športe | O25: 026 05 | P25: Prierezové činnosti v športe
N27: SK80 8180 0000 0070 0006 5236
N28: SK68 8180 0000 0070 0006 3900
N29: SK94 8180 0000 0070 0006 3759
N30: SK94 8180 0000 0070 0006 3820

Sheet Skratky
A1: Zoznam akceptovaných skratiek
A2: Pri vyúčtovaní môžete používať nasledovné skratky. Ak potrebujete, definujte ďalšie.
A3: Skratka | B3: Vysvetlenie
A4: MS | B4: majstrovstvá sveta
A5: ME | B5: majstrovstvá Európy
A6: SP | B6: svetový pohár
A7: EP | B7: európsky pohár
A8: MSR | B8: majstrovstvá Slovenska
A9: VV | B9: výkonný výbor
A10: ŠH | B10: športová hala
A11: PHM | B11: pohonné hmoty
A12: VC | B12: veľká cena
A13: VZ | B13: valné zhromaždenie
A14: EČV | B14: evidenčné číslo vozidla
A15: OA | B15: osobný automobil
A16: BUS | B16: autobus
A17: LOD | B17: loď
A18: LET | B18: lietadlo
A19: VLAK | B19: vlak
A20: ÚTM | B20: útvar talentovanej mládeže
A21: CTM | B21: centrum talentovanej mládeže
